{"text_format":"3","workbook":"xlsx","n_sheets":36,"sheets":["Инструкция","Лог обновления","Титульный","стр 1-2","Расшифровка показателей","Комментарии","Проверка","AllSheetsInThisWorkbook","et_union","TEHSHEET","REESTR_ORG","REESTR_FILTERED","REESTR_MO","modUpdTemplMain","modfrmCheckUpdates","modInfo","modHyperlink","modChange","modPROV","modTitleSheetHeaders","modServiceModule","modCommandButton","modReestr","modClassifierValidate","modfrmReestr","modfrmDateChoose","modDblClick","Паспорт","modRegionSelectSub","modThisWorkbook","modReestrMO","modSheetMain01","modSheetMain02","modSheetMain03","modSheetMain04","modSheetMain05"],"not_rendered":{"images":19,"macros":1,"defined_names":150,"comments":1},"read":"whole","date_system":"1900"}

{"sheet":"Инструкция","index":0,"n_rows":103,"n_cols":27,"rows_kept":103,"merged":[[1,1,1,6],[2,1,2,2],[4,1,4,24],[6,4,18,23],[20,5,20,12],[20,15,20,23],[21,5,21,12],[21,15,21,23],[34,4,38,23],[39,4,39,23],[40,4,44,23],[45,4,56,23],[57,4,57,6],[57,7,57,23],[58,4,58,6],[58,7,58,23],[59,4,59,6],[59,7,59,23],[60,7,60,23],[69,4,69,23],[71,4,71,5],[71,6,71,15],[71,16,71,23],[72,4,72,5],[72,6,72,15],[72,16,72,23],[73,4,73,5],[73,6,73,15],[73,16,73,23],[74,4,74,5],[74,6,74,15],[74,16,74,23],[75,4,75,5],[75,6,75,15],[75,16,75,23],[76,4,76,5],[76,6,76,15],[76,16,76,23],[77,4,77,5],[77,6,77,15],[77,16,77,23],[78,4,78,5],[78,6,78,15],[78,16,78,23],[79,4,79,5],[79,6,79,15],[79,16,79,23],[81,4,81,6],[81,7,81,23],[82,4,82,6],[82,7,82,23],[83,4,83,6],[83,7,83,23],[84,7,84,23],[98,4,98,23],[100,5,100,18],[102,5,102,23]]}
[{"$nulls":26}," (требуется обновление)"]
[null,{"$f":"\"Код шаблона: \" & GetCode()","v":"Код шаблона: FORMA4.BH"}]
[null,{"$f":"\"Версия \" & GetVersion()","v":"Версия 1.0"}]
[]
[null,"Отчёт о движении денежных средств"]
[]
[{"$nulls":4},"• На рабочем месте должен быть установлен MS Office 2003 SP3, 2007 SP3, 2010 с полной версией MS Excel\n\n• Макросы во время работы должны быть включены (!)\n\n• Для корректной работы отчёта требуется выбрать низкий уровень безопасности\n(В меню MS Excel 2003: Сервис | Макрос | Безопасность | выбрать пункт «Низкая безопасность» | OK)\n(В меню MS Excel 2007/2010: Параметры Excel | Центр управления безопасностью | Параметры центра управления безопасностью | Параметры макросов | Включить все макросы | ОК)\n\n• Если Вы работаете в табличном процессоре MS Excel 2007 и выше, то можете использовать для работы формат XLSM (Книга Excel с поддержкой макросов). При работе в формате XLSM заметно быстрее происходит сохранение файла, а также уменьшается размер по сравнению с форматом XLS\n\n• Не рекомендуется снимать защиту с листов и каким-либо образом модифицировать защищаемые формулы и расчётные поля, в противном случае, отчёт будет отклонён системой\n\n• При сохранении не следует выбирать формат XLSX (Книга Excel), так как в указанном формате макросы, необходимы для работы отчёта, безвозвратно удаляются"]
{"$rows_empty":13}
[{"$nulls":4},"A"," - предназначенные для заполнения",{"$nulls":8},"A"," - обязательные для заполнения поля"]
[{"$nulls":4},"A"," - с формулами и константами",{"$nulls":8},"A"," - незаполняемые поля"]
{"$rows_empty":12}
[{"$nulls":4},"Если в предложенном Вам списке необходимая организация, МР/МО отсутствуют, обновите реестры с помощью кнопок\n\nВ результате синхронизации с базой данных список организаций (МР/МО) будет заменён актуальным (механизм синхронизации требует подключения к сети Интернет и основан на использовании протокола HTTPS (TCP порт 443))\n\nЕсли после обновления Вам не удалось найти необходимую организацию в списке, обратитесь к ответственному за поддержание реестра Вашего региона. Информация о региональных органах регулирования доступна по ссылке:"]
[]
[]
[]
[]
[{"$nulls":4},"http://www.fstrf.ru/regions/region/showlist"]
[{"$nulls":4},"• Работа с отчётом начинается с выбора наименования субъекта Российской Федерации\n\n• После выбора субъекта производится обновление реестра муниципальных образований, также за одно нажатие можно обновить реестры организаций по всем сферам деятельности\n\n• Отображение и скрытие группы листов, а также автозаполнение листов, производится с помощью кнопок, либо при нажатии на ОКТМО, либо номер муниципального образования, все действия, манипуляции, вызов форм ввода на листах осуществляются двойным щелчком мыши"]
[]
[]
[]
[]
[{"$nulls":4},"• При сохранении шаблона осуществляется проверка корректности данных, в том числе на наличие значений в ячейках, обязательных для заполнения\n\n• Если какая-то ячейка не удовлетворяет условию проверки, на лист «Проверка» добавляется гиперссылка на данную ячейку и указывается причина ошибки\n\n• В колонке «Статус» для каждого сообщения возможны 2 значения: ошибка и предупреждение\n\n• При наличии сообщений со статусом «Ошибка» шаблон будет отклонён системой и не будет загружен в хранилище данных, сообщения со статусом «Предупреждение» носят информационный характер, и такой шаблон будет принят системой"]
{"$rows_empty":11}
[{"$nulls":4},"Web-сайт:",null,null,"http://support.eias.ru/index.php?a=add&catid=5"]
[{"$nulls":4},"Дистрибутивы:",null,null,"http://eias.ru/?page=show_distrs"]
[{"$nulls":7},"для устранения ошибок (например, \"Compile error in hidden module\")"]
{"$rows_empty":9}
[{"$nulls":4},"Список сокращений"]
[]
[{"$nulls":4},"ОКПО",null,"Общероссийский классификатор предприятий и организаций"]
[{"$nulls":4},"ОКВЭД",null,"Общероссийский классификатор видов экономической деятельности",{"$nulls":9},"http://www.gmcgks.ru/index.php?id=21053"]
[{"$nulls":4},"ОКАТО",null,"Общероссийский классификатор объектов административно-территориального деления",{"$nulls":9},"http://www.gmcgks.ru/index.php?id=21046"]
[{"$nulls":4},"ОКОГУ",null,"Общероссийский классификатор органов государственной власти и управления",{"$nulls":9},"http://www.gmcgks.ru/index.php?id=21036"]
[{"$nulls":4},"ОКОПФ",null,"Общероссийский классификатор организационно-правовых форм",{"$nulls":9},"http://www.gmcgks.ru/index.php?id=21052"]
[{"$nulls":4},"ОКФС",null,"Общероссийский классификатор форм собственности",{"$nulls":9},"http://www.gmcgks.ru/index.php?id=21051"]
[{"$nulls":4},"ОКУД",null,"Общероссийский классификатор управленческой документации",{"$nulls":9},"http://www.gmcgks.ru/index.php?id=21039"]
[{"$nulls":4},"ОКЕИ",null,"Общероссийский классификатор единиц измерения",{"$nulls":9},"http://www.gmcgks.ru/index.php?id=21042"]
[{"$nulls":4},"ОКТМО",null,"Общероссийский классификатор территорий муниципальных образований",{"$nulls":9},"http://www.gks.ru/metod/classifiers.html"]
[]
[]
[{"$nulls":4},"Web-сайт:",null,null,"http://support.eias.ru/index.php?a=add&catid=5"]
{"$rows_empty":15}
[{"$nulls":4},"При наличии подключения к Интернет, можно автоматически проверять наличие доступных обновлений. Выберите способ оповещения о наличии обновлений для отчёта:"]
[]
[{"$nulls":5},"проверять доступные обновления (рекомендуется)",{"$nulls":20},"y"]
[]
[{"$nulls":5},"никогда не проверять наличие обновлений (не рекомендуется)"]

{"sheet":"Лог обновления","index":1,"n_rows":17,"n_cols":4,"rows_kept":17,"hidden":true}
[]
["3/17/2012 12:12:41 AM","Дата/Время","Сообщение","Статус"]
[null,"4/22/2017  11:08:41 AM","Проверка доступных обновлений...","Информация"]
[null,"4/22/2017  11:08:42 AM","Доступно обновление до версии 2.0.1","Информация"]
[null,"4/22/2017  11:08:42 AM","Описание изменений: Версия 2.0.1 (только с версии 2.0)\n- Расширен список лет для заполнения.","Информация"]
[null,"4/22/2017  11:08:42 AM","Размер файла обновления: 292352 байт","Информация"]
[null,"4/22/2017  11:08:48 AM","Обновление отменено пользователем","Предупреждение"]
[null,"4/22/2017  11:46:55 AM","Проверка доступных обновлений...","Информация"]
[null,"4/22/2017  11:46:55 AM","Доступно обновление до версии 2.0.1","Информация"]
[null,"4/22/2017  11:46:56 AM","Описание изменений: Версия 2.0.1 (только с версии 2.0)\n- Расширен список лет для заполнения.","Информация"]
[null,"4/22/2017  11:46:56 AM","Размер файла обновления: 292352 байт","Информация"]
[null,"4/22/2017  11:46:58 AM","Обновление отменено пользователем","Предупреждение"]
[null,"4/22/2017  12:38:23 PM","Проверка доступных обновлений...","Информация"]
[null,"4/22/2017  12:38:23 PM","Доступно обновление до версии 2.0.1","Информация"]
[null,"4/22/2017  12:38:24 PM","Описание изменений: Версия 2.0.1 (только с версии 2.0)\n- Расширен список лет для заполнения.","Информация"]
[null,"4/22/2017  12:38:24 PM","Размер файла обновления: 292352 байт","Информация"]
[null,"4/22/2017  12:38:27 PM","Обновление отменено пользователем","Предупреждение"]

{"sheet":"Титульный","index":2,"n_rows":52,"n_cols":10,"rows_kept":52,"merged":[[3,2,3,9],[5,1,5,10],[8,3,8,5],[8,7,11,9],[10,3,10,5],[11,3,11,5],[12,3,12,5],[13,3,13,5],[15,3,15,5],[17,8,17,9],[18,3,18,5],[18,8,18,9],[19,3,19,5],[19,8,19,9],[20,3,20,5],[20,7,20,9],[21,3,21,5],[21,8,21,9],[22,3,22,5],[23,3,23,5],[23,8,23,9],[25,3,25,5],[25,8,26,9],[27,8,27,9],[28,3,28,5],[29,3,29,5],[29,10,31,10],[31,3,31,5],[33,3,33,5],[35,3,35,5],[36,3,36,5],[37,3,37,5],[39,3,39,5],[40,3,40,5],[41,3,41,5],[43,3,43,5],[44,3,44,5],[45,3,45,5],[47,3,47,5],[48,3,48,5],[49,3,49,5],[50,3,50,5],[51,3,51,5],[53,3,53,5],[55,2,55,9]]}
[]
[]
[{"$nulls":9},{"$f":"version","v":"Версия 1.0"}]
[null,null,"Отчёт о движении денежных средств"]
[]
[]
[]
[]
[null,null,"Субъект РФ","Кировская область",{"$nulls":3},"Приложение\nк Приказу Минфина РФ\nот 02.07.2010 № 66н\n(в ред. Приказов Минфина России от 05.10.2011 №124н, \nот 17.08.2012 №113н, от 04.12.2012 №154н)"]
[]
[{"$nulls":3},"Отчётный период"]
[null,null,"Год",2016]
[]
[null,null,"Отчётная дата","31.12.2016"]
[]
[null,null,"Признак филиала","нет"]
[]
[{"$nulls":7},"Форма по ОКУД","0710004"]
[{"$nulls":7},"Дата (год,месяц,число)","31.12.2016"]
[null,null,"Организация","ООО Водоотведение",{"$nulls":3},"Код* по ОКПО","32889481"]
[null,null,"Наименование филиала:"]
[null,null,"ИНН","4307017925",{"$nulls":3},"Код* по ОКВЭД","37.00"]
[null,null,"КПП","430701001",{"$nulls":3},"Код* по ОКОПФ/ОКФС ","12165","16"]
[null,null,"Вид деятельности","Оказание услуг в сфере водоотведения и очистки стрчных вод",{"$nulls":3},"Код* по ОКЕИ","384"]
[null,null,"Организационно-правовая форма/форма собственности","12165","/","16"]
[null,null,"Единица измерения","тыс.руб.",{"$nulls":4},"* Расшифровки всех сокращений и ссылки приведены на листе \"Инструкция\""]
[{"$nulls":5}," "]
[]
[{"$nulls":3},"Дата последнего обновления реестра МР/МО: 22.04.2017 11:09:41"]
[null,null,"Муниципальный район","Вятские Поляны"]
[]
[null,null,"Муниципальное образование","Вятские Поляны"]
[]
[null,null,"ОКТМО","33704000"]
[]
[{"$nulls":3},"Адрес организации"]
[null,null,"Юридический адрес","612961, Кировская область,г.Вятские Поляны,ул.Урицкого, д.20"]
[null,null,"Почтовый адрес","612961,Кировская область,г.Вятские Поляны,ул.Ленина, д.17, п/я 11"]
[]
[{"$nulls":3},"Руководитель"]
[null,null,"Фамилия, имя, отчество","Гладышев Сергей Михайлович"]
[null,null,"(код) номер телефона","8(83334)6-24-82"]
[]
[{"$nulls":3},"Главный бухгалтер"]
[null,null,"Фамилия, имя, отчество","Соловьева Эльвира Владимировна"]
[null,null,"(код) номер телефона","8(83334)7-52-62"]
[]
[{"$nulls":3},"Должностное лицо,\nответственное за составление формы"]
[null,null,"Фамилия, имя, отчество","Селезнева Татьяна Александровна"]
[null,null,"Должность","главный экономист"]
[null,null,"(код) номер телефона","8(83334)7-52-62"]
[null,null,"e-mail","vodootvedenie@inbox.ru"]

{"sheet":"стр 1-2","index":3,"n_rows":57,"n_cols":13,"rows_kept":57,"merged":[[7,4,7,12],[10,4,11,4],[10,5,11,5],[10,6,11,6],[10,7,11,9],[10,10,11,12],[12,7,12,9],[12,10,12,12]]}
[]
[]
[]
[]
[]
[]
[{"$nulls":12},"Форма 0710004 с. 1-2"]
[{"$nulls":4},"Отчёт о движении денежных средств"]
[]
[{"$nulls":12},{"$f":"IF(unit=\"\",\"\",unit)","v":"тыс.руб."}]
[{"$nulls":4},"№\nп/п","Наименование","Код",{"$f":"\"За \"&IF(OR(god=\"\",_prd2=\"\"),\"отчётный период\",IF(_prd2=\"год\",\" \"&god&\" год\",_prd2&\" \"&god&\" года\"))","v":"За отчётный период"},null,null,{"$f":"\"За \"&IF(OR(god=\"\",_prd2=\"\"),\"период предыдущего года, аналогичный отчётному периоду\",IF(_prd2=\"год\",\" \"&god-1&\" год\",_prd2&\" \"&god-1&\" года\"))","v":"За период предыдущего года, аналогичный отчётному периоду"}]
[]
[{"$nulls":4},1,"2","3","4",null,null,"5"]
[{"$nulls":4},"1","Денежные потоки от текущих операций"]
[{"$nulls":4},"1.1","Поступления - всего, в том числе:",4110,{"$f":"IF((SUMIF(H16:H19,\"\",I16:I19)-SUMIF(H16:H19,\"(\",I16:I19))<0,\"(\",\"\")","v":""},{"$f":"ABS(SUMIF(H16:H19,\"\",I16:I19)-SUMIF(H16:H19,\"(\",I16:I19))","v":{"v":57584,"d":"57,584"}},{"$f":"IF(H15=\"(\",\")\",\"\")","v":""},{"$f":"IF((SUMIF(K16:K19,\"\",L16:L19)-SUMIF(K16:K19,\"(\",L16:L19))<0,\"(\",\"\")","v":""},{"$f":"ABS(SUMIF(K16:K19,\"\",L16:L19)-SUMIF(K16:K19,\"(\",L16:L19))","v":{"v":54744,"d":"54,744"}},{"$f":"IF(K15=\"(\",\")\",\"\")","v":""}]
[{"$nulls":4},"1.1.1","от продажи продукции, товаров, работ и услуг",4111,null,57552,null,null,54739]
[{"$nulls":4},"1.1.2","арендных платежей, лицензионных платежей, роялти, комиссионных и иных аналогичных платежей",4112]
[{"$nulls":4},"1.1.3","от перепродажи финансовых вложений",4113]
[{"$nulls":4},"1.1.4","прочие поступления","4119",null,32,null,null,5]
[{"$nulls":4},"1.2","Платежи - всего, в том числе:",4120,"(",{"$f":"SUM(I21:I25)","v":58829},")","(",{"$f":"SUM(L21:L25)","v":54184},")"]
[{"$nulls":4},"1.2.1","поставщикам (подрядчикам) за сырье, материалы, работы, услуги",4121,"(",29170,")","(",26222,")"]
[{"$nulls":4},"1.2.2","в связи с оплатой труда работников",4122,"(",19180,")","(",17990,")"]
[{"$nulls":4},"1.2.3","процентов по долговым обязательствам",4123,"(",null,")","(",null,")"]
[{"$nulls":4},"1.2.4","налога на прибыль организаций",4124,"(",null,")","(",null,")"]
[{"$nulls":4},"1.2.5","прочие платежи","4129","(",10479,")","(",9972,")"]
[{"$nulls":4},"1.3","Сальдо денежных потоков от текущих операций",4100,{"$f":"IF((IF(H15=\"(\",-I15,I15)+IF(H20=\"(\",-I20,I20))<0,\"(\",\"\")","v":"("},{"$f":"ABS(IF(H15=\"(\",-I15,I15)+IF(H20=\"(\",-I20,I20))","v":{"v":1245,"d":"1,245"}},{"$f":"IF(H26=\"(\",\")\",\"\")","v":")"},{"$f":"IF((IF(K15=\"(\",-L15,L15)+IF(K20=\"(\",-L20,L20))<0,\"(\",\"\")","v":""},{"$f":"ABS(IF(K15=\"(\",-L15,L15)+IF(K20=\"(\",-L20,L20))","v":560},{"$f":"IF(K26=\"(\",\")\",\"\")","v":""}]
[{"$nulls":4},"2","Денежные потоки от инвестиционных операций"]
[{"$nulls":4},"2.1","Поступления - всего, в том числе:",4210,{"$f":"IF((SUMIF(H29:H33,\"\",I29:I33)-SUMIF(H29:H33,\"(\",I29:I33))<0,\"(\",\"\")","v":""},{"$f":"ABS(SUMIF(H29:H33,\"\",I29:I33)-SUMIF(H29:H33,\"(\",I29:I33))","v":{"v":1500,"d":"1,500"}},{"$f":"IF(H28=\"(\",\")\",\"\")","v":""},{"$f":"IF((SUMIF(K29:K33,\"\",L29:L33)-SUMIF(K29:K33,\"(\",L29:L33))<0,\"(\",\"\")","v":""},{"$f":"ABS(SUMIF(K29:K33,\"\",L29:L33)-SUMIF(K29:K33,\"(\",L29:L33))","v":0},{"$f":"IF(K28=\"(\",\")\",\"\")","v":""}]
[{"$nulls":4},"2.1.1","от продажи внеоборотных активов (кроме финансовых вложений)",4211]
[{"$nulls":4},"2.1.2","от продажи акций других организаций (долей участия)",4212]
[{"$nulls":4},"2.1.3","от возврата предоставленных займов, от продажи долговых ценных бумаг (прав требования денежных средств к другим лицам)",4213]
[{"$nulls":4},"2.1.4","дивидендов, процентов по долговым финансовым вложениям и аналогичных поступлений от долевого участия в других организациях",4214]
[{"$nulls":4},"2.1.5","прочие поступления","4219",null,1500]
[{"$nulls":4},"2.2","Платежи - всего, в том числе:",4220,"(",{"$f":"SUM(I35:I39)","v":0},")","(",{"$f":"SUM(L35:L39)","v":0},")"]
[{"$nulls":4},"2.2.1","в связи с приобретением, созданием, модернизацией, реконструкцией и подготовкой к использованию внеоборотных активов",4221,"(",null,")","(",null,")"]
[{"$nulls":4},"2.2.2","в связи с приобретением акций других организаций (долей участия)",4222,"(",null,")","(",null,")"]
[{"$nulls":4},"2.2.3","в связи с приобретением долговых ценных бумаг (прав требования денежных средств к другим лицам), предоставление займов другим лицам",4223,"(",null,")","(",null,")"]
[{"$nulls":4},"2.2.4","процентов по долговым обязательствам, включаемым в стоимость инвестиционного актива",4224,"(",null,")","(",null,")"]
[{"$nulls":4},"2.2.5","прочие платежи","4229","(",null,")","(",null,")"]
[{"$nulls":4},"2.3","Сальдо денежных потоков от инвестиционных операций",4200,{"$f":"IF((IF(H28=\"(\",-I28,I28)+IF(H34=\"(\",-I34,I34))<0,\"(\",\"\")","v":""},{"$f":"ABS(IF(H28=\"(\",-I28,I28)+IF(H34=\"(\",-I34,I34))","v":{"v":1500,"d":"1,500"}},{"$f":"IF(H40=\"(\",\")\",\"\")","v":""},{"$f":"IF((IF(K28=\"(\",-L28,L28)+IF(K34=\"(\",-L34,L34))<0,\"(\",\"\")","v":""},{"$f":"ABS(IF(K28=\"(\",-L28,L28)+IF(K34=\"(\",-L34,L34))","v":0},{"$f":"IF(K40=\"(\",\")\",\"\")","v":""}]
[{"$nulls":4},"3","Денежные потоки от финансовых операций"]
[{"$nulls":4},"3.1","Поступления - всего, в том числе:",4310,{"$f":"IF((SUMIF(H43:H47,\"\",I43:I47)-SUMIF(H43:H47,\"(\",I43:I47))<0,\"(\",\"\")","v":""},{"$f":"ABS(SUMIF(H43:H47,\"\",I43:I47)-SUMIF(H43:H47,\"(\",I43:I47))","v":0},{"$f":"IF(H42=\"(\",\")\",\"\")","v":""},{"$f":"IF((SUMIF(K43:K47,\"\",L43:L47)-SUMIF(K43:K47,\"(\",L43:L47))<0,\"(\",\"\")","v":""},{"$f":"ABS(SUMIF(K43:K47,\"\",L43:L47)-SUMIF(K43:K47,\"(\",L43:L47))","v":0},{"$f":"IF(K42=\"(\",\")\",\"\")","v":""}]
[{"$nulls":4},"3.1.1","получение кредитов и займов",4311]
[{"$nulls":4},"3.1.2","денежных вкладов собственников (участников)",4312]
[{"$nulls":4},"3.1.3","от выпуска акций, увеличения долей участия",4313]
[{"$nulls":4},"3.1.4","от выпуска облигаций, векселей и других долговых ценных бумаг и др.",4314]
[{"$nulls":4},"3.1.5","прочие поступления","4319"]
[{"$nulls":4},"3.2","Платежи - всего, в том числе:",4320,"(",{"$f":"SUM(I49:I52)","v":0},")","(",{"$f":"SUM(L49:L52)","v":14},")"]
[{"$nulls":4},"3.2.1","собственникам (участникам) в связи с выкупом у них акций (долей участия) организации или их выходом из состава участников","4321","(",null,")","(",null,")"]
[{"$nulls":4},"3.2.2","на уплату дивидендов и иных платежей по распределению прибыли в пользу собственников (участников)","4322","(",null,")","(",null,")"]
[{"$nulls":4},"3.2.3","в связи с погашением (выкупом) векселей и других долговых ценных бумаг, возврат кредитов и займов","4323","(",null,")","(",null,")"]
[{"$nulls":4},"3.2.4","прочие платежи","4329","(",null,")","(",14,")"]
[{"$nulls":4},"3.3","Сальдо денежных потоков от финансовых операций","4300",{"$f":"IF((IF(H42=\"(\",-I42,I42)+IF(H48=\"(\",-I48,I48))<0,\"(\",\"\")","v":""},{"$f":"ABS(IF(H42=\"(\",-I42,I42)+IF(H48=\"(\",-I48,I48))","v":0},{"$f":"IF(H53=\"(\",\")\",\"\")","v":""},{"$f":"IF((IF(K42=\"(\",-L42,L42)+IF(K48=\"(\",-L48,L48))<0,\"(\",\"\")","v":"("},{"$f":"ABS(IF(K42=\"(\",-L42,L42)+IF(K48=\"(\",-L48,L48))","v":14},{"$f":"IF(K53=\"(\",\")\",\"\")","v":")"}]
[{"$nulls":4},"4","Сальдо денежных потоков за отчетный период","4400",{"$f":"IF((IF(H26=\"(\",-I26,I26)+IF(H40=\"(\",-I40,I40)+IF(H53=\"(\",-I53,I53))<0,\"(\",\"\")","v":""},{"$f":"ABS(IF(H26=\"(\",-I26,I26)+IF(H40=\"(\",-I40,I40)+IF(H53=\"(\",-I53,I53))","v":255},{"$f":"IF(H54=\"(\",\")\",\"\")","v":""},{"$f":"IF((IF(K26=\"(\",-L26,L26)+IF(K40=\"(\",-L40,L40)+IF(K53=\"(\",-L53,L53))<0,\"(\",\"\")","v":""},{"$f":"ABS(IF(K26=\"(\",-L26,L26)+IF(K40=\"(\",-L40,L40)+IF(K53=\"(\",-L53,L53))","v":546},{"$f":"IF(K54=\"(\",\")\",\"\")","v":""}]
[{"$nulls":4},"5","Остаток денежных средств и денежных эквивалентов на начало отчетного периода","4450",null,44,null,null,195]
[{"$nulls":4},"6","Остаток денежных средств и денежных эквивалентов на конец отчетного периода","4500",{"$f":"IF((IF(H54=\"(\",-I54,I54)+IF(H55=\"(\",-I55,I55)+IF(H57=\"(\",-I57,I57))<0,\"(\",\"\")","v":""},{"$f":"ABS(IF(H54=\"(\",-I54,I54)+IF(H55=\"(\",-I55,I55)+IF(H57=\"(\",-I57,I57))","v":299},{"$f":"IF(H56=\"(\",\")\",\"\")","v":""},{"$f":"IF((IF(K54=\"(\",-L54,L54)+IF(K55=\"(\",-L55,L55)+IF(K57=\"(\",-L57,L57))<0,\"(\",\"\")","v":""},{"$f":"ABS(IF(K54=\"(\",-L54,L54)+IF(K55=\"(\",-L55,L55)+IF(K57=\"(\",-L57,L57))","v":741},{"$f":"IF(K56=\"(\",\")\",\"\")","v":""}]
[{"$nulls":4},"7","Величина влияния изменений курса иностранной валюты по отношению к рублю","4490"]

{"sheet":"Расшифровка показателей","index":4,"n_rows":54,"n_cols":13,"rows_kept":54,"merged":[[7,4,7,12],[10,7,10,9],[10,10,10,12],[11,7,11,9],[11,10,11,12]]}
[]
["Амурская область"]
[]
[]
[]
[]
[{"$nulls":12},"Форма 0710004 с. 3"]
[{"$nulls":4},"Расшифровка отдельных показателей"]
[]
[{"$nulls":12},{"$f":"IF(unit=\"\",\"\",unit)","v":"тыс.руб."}]
[{"$nulls":4},"№\nп/п","Пассив","Код",{"$f":"\"За \"&IF(OR(god=\"\",_prd2=\"\"),\"отчётный период\",IF(_prd2=\"год\",\" \"&god&\" год\",_prd2&\" \"&god&\" года\"))","v":"За отчётный период"},null,null,{"$f":"\"За \"&IF(OR(god=\"\",_prd2=\"\"),\"аналогичный период предыдущего года\",IF(_prd2=\"год\",\" \"&god-1&\" год\",_prd2&\" \"&god-1&\" года\"))","v":"За аналогичный период предыдущего года"}]
[{"$nulls":4},1,"2","3","4",null,null,"5"]
[{"$nulls":4},"1","Прочие поступления от текущих операций (стр. 4119), в том числе:",null,{"$f":"IF('стр 1-2'!H19=\"(\",\"(\",\"\")","v":""},{"$f":"'стр 1-2'!I19","v":32},{"$f":"IF(flagParenthesis_Indicators_1=\"(\",\")\",\"\")","v":""},{"$f":"IF('стр 1-2'!K19=\"(\",\"(\",\"\")","v":""},{"$f":"'стр 1-2'!L19","v":5},{"$f":"IF(flagParenthesis_Indicators_2=\"(\",\")\",\"\")","v":""}]
[{"$nulls":4},"1.1","поступления от окаазания прочих услуг","41191",null,32,null,null,5]
[{"$nulls":4},"1.2",null,"41192"]
[{"$nulls":4},"1.3",null,"41193"]
[{"$nulls":4},"1.4",null,"41194"]
[{"$nulls":4},"1.5",null,"41195"]
[{"$nulls":5},"Добавить строку"]
[{"$nulls":4},"2","На прочие платежи от текущих операций (стр. 4129), в том числе:",null,{"$f":"IF('стр 1-2'!H25=\"(\",\"(\",\"\")","v":"("},{"$f":"'стр 1-2'!I25","v":10479},{"$f":"IF(H20=\"(\",\")\",\"\")","v":")"},{"$f":"IF('стр 1-2'!K25=\"(\",\"(\",\"\")","v":"("},{"$f":"'стр 1-2'!L25","v":9972},{"$f":"IF(K20=\"(\",\")\",\"\")","v":")"}]
[{"$nulls":4},"2.1","налоги и взносы","41291","(",9221,")","(",8862,")"]
[{"$nulls":4},"2.2","прочие","41292","(",1258,")","(",1110,")"]
[{"$nulls":4},"2.3",null,"41293","(",null,")","(",null,")"]
[{"$nulls":4},"2.4",null,"41294","(",null,")","(",null,")"]
[{"$nulls":4},"2.5",null,"41295","(",null,")","(",null,")"]
[{"$nulls":5},"Добавить строку"]
[{"$nulls":4},"3","Прочие поступления от инвестиционных операций (стр. 4219), в том числе:",null,{"$f":"IF('стр 1-2'!H33=\"(\",\"(\",\"\")","v":""},{"$f":"'стр 1-2'!I33","v":1500},{"$f":"IF(H27=\"(\",\")\",\"\")","v":""},{"$f":"IF('стр 1-2'!K33=\"(\",\"(\",\"\")","v":""},{"$f":"'стр 1-2'!L33","v":0},{"$f":"IF(K27=\"(\",\")\",\"\")","v":""}]
[{"$nulls":4},"3.1",null,"42191"]
[{"$nulls":4},"3.2",null,"42192"]
[{"$nulls":4},"3.3",null,"42193"]
[{"$nulls":4},"3.4",null,"42194"]
[{"$nulls":4},"3.5",null,"42195"]
[{"$nulls":5},"Добавить строку"]
[{"$nulls":4},"4","На прочие платежи от инвестиционных операций (стр. 4229), в том числе:",null,{"$f":"IF('стр 1-2'!H39=\"(\",\"(\",\"\")","v":"("},{"$f":"'стр 1-2'!I39","v":0},{"$f":"IF(H34=\"(\",\")\",\"\")","v":")"},{"$f":"IF('стр 1-2'!K39=\"(\",\"(\",\"\")","v":"("},{"$f":"'стр 1-2'!L39","v":0},{"$f":"IF(K34=\"(\",\")\",\"\")","v":")"}]
[{"$nulls":4},"4.1",null,"42291","(",null,")","(",null,")"]
[{"$nulls":4},"4.2",null,"42292","(",null,")","(",null,")"]
[{"$nulls":4},"4.3",null,"42293","(",null,")","(",null,")"]
[{"$nulls":4},"4.4",null,"42294","(",null,")","(",null,")"]
[{"$nulls":4},"4.5",null,"42295","(",null,")","(",null,")"]
[{"$nulls":5},"Добавить строку"]
[{"$nulls":4},"5","Другие поступления от финансовых операций (стр. 4319), в том числе:",null,{"$f":"IF('стр 1-2'!H47=\"(\",\"(\",\"\")","v":""},{"$f":"'стр 1-2'!I47","v":0},{"$f":"IF(H41=\"(\",\")\",\"\")","v":""},{"$f":"IF('стр 1-2'!K47=\"(\",\"(\",\"\")","v":""},{"$f":"'стр 1-2'!L47","v":0},{"$f":"IF(K41=\"(\",\")\",\"\")","v":""}]
[{"$nulls":4},"5.1",null,"43191"]
[{"$nulls":4},"5.2",null,"43192"]
[{"$nulls":4},"5.3",null,"43193"]
[{"$nulls":4},"5.4",null,"43194"]
[{"$nulls":4},"5.5",null,"43195"]
[{"$nulls":5},"Добавить строку"]
[{"$nulls":4},"6","На прочие платежи от финансовых операций (стр. 4329), в том числе:",null,{"$f":"IF('стр 1-2'!H52=\"(\",\"(\",\"\")","v":"("},{"$f":"'стр 1-2'!I52","v":0},{"$f":"IF(H48=\"(\",\")\",\"\")","v":")"},{"$f":"IF('стр 1-2'!K52=\"(\",\"(\",\"\")","v":"("},{"$f":"'стр 1-2'!L52","v":14},{"$f":"IF(K48=\"(\",\")\",\"\")","v":")"}]
[{"$nulls":4},"6.1",null,"43291","(",null,")","(",null,")"]
[{"$nulls":4},"6.2",null,"43292","(",null,")","(",null,")"]
[{"$nulls":4},"6.3",null,"43293","(",null,")","(",null,")"]
[{"$nulls":4},"6.4",null,"43294","(",null,")","(",null,")"]
[{"$nulls":4},"6.5",null,"43295","(",null,")","(",null,")"]
[{"$nulls":5},"Добавить строку"]

{"sheet":"Комментарии","index":5,"n_rows":10,"n_cols":6,"rows_kept":10,"merged":[[6,4,6,5],[11,4,11,5]]}
[]
[]
[]
[]
[]
[]
[{"$nulls":4},"Ниже вы можете оставить свои комментарии"]
[]
[{"$nulls":4},"1","Данные заполнены за период с 01.01.2016-31.12.2016г"]
[{"$nulls":5},"Добавить комментарий"]

{"sheet":"Проверка","index":6,"n_rows":13,"n_cols":7,"rows_kept":13,"merged":[[9,4,9,6]]}
{"$rows_empty":9}
[{"$nulls":4},"Результат проверки"]
[]
[{"$nulls":4},"Ссылка","Причина","Статус "]
[{"$nulls":4},"1","2","3"]

{"sheet":"AllSheetsInThisWorkbook","index":7,"n_rows":30,"n_cols":2,"rows_kept":30,"hidden":true}
["Расчетные листы","Скрытые листы"]
["Инструкция","AllSheetsInThisWorkbook"]
["Лог обновления","et_union"]
["Титульный","TEHSHEET"]
["стр 1-2","REESTR_ORG"]
["Расшифровка показателей","REESTR_FILTERED"]
["Комментарии","REESTR_MO"]
["Проверка","modUpdTemplMain"]
[null,"modfrmCheckUpdates"]
[null,"modInfo"]
[null,"modHyperlink"]
[null,"modChange"]
[null,"modPROV"]
[null,"modTitleSheetHeaders"]
[null,"modServiceModule"]
[null,"modCommandButton"]
[null,"modReestr"]
[null,"modClassifierValidate"]
[null,"modfrmReestr"]
[null,"modfrmDateChoose"]
[null,"modDblClick"]
[null,"Паспорт"]
[null,"modRegionSelectSub"]
[null,"modThisWorkbook"]
[null,"modReestrMO"]
[null,"modSheetMain01"]
[null,"modSheetMain02"]
[null,"modSheetMain03"]
[null,"modSheetMain04"]
[null,"modSheetMain05"]

{"sheet":"et_union","index":8,"n_rows":21,"n_cols":13,"rows_kept":21,"hidden":true}
[]
["add_INCOME_CONSUMPTION_range"]
[]
[]
[]
[]
["add_GAINS_AND_LOSSES_range"]
[]
[]
[]
[]
["add_INDICATORS_range"]
[]
[]
[]
["add_INDICATORS_range_2"]
[]
[{"$nulls":7},"(",null,")","(",null,")"]
[]
[]
["COMS_ADD_RANGE"]

{"sheet":"TEHSHEET","index":9,"n_rows":86,"n_cols":10,"rows_kept":86,"hidden":true,"merged":[[0,0,1,0]]}
["регион","Логика","Кварталы","Года","Единица измерения","Месяц-текст","Месяц-число","День-число",null,"XML_ORG_LIST_TAG_NAMES"]
[null,"да","I квартал",2012,"тыс.руб.","январь","01","01",null,"NSRF"]
["Алтайский край","нет","I полугодие",2013,"млн.руб.","февраль","02","02",null,"MR_NAME"]
["Амурская область",null,"9 месяцев",2014,null,"март","03","03",null,"OKTMO_MR_NAME"]
["Архангельская область",null,"год",2015,"Единица измерения для листа \"Доходы-Расходы\"","апрель","04","04",null,"MO_NAME"]
["Астраханская область","Выбранный регион",null,2016,"руб.","май","05","05",null,"OKTMO_NAME"]
["Белгородская область",0,null,null,"тыс.руб.","июнь","06","06",null,"ORG_NAME"]
["Брянская область",{"$nulls":3},"млн.руб.","июль","07","07",null,"INN_NAME"]
["Владимирская область",{"$nulls":4},"август","08","08",null,"KPP_NAME"]
["Волгоградская область",{"$nulls":4},"сентябрь","09","09"]
["Вологодская область",{"$nulls":4},"октябрь",10,10,null,"XML_MR_MO_OKTMO_LIST_TAG_NAMES"]
["Воронежская область",{"$nulls":4},"ноябрь",11,11,null,"NSRF"]
["г.Байконур",{"$nulls":4},"декабрь",12,12,null,"MR_NAME"]
["г. Москва",{"$nulls":6},13,null,"OKTMO_MR_NAME"]
["г.Санкт-Петербург",{"$nulls":6},14,null,"MO_NAME"]
["Еврейская автономная область",{"$nulls":6},15,null,"OKTMO_NAME"]
["Забайкальский край",{"$nulls":6},16]
["Ивановская область",{"$nulls":6},17]
["Иркутская область",{"$nulls":6},18]
["Кабардино-Балкарская республика",{"$nulls":6},19]
["Калининградская область",{"$nulls":6},20]
["Калужская область",{"$nulls":6},21]
["Камчатский край",{"$nulls":6},22]
["Карачаево-Черкесская республика",{"$nulls":6},23]
["Кемеровская область",{"$nulls":6},24]
["Кировская область",{"$nulls":6},25]
["Костромская область",{"$nulls":6},26]
["Краснодарский край",{"$nulls":6},27]
["Красноярский край",{"$nulls":6},28]
["Курганская область",{"$nulls":6},29]
["Курская область",{"$nulls":6},30]
["Ленинградская область",{"$nulls":6},31]
["Липецкая область"]
["Магаданская область"]
["Московская область"]
["Мурманская область"]
["Ненецкий автономный округ"]
["Нижегородская область"]
["Новгородская область"]
["Новосибирская область"]
["Омская область"]
["Оренбургская область"]
["Орловская область"]
["Пензенская область"]
["Пермский край"]
["Приморский край"]
["Псковская область"]
["Республика Адыгея"]
["Республика Алтай"]
["Республика Башкортостан"]
["Республика Бурятия"]
["Республика Дагестан"]
["Республика Ингушетия"]
["Республика Калмыкия"]
["Республика Карелия"]
["Республика Коми"]
["Республика Марий Эл"]
["Республика Мордовия"]
["Республика Саха (Якутия)"]
["Республика Северная Осетия-Алания"]
["Республика Татарстан"]
["Республика Тыва"]
["Республика Хакасия"]
["Ростовская область"]
["Рязанская область"]
["Самарская область"]
["Саратовская область"]
["Сахалинская область"]
["Свердловская область"]
["Смоленская область"]
["Ставропольский край"]
["Тамбовская область"]
["Тверская область"]
["Томская область"]
["Тульская область"]
["Тюменская область"]
["Удмуртская республика"]
["Ульяновская область"]
["Хабаровский край"]
["Ханты-Мансийский автономный округ"]
["Челябинская область"]
["Чеченская республика"]
["Чувашская республика"]
["Чукотский автономный округ"]
["Ямало-Ненецкий автономный округ"]
["Ярославская область"]

{"sheet":"REESTR_ORG","index":10,"n_rows":2180,"n_cols":8,"rows_kept":2180,"hidden":true}
["№","МР","МО","МО ОКТМО","ОРГАНИЗАЦИЯ","ИНН","КПП","ВИД ДЕЯТЕЛЬНОСТИ"]
[1,"Арбажский муниципальный район","Арбажский муниципальный район","33602000","Администрация Верхотульского с/п","4301001862","430101001"]
[2,"Арбажский муниципальный район","Арбажский муниципальный район","33602000","Администрация МО Сорвижское сп","4301001887","430101001"]
[3,"Арбажский муниципальный район","Арбажский муниципальный район","33602000","ИП Семёновых Сергей Михайлович","430100141870","отсутствует"]
[4,"Арбажский муниципальный район","Арбажский муниципальный район","33602000","ООО \"Комфорт\"","4301002295","430101001"]
[5,"Арбажский муниципальный район","Арбажский муниципальный район","33602000","СПК колхоз \"Рассвет\"","4301001502","430101001"]
[6,"Арбажский муниципальный район","Арбажский муниципальный район","33602000","ФГУП \"РТРС\"","7717127211","771701001"]
[7,"Арбажский муниципальный район","Арбажский муниципальный район","33602000","администрация МО Шембетское сельское поселение Арбажского района","4301001855","430101001"]
[8,"Арбажский муниципальный район","Арбажское","33602151","МРФ \"Волга\" ПАО \"Ростелеком\"","7707049388","526043001"]
[9,"Арбажский муниципальный район","Арбажское","33602151","ООО \"Комфорт\"","4301002295","430101001"]
[10,"Арбажский муниципальный район","Арбажское","33602151","ФГУП \"Почта России\"","7724261610","997750001"]
[11,"Арбажский муниципальный район","Арбажское","33602151","ФГУП \"РТРС\"","7717127211","771701001"]
[12,"Арбажский муниципальный район","Верхотульское","33602416","Администрация Верхотульского с/п","4301001862","430101001"]
[13,"Арбажский муниципальный район","Верхотульское","33602416","МРФ \"Волга\" ПАО \"Ростелеком\"","7707049388","526043001"]
[14,"Арбажский муниципальный район","Верхотульское","33602416","ФГУП \"Почта России\"","7724261610","997750001"]
[15,"Арбажский муниципальный район","Верхотульское","33602416","ФГУП \"РТРС\"","7717127211","771701001"]
[16,"Арбажский муниципальный район","Корминское","33602424","Администрация Корминского с/п","4301001870","430101001"]
[17,"Арбажский муниципальный район","Корминское","33602424","МРФ \"Волга\" ПАО \"Ростелеком\"","7707049388","526043001"]
[18,"Арбажский муниципальный район","Корминское","33602424","ФГУП \"Почта России\"","7724261610","997750001"]
[19,"Арбажский муниципальный район","Корминское","33602424","ФГУП \"РТРС\"","7717127211","771701001"]
[20,"Арбажский муниципальный район","Сорвижское","33602440","Администрация МО Сорвижское сп","4301001887","430101001"]
[21,"Арбажский муниципальный район","Сорвижское","33602440","ИП Семёновых Сергей Михайлович","430100141870","отсутствует"]
[22,"Арбажский муниципальный район","Сорвижское","33602440","МРФ \"Волга\" ПАО \"Ростелеком\"","7707049388","526043001"]
[23,"Арбажский муниципальный район","Сорвижское","33602440","ФГУП \"Почта России\"","7724261610","997750001"]
[24,"Арбажский муниципальный район","Сорвижское","33602440","ФГУП \"РТРС\"","7717127211","771701001"]
[25,"Арбажский муниципальный район","Шембетское","33602452","МРФ \"Волга\" ПАО \"Ростелеком\"","7707049388","526043001"]
[26,"Арбажский муниципальный район","Шембетское","33602452","СПК колхоз \"Рассвет\"","4301001502","430101001"]
[27,"Арбажский муниципальный район","Шембетское","33602452","ФГУП \"Почта России\"","7724261610","997750001"]
[28,"Арбажский муниципальный район","Шембетское","33602452","ФГУП \"РТРС\"","7717127211","771701001"]
[29,"Арбажский муниципальный район","Шембетское","33602452","администрация МО Шембетское сельское поселение Арбажского района","4301001855","430101001"]
[30,"Афанасьевский муниципальный район","Афанасьевский муниципальный район","33603000","МКП ЖКХ \"Лытка\"","4302003904","430201001"]
[31,"Афанасьевский муниципальный район","Афанасьевский муниципальный район","33603000","МКП ЖКХ пгт. Афанасьево","4302003020","430201001"]
[32,"Афанасьевский муниципальный район","Афанасьевский муниципальный район","33603000","ФГУП \"РТРС\"","7717127211","771701001"]
[33,"Афанасьевский муниципальный район","Бисеровское","33603412","МКП ЖКХ пгт. Афанасьево","4302003020","430201001"]
[34,"Афанасьевский муниципальный район","Бисеровское","33603412","МРФ \"Волга\" ПАО \"Ростелеком\"","7707049388","526043001"]
[35,"Афанасьевский муниципальный район","Бисеровское","33603412","ФГУП \"Почта России\"","7724261610","997750001"]
[36,"Афанасьевский муниципальный район","Бисеровское","33603412","ФГУП \"РТРС\"","7717127211","771701001"]
[37,"Афанасьевский муниципальный район","Борское","33603416","ИП Вольхин А.Н.","430200269601","отсутствует"]
[38,"Афанасьевский муниципальный район","Борское","33603416","МРФ \"Волга\" ПАО \"Ростелеком\"","7707049388","526043001"]
[39,"Афанасьевский муниципальный район","Борское","33603416","ФГУП \"Почта России\"","7724261610","997750001"]
[40,"Афанасьевский муниципальный район","Борское","33603416","ФГУП \"РТРС\"","7717127211","771701001"]
[41,"Афанасьевский муниципальный район","Гординское","33603428","ИП Харин И.Н.","430201162202","отсутствует"]
[42,"Афанасьевский муниципальный район","Гординское","33603428","МРФ \"Волга\" ПАО \"Ростелеком\"","7707049388","526043001"]
[43,"Афанасьевский муниципальный район","Гординское","33603428","ФГУП \"Почта России\"","7724261610","997750001"]
[44,"Афанасьевский муниципальный район","Гординское","33603428","ФГУП \"РТРС\"","7717127211","771701001"]
[45,"Афанасьевский муниципальный район","Ичетовкинское","33603404","МКП ЖКХ пгт. Афанасьево","4302003020","430201001"]
[46,"Афанасьевский муниципальный район","Ичетовкинское","33603404","МРФ \"Волга\" ПАО \"Ростелеком\"","7707049388","526043001"]
[47,"Афанасьевский муниципальный район","Ичетовкинское","33603404","ФГУП \"Почта России\"","7724261610","997750001"]
[48,"Афанасьевский муниципальный район","Ичетовкинское","33603404","ФГУП \"РТРС\"","7717127211","771701001"]
[49,"Афанасьевский муниципальный район","Лыткинское","33603448","МКП ЖКХ \"Лытка\"","4302003904","430201001"]
[50,"Афанасьевский муниципальный район","Лыткинское","33603448","МРФ \"Волга\" ПАО \"Ростелеком\"","7707049388","526043001"]
[51,"Афанасьевский муниципальный район","Лыткинское","33603448","ФГУП \"Почта России\"","7724261610","997750001"]
[52,"Афанасьевский муниципальный район","Лыткинское","33603448","ФГУП \"РТРС\"","7717127211","771701001"]
[53,"Афанасьевский муниципальный район","Пашинское","33603456","МКП ЖКХ пгт. Афанасьево","4302003020","430201001"]
[54,"Афанасьевский муниципальный район","Пашинское","33603456","МРФ \"Волга\" ПАО \"Ростелеком\"","7707049388","526043001"]
[55,"Афанасьевский муниципальный район","Пашинское","33603456","ФГУП \"Почта России\"","7724261610","997750001"]
[56,"Афанасьевский муниципальный район","Пашинское","33603456","ФГУП \"РТРС\"","7717127211","771701001"]
[57,"Афанасьевский муниципальный район","Поселок Афанасьево","33603151","МКП ЖКХ пгт. Афанасьево","4302003020","430201001"]
[58,"Афанасьевский муниципальный район","Поселок Афанасьево","33603151","МРФ \"Волга\" ПАО \"Ростелеком\"","7707049388","526043001"]
[59,"Афанасьевский муниципальный район","Поселок Афанасьево","33603151","ООО \"ЭкоПресс\"","4345235931","434501001"]
[60,"Афанасьевский муниципальный район","Поселок Афанасьево","33603151","ФГУП \"Почта России\"","7724261610","997750001"]
[61,"Афанасьевский муниципальный район","Поселок Афанасьево","33603151","ФГУП \"РТРС\"","7717127211","771701001"]
[62,"Белохолуницкий муниципальный район","Белохолуницкий муниципальный район","33605000","ООО \"Белохолуницкий машстройзавод\"","4303004812","430301001"]
[63,"Белохолуницкий муниципальный район","Белохолуницкий муниципальный район","33605000","ООО \"ВБТ-Холуница\"","4345421487","434501001"]
[64,"Белохолуницкий муниципальный район","Белохолуницкий муниципальный район","33605000","ООО \"Диалог\"","4303004562","430301001"]
[65,"Белохолуницкий муниципальный район","Белохолуницкий муниципальный район","33605000","ООО \"Жилсервис\"","4303005132","430301001"]
[66,"Белохолуницкий муниципальный район","Белохолуницкий муниципальный район","33605000","ООО \"Исток\"","4303004330","430301001"]
[67,"Белохолуницкий муниципальный район","Белохолуницкий муниципальный район","33605000","ООО \"Согласие\"","4303004555","430301001"]
[68,"Белохолуницкий муниципальный район","Белохолуницкий муниципальный район","33605000","ООО \"Союз\"","4303005372","430301001"]
[69,"Белохолуницкий муниципальный район","Белохолуницкий муниципальный район","33605000","ООО \"Теплострой\"","4303006440","430301001"]
[70,"Белохолуницкий муниципальный район","Белохолуницкий муниципальный район","33605000","СПК \"Быданово\"","4303003992","430301001"]
[71,"Белохолуницкий муниципальный район","Белохолуницкий муниципальный район","33605000","СПК \"Восход\"","4303000991","430301001"]
[72,"Белохолуницкий муниципальный район","Белохолуницкий муниципальный район","33605000","ФГУП \"РТРС\"","7717127211","771701001"]
[73,"Белохолуницкий муниципальный район","Быдановское","33605408","МРФ \"Волга\" ПАО \"Ростелеком\"","7707049388","526043001"]
[74,"Белохолуницкий муниципальный район","Быдановское","33605408","ООО \"Союз\"","4303005372","430301001"]
[75,"Белохолуницкий муниципальный район","Быдановское","33605408","СПК \"Быданово\"","4303003992","430301001"]
[76,"Белохолуницкий муниципальный район","Быдановское","33605408","ФГУП \"Почта России\"","7724261610","997750001"]
[77,"Белохолуницкий муниципальный район","Быдановское","33605408","ФГУП \"РТРС\"","7717127211","771701001"]
[78,"Белохолуницкий муниципальный район","Всехсвятское","33605420","МРФ \"Волга\" ПАО \"Ростелеком\"","7707049388","526043001"]
[79,"Белохолуницкий муниципальный район","Всехсвятское","33605420","ООО \"Союз\"","4303005372","430301001"]
[80,"Белохолуницкий муниципальный район","Всехсвятское","33605420","ФГУП \"Почта России\"","7724261610","997750001"]
[81,"Белохолуницкий муниципальный район","Всехсвятское","33605420","ФГУП \"РТРС\"","7717127211","771701001"]
[82,"Белохолуницкий муниципальный район","Город Белая Холуница","33605101","МРФ \"Волга\" ПАО \"Ростелеком\"","7707049388","526043001"]
[83,"Белохолуницкий муниципальный район","Город Белая Холуница","33605101","МУП \"Энергетик\"","4303001811","430301001"]
[84,"Белохолуницкий муниципальный район","Город Белая Холуница","33605101","ООО \"Белохолуницкий машстройзавод\"","4303004812","430301001"]
[85,"Белохолуницкий муниципальный район","Город Белая Холуница","33605101","ООО \"ВБТ-Холуница\"","4345421487","434501001"]
[86,"Белохолуницкий муниципальный район","Город Белая Холуница","33605101","ООО \"Исток\"","4303004330","430301001"]
[87,"Белохолуницкий муниципальный район","Город Белая Холуница","33605101","ООО \"Предприятие объединенных котельных\"","4303004450","430301001"]
[88,"Белохолуницкий муниципальный район","Город Белая Холуница","33605101","ООО \"Союз\"","4303005372","430301001"]
[89,"Белохолуницкий муниципальный район","Город Белая Холуница","33605101","ООО \"Станция биологической очистки-плюс\"","4303001963","430301001"]
[90,"Белохолуницкий муниципальный район","Город Белая Холуница","33605101","ФГУП \"Почта России\"","7724261610","997750001"]
[91,"Белохолуницкий муниципальный район","Город Белая Холуница","33605101","ФГУП \"РТРС\"","7717127211","771701001"]
[92,"Белохолуницкий муниципальный район","Гуренское","33605422","МРФ \"Волга\" ПАО \"Ростелеком\"","7707049388","526043001"]
[93,"Белохолуницкий муниципальный район","Гуренское","33605422","ООО \"Союз\"","4303005372","430301001"]
[94,"Белохолуницкий муниципальный район","Гуренское","33605422","ФГУП \"Почта России\"","7724261610","997750001"]
[95,"Белохолуницкий муниципальный район","Гуренское","33605422","ФГУП \"РТРС\"","7717127211","771701001"]
[96,"Белохолуницкий муниципальный район","Дубровское","33605423","МРФ \"Волга\" ПАО \"Ростелеком\"","7707049388","526043001"]
[97,"Белохолуницкий муниципальный район","Дубровское","33605423","ООО \"Диалог\"","4303004562","430301001"]
[98,"Белохолуницкий муниципальный район","Дубровское","33605423","ФГУП \"Почта России\"","7724261610","997750001"]
[99,"Белохолуницкий муниципальный район","Дубровское","33605423","ФГУП \"РТРС\"","7717127211","771701001"]
[100,"Белохолуницкий муниципальный район","Климковское","33605428","КОГКУСО «Климковский психоневрологический интернат»","4303001297","430301001"]
[101,"Белохолуницкий муниципальный район","Климковское","33605428","МРФ \"Волга\" ПАО \"Ростелеком\"","7707049388","526043001"]
[102,"Белохолуницкий муниципальный район","Климковское","33605428","ООО \"Жилсервис\"","4303005132","430301001"]
[103,"Белохолуницкий муниципальный район","Климковское","33605428","ООО «Велес»","4303006249","430301001"]
[104,"Белохолуницкий муниципальный район","Климковское","33605428","ФГУП \"Почта России\"","7724261610","997750001"]
[105,"Белохолуницкий муниципальный район","Климковское","33605428","ФГУП \"РТРС\"","7717127211","771701001"]
[106,"Белохолуницкий муниципальный район","Подрезчихинское","33605436","МРФ \"Волга\" ПАО \"Ростелеком\"","7707049388","526043001"]
[107,"Белохолуницкий муниципальный район","Подрезчихинское","33605436","ООО \"Согласие\"","4303004555","430301001"]
[108,"Белохолуницкий муниципальный район","Подрезчихинское","33605436","ФГУП \"Почта России\"","7724261610","997750001"]
[109,"Белохолуницкий муниципальный район","Подрезчихинское","33605436","ФГУП \"РТРС\"","7717127211","771701001"]
[110,"Белохолуницкий муниципальный район","Поломское","33605440","МРФ \"Волга\" ПАО \"Ростелеком\"","7707049388","526043001"]
[111,"Белохолуницкий муниципальный район","Поломское","33605440","ООО \"Союз\"","4303005372","430301001"]
[112,"Белохолуницкий муниципальный район","Поломское","33605440","ООО \"Теплострой\"","4303006440","430301001"]
[113,"Белохолуницкий муниципальный район","Поломское","33605440","СПК \"Восход\"","4303000991","430301001"]
[114,"Белохолуницкий муниципальный район","Поломское","33605440","ФГУП \"Почта России\"","7724261610","997750001"]
[115,"Белохолуницкий муниципальный район","Поломское","33605440","ФГУП \"РТРС\"","7717127211","771701001"]
[116,"Белохолуницкий муниципальный район","Прокопьевское","33605444","МРФ \"Волга\" ПАО \"Ростелеком\"","7707049388","526043001"]
[117,"Белохолуницкий муниципальный район","Прокопьевское","33605444","ООО \"Союз\"","4303005372","430301001"]
[118,"Белохолуницкий муниципальный район","Прокопьевское","33605444","ФГУП \"Почта России\"","7724261610","997750001"]
[119,"Белохолуницкий муниципальный район","Прокопьевское","33605444","ФГУП \"РТРС\"","7717127211","771701001"]
[120,"Белохолуницкий муниципальный район","Ракаловское","33605448","МРФ \"Волга\" ПАО \"Ростелеком\"","7707049388","526043001"]
[121,"Белохолуницкий муниципальный район","Ракаловское","33605448","ФГУП \"Почта России\"","7724261610","997750001"]
[122,"Белохолуницкий муниципальный район","Ракаловское","33605448","ФГУП \"РТРС\"","7717127211","771701001"]
[123,"Белохолуницкий муниципальный район","Троицкое","33605456","МРФ \"Волга\" ПАО \"Ростелеком\"","7707049388","526043001"]
[124,"Белохолуницкий муниципальный район","Троицкое","33605456","ООО \"Союз\"","4303005372","430301001"]
[125,"Белохолуницкий муниципальный район","Троицкое","33605456","ФГУП \"Почта России\"","7724261610","997750001"]
[126,"Белохолуницкий муниципальный район","Троицкое","33605456","ФГУП \"РТРС\"","7717127211","771701001"]
[127,"Богородский муниципальный район","Богородский муниципальный район","33606000","Администрация Ошланского с/п","4304001677","430401001"]
[128,"Богородский муниципальный район","Богородский муниципальный район","33606000","МУП \"ЖКХ\" Богородского района","4304001934","430401001"]
[129,"Богородский муниципальный район","Богородский муниципальный район","33606000","ООО \"Стимул\"","4304001500","430401001"]
[130,"Богородский муниципальный район","Богородский муниципальный район","33606000","СПК (колхоз) \"Красное знамя\"","4314000369","431401001"]
[131,"Богородский муниципальный район","Богородский муниципальный район","33606000","ФГУП \"РТРС\"","7717127211","771701001"]
[132,"Богородский муниципальный район","Ошланское","33606412","Администрация Ошланского с/п","4304001677","430401001"]
[133,"Богородский муниципальный район","Ошланское","33606412","МРФ \"Волга\" ПАО \"Ростелеком\"","7707049388","526043001"]
[134,"Богородский муниципальный район","Ошланское","33606412","МУП \"ЖКХ\" Богородского района","4304001934","430401001"]
[135,"Богородский муниципальный район","Ошланское","33606412","СПК (колхоз) \"Красное знамя\"","4314000369","431401001"]
[136,"Богородский муниципальный район","Ошланское","33606412","ФГУП \"Почта России\"","7724261610","997750001"]
[137,"Богородский муниципальный район","Ошланское","33606412","ФГУП \"РТРС\"","7717127211","771701001"]
[138,"Богородский муниципальный район","Поселок Богородское","33606151","МРФ \"Волга\" ПАО \"Ростелеком\"","7707049388","526043001"]
[139,"Богородский муниципальный район","Поселок Богородское","33606151","ООО \"Стимул\"","4304001500","430401001"]
[140,"Богородский муниципальный район","Поселок Богородское","33606151","ФГУП \"Почта России\"","7724261610","997750001"]
[141,"Богородский муниципальный район","Поселок Богородское","33606151","ФГУП \"РТРС\"","7717127211","771701001"]
[142,"Верхнекамский муниципальный район","Верхнекамский муниципальный район","33607000","Администрация Светловского сельского поселения","4313005678","431301001"]
[143,"Верхнекамский муниципальный район","Верхнекамский муниципальный район","33607000","Горьковская дирекция по тепловодоснабжению структурное подразделение Центральной дирекции по тепловодоснабжению - филиала ОАО \"РЖД\"","7708503727","525745041"]
[144,"Верхнекамский муниципальный район","Верхнекамский муниципальный район","33607000","КОГУП \"Облкоммунсервис\"","4346041093","434501001"]
[145,"Верхнекамский муниципальный район","Верхнекамский муниципальный район","33607000","МУП \"Животновод\"","4305001609","430501001"]
[146,"Верхнекамский муниципальный район","Верхнекамский муниципальный район","33607000","МУП ЖКХ Светлополянск","4305005258","430501001"]
[147,"Верхнекамский муниципальный район","Верхнекамский муниципальный район","33607000","МУП ЖКХ п. Рудничный","4305004906","430501001"]
[148,"Верхнекамский муниципальный район","Верхнекамский муниципальный район","33607000","ООО \"Жилищно-коммунальное хозяйство \"Ресурс\" п. Лесной\"","4305005339","430501001"]
[149,"Верхнекамский муниципальный район","Верхнекамский муниципальный район","33607000","ООО \"Кирсинская теплоснабжающая компания\"","4345384041","434501001"]
[150,"Верхнекамский муниципальный район","Верхнекамский муниципальный район","33607000","ООО \"Премьер\"","4305002426","430501001"]
[151,"Верхнекамский муниципальный район","Верхнекамский муниципальный район","33607000","ООО «Ресурс»","4305002948","430501001"]
[152,"Верхнекамский муниципальный район","Верхнекамский муниципальный район","33607000","ФГУП \"РТРС\"","7717127211","771701001"]
[153,"Верхнекамский муниципальный район","Верхнекамский муниципальный район","33607000","ФКУ «ИК № 20 УФСИН по Кировской области»","4305002440","430501001"]
[154,"Верхнекамский муниципальный район","Верхнекамский муниципальный район","33607000","ФКУ БМТ и ВС УФСИН России по Кировской области","4305003211","434501001"]
[155,"Верхнекамский муниципальный район","Верхнекамский муниципальный район","33607000","Филиал ОАО \"РЖД\" ГЖД Кировский региональный центр дирекции по тепловодоснабжению","7708503727","435731037"]
[156,"Верхнекамский муниципальный район","Город Кирс","33607101","Горьковская дирекция по тепловодоснабжению структурное подразделение Центральной дирекции по тепловодоснабжению - филиала ОАО \"РЖД\"","7708503727","525745041"]
[157,"Верхнекамский муниципальный район","Город Кирс","33607101","ИП Одяков Сергей Петрович","430500093204","430501001"]
[158,"Верхнекамский муниципальный район","Город Кирс","33607101","МРФ \"Волга\" ПАО \"Ростелеком\"","7707049388","526043001"]
[159,"Верхнекамский муниципальный район","Город Кирс","33607101","ООО \"Кирсинская теплоснабжающая компания\"","4345384041","434501001"]
[160,"Верхнекамский муниципальный район","Город Кирс","33607101","ООО \"Премьер\"","4305002426","430501001"]
[161,"Верхнекамский муниципальный район","Город Кирс","33607101","ООО «Ресурс»","4305002948","430501001"]
[162,"Верхнекамский муниципальный район","Город Кирс","33607101","ФГУП \"Почта России\"","7724261610","997750001"]
[163,"Верхнекамский муниципальный район","Город Кирс","33607101","ФГУП \"РТРС\"","7717127211","771701001"]
[164,"Верхнекамский муниципальный район","Город Кирс","33607101","Филиал ОАО \"РЖД\" ГЖД Кировский региональный центр дирекции по тепловодоснабжению","7708503727","435731037"]
[165,"Верхнекамский муниципальный район","Кайское","33607420","МРФ \"Волга\" ПАО \"Ростелеком\"","7707049388","526043001"]
[166,"Верхнекамский муниципальный район","Кайское","33607420","МУП \"Животновод\"","4305001609","430501001"]
[167,"Верхнекамский муниципальный район","Кайское","33607420","ФГУП \"Почта России\"","7724261610","997750001"]
[168,"Верхнекамский муниципальный район","Кайское","33607420","ФГУП \"РТРС\"","7717127211","771701001"]
[169,"Верхнекамский муниципальный район","Камское","33607424","МРФ \"Волга\" ПАО \"Ростелеком\"","7707049388","526043001"]
[170,"Верхнекамский муниципальный район","Камское","33607424","ФГУП \"Почта России\"","7724261610","997750001"]
[171,"Верхнекамский муниципальный район","Камское","33607424","ФГУП \"РТРС\"","7717127211","771701001"]
[172,"Верхнекамский муниципальный район","Лойнское","33607428","МРФ \"Волга\" ПАО \"Ростелеком\"","7707049388","526043001"]
[173,"Верхнекамский муниципальный район","Лойнское","33607428","ФГУП \"Почта России\"","7724261610","997750001"]
[174,"Верхнекамский муниципальный район","Лойнское","33607428","ФГУП \"РТРС\"","7717127211","771701001"]
[175,"Верхнекамский муниципальный район","Поселок Лесной","33607154","МРФ \"Волга\" ПАО \"Ростелеком\"","7707049388","526043001"]
[176,"Верхнекамский муниципальный район","Поселок Лесной","33607154","ООО \"Жилищно-коммунальное хозяйство \"Ресурс\" п. Лесной\"","4305005339","430501001"]
[177,"Верхнекамский муниципальный район","Поселок Лесной","33607154","ФГУП \"Почта России\"","7724261610","997750001"]
[178,"Верхнекамский муниципальный район","Поселок Лесной","33607154","ФГУП \"РТРС\"","7717127211","771701001"]
[179,"Верхнекамский муниципальный район","Поселок Лесной","33607154","ФКУ «ИК № 20 УФСИН по Кировской области»","4305002440","430501001"]
[180,"Верхнекамский муниципальный район","Поселок Лесной","33607154","ФКУ БМТ и ВС УФСИН России по Кировской области","4305003211","434501001"]
[181,"Верхнекамский муниципальный район","Поселок Лесной","33607154","ФКУ ОИК-4 УФСИН России по Кировской области","4305004423","430501001"]
[182,"Верхнекамский муниципальный район","Поселок Рудничный","33607160","КОГУП \"Облкоммунсервис\"","4346041093","434501001"]
[183,"Верхнекамский муниципальный район","Поселок Рудничный","33607160","МРФ \"Волга\" ПАО \"Ростелеком\"","7707049388","526043001"]
[184,"Верхнекамский муниципальный район","Поселок Рудничный","33607160","МУП ЖКХ п. Рудничный","4305004906","430501001"]
[185,"Верхнекамский муниципальный район","Поселок Рудничный","33607160","ФГУП \"Почта России\"","7724261610","997750001"]
[186,"Верхнекамский муниципальный район","Поселок Рудничный","33607160","ФГУП \"РТРС\"","7717127211","771701001"]
[187,"Верхнекамский муниципальный район","Поселок Рудничный","33607160","ФКУ БМТ и ВС УФСИН России по Кировской области","4305003211","434501001"]
[188,"Верхнекамский муниципальный район","Поселок Светлополянск","33607162","Администрация Светловского сельского поселения","4313005678","431301001"]
[189,"Верхнекамский муниципальный район","Поселок Светлополянск","33607162","КОГУП \"Облкоммунсервис\"","4346041093","434501001"]
[190,"Верхнекамский муниципальный район","Поселок Светлополянск","33607162","МРФ \"Волга\" ПАО \"Ростелеком\"","7707049388","526043001"]
[191,"Верхнекамский муниципальный район","Поселок Светлополянск","33607162","МУП ЖКХ Светлополянск","4305005258","430501001"]
[192,"Верхнекамский муниципальный район","Поселок Светлополянск","33607162","ФГУП \"Почта России\"","7724261610","997750001"]
[193,"Верхнекамский муниципальный район","Поселок Светлополянск","33607162","ФГУП \"РТРС\"","7717127211","771701001"]
[194,"Верхнекамский муниципальный район","Созимское","33607434","МРФ \"Волга\" ПАО \"Ростелеком\"","7707049388","526043001"]
[195,"Верхнекамский муниципальный район","Созимское","33607434","ООО \"Жилищно-коммунальное хозяйство \"Ресурс\" п. Лесной\"","4305005339","430501001"]
[196,"Верхнекамский муниципальный район","Созимское","33607434","ФГУП \"Почта России\"","7724261610","997750001"]
[197,"Верхнекамский муниципальный район","Созимское","33607434","ФГУП \"РТРС\"","7717127211","771701001"]
[198,"Верхнекамский муниципальный район","Созимское","33607434","ФКУ БМТ и ВС УФСИН России по Кировской области","4305003211","434501001"]
[199,"Верхнекамский муниципальный район","Чусовского","33607436","МРФ \"Волга\" ПАО \"Ростелеком\"","7707049388","526043001"]
[200,"Верхнекамский муниципальный район","Чусовского","33607436","ФГУП \"Почта России\"","7724261610","997750001"]
[201,"Верхнекамский муниципальный район","Чусовского","33607436","ФГУП \"РТРС\"","7717127211","771701001"]
[202,"Верхошижемский муниципальный район","Верхошижемский муниципальный район","33608000","Администрация Верхошижемского г/п","4306002362","430601001"]
[203,"Верхошижемский муниципальный район","Верхошижемский муниципальный район","33608000","Администрация Мякишинского с/п","4306002475","430601001"]
[204,"Верхошижемский муниципальный район","Верхошижемский муниципальный район","33608000","ИП Головин А. Н.","430600635500","отсутствует"]
[205,"Верхошижемский муниципальный район","Верхошижемский муниципальный район","33608000","ИП Золотарев В.М.","430600723210","отсутствует"]
[206,"Верхошижемский муниципальный район","Верхошижемский муниципальный район","33608000","КОГКУСО \"Верхошижемский психоневрологический интернат\"","4306001217","430601001"]
[207,"Верхошижемский муниципальный район","Верхошижемский муниципальный район","33608000","ООО \"ВодСнабМонтаж\"","4306003285","430601001"]
[208,"Верхошижемский муниципальный район","Верхошижемский муниципальный район","33608000","ООО \"СХП \"Косино\"","4306003158","430601001"]
[209,"Верхошижемский муниципальный район","Верхошижемский муниципальный район","33608000","ООО \"Теплоэнергоресурс\"","4345404682","434501001"]
[210,"Верхошижемский муниципальный район","Верхошижемский муниципальный район","33608000","ООО \"УК ЖКХ Водолей\"","4306002958","430601001"]
[211,"Верхошижемский муниципальный район","Верхошижемский муниципальный район","33608000","СПК \"Звезда\"","4306002820","430601001"]
[212,"Верхошижемский муниципальный район","Верхошижемский муниципальный район","33608000","СПК \"Угор\"","4306002789","430601001"]
[213,"Верхошижемский муниципальный район","Верхошижемский муниципальный район","33608000","СПК колхоз \"Зониха\"","4306002740","430601001"]
[214,"Верхошижемский муниципальный район","Верхошижемский муниципальный район","33608000","СПК колхоз \"Пунгино\"","4306002806","430601001"]
[215,"Верхошижемский муниципальный район","Верхошижемский муниципальный район","33608000","СПК колхоз \"Русь\"","4306000407","430601001"]
[216,"Верхошижемский муниципальный район","Верхошижемский муниципальный район","33608000","ФГУП \"РТРС\"","7717127211","771701001"]
[217,"Верхошижемский муниципальный район","Верхошижемский муниципальный район","33608000","ФГУП \"СП \"Нива\"","4306002073","430601001"]
[218,"Верхошижемский муниципальный район","Зоновское","33608416","МРФ \"Волга\" ПАО \"Ростелеком\"","7707049388","526043001"]
[219,"Верхошижемский муниципальный район","Зоновское","33608416","ООО \"Теплоэнергоресурс\"","4345404682","434501001"]
[220,"Верхошижемский муниципальный район","Зоновское","33608416","СПК колхоз \"Зониха\"","4306002740","430601001"]
[221,"Верхошижемский муниципальный район","Зоновское","33608416","ФГУП \"Почта России\"","7724261610","997750001"]
[222,"Верхошижемский муниципальный район","Зоновское","33608416","ФГУП \"РТРС\"","7717127211","771701001"]
[223,"Верхошижемский муниципальный район","Калачиговское","33608418","ИП Золотарев В.М.","430600723210","отсутствует"]
[224,"Верхошижемский муниципальный район","Калачиговское","33608418","МРФ \"Волга\" ПАО \"Ростелеком\"","7707049388","526043001"]
[225,"Верхошижемский муниципальный район","Калачиговское","33608418","СПК колхоз \"Русь\"","4306000407","430601001"]
[226,"Верхошижемский муниципальный район","Калачиговское","33608418","ФГУП \"Почта России\"","7724261610","997750001"]
[227,"Верхошижемский муниципальный район","Калачиговское","33608418","ФГУП \"РТРС\"","7717127211","771701001"]
[228,"Верхошижемский муниципальный район","Калачиговское","33608418","ФГУП \"СП \"Нива\"","4306002073","430601001"]
[229,"Верхошижемский муниципальный район","Косинское","33608420","ИП Головин А. Н.","430600635500","отсутствует"]
[230,"Верхошижемский муниципальный район","Косинское","33608420","МРФ \"Волга\" ПАО \"Ростелеком\"","7707049388","526043001"]
[231,"Верхошижемский муниципальный район","Косинское","33608420","ООО \"СХП \"Косино\"","4306003158","430601001"]
[232,"Верхошижемский муниципальный район","Косинское","33608420","ФГУП \"Почта России\"","7724261610","997750001"]
[233,"Верхошижемский муниципальный район","Косинское","33608420","ФГУП \"РТРС\"","7717127211","771701001"]
[234,"Верхошижемский муниципальный район","Мякишинское","33608424","Администрация Мякишинского с/п","4306002475","430601001"]
[235,"Верхошижемский муниципальный район","Мякишинское","33608424","ИП Головин А. Н.","430600635500","отсутствует"]
[236,"Верхошижемский муниципальный район","Мякишинское","33608424","МРФ \"Волга\" ПАО \"Ростелеком\"","7707049388","526043001"]
[237,"Верхошижемский муниципальный район","Мякишинское","33608424","ФГУП \"Почта России\"","7724261610","997750001"]
[238,"Верхошижемский муниципальный район","Мякишинское","33608424","ФГУП \"РТРС\"","7717127211","771701001"]
[239,"Верхошижемский муниципальный район","Поселок Верхошижемье","33608151","Администрация Верхошижемского г/п","4306002362","430601001"]
[240,"Верхошижемский муниципальный район","Поселок Верхошижемье","33608151","ИП Золотарев В.М.","430600723210","отсутствует"]
[241,"Верхошижемский муниципальный район","Поселок Верхошижемье","33608151","КОГКУСО \"Верхошижемский психоневрологический интернат\"","4306001217","430601001"]
[242,"Верхошижемский муниципальный район","Поселок Верхошижемье","33608151","МРФ \"Волга\" ПАО \"Ростелеком\"","7707049388","526043001"]
[243,"Верхошижемский муниципальный район","Поселок Верхошижемье","33608151","МУП \"Базис\"","4306002771","430601001"]
[244,"Верхошижемский муниципальный район","Поселок Верхошижемье","33608151","ООО \"ВодСнабМонтаж\"","4306003285","430601001"]
[245,"Верхошижемский муниципальный район","Поселок Верхошижемье","33608151","ООО «Гейзер»","4306003239","430601001"]
[246,"Верхошижемский муниципальный район","Поселок Верхошижемье","33608151","ФГУП \"Почта России\"","7724261610","997750001"]
[247,"Верхошижемский муниципальный район","Поселок Верхошижемье","33608151","ФГУП \"РТРС\"","7717127211","771701001"]
[248,"Верхошижемский муниципальный район","Пунгинское","33608428","МРФ \"Волга\" ПАО \"Ростелеком\"","7707049388","526043001"]
[249,"Верхошижемский муниципальный район","Пунгинское","33608428","МУП \"Базис\"","4306002771","430601001"]
[250,"Верхошижемский муниципальный район","Пунгинское","33608428","СПК колхоз \"Пунгино\"","4306002806","430601001"]
[251,"Верхошижемский муниципальный район","Пунгинское","33608428","ФГУП \"Почта России\"","7724261610","997750001"]
[252,"Верхошижемский муниципальный район","Пунгинское","33608428","ФГУП \"РТРС\"","7717127211","771701001"]
[253,"Верхошижемский муниципальный район","Среднеивкинское","33608432","МРФ \"Волга\" ПАО \"Ростелеком\"","7707049388","526043001"]
[254,"Верхошижемский муниципальный район","Среднеивкинское","33608432","ООО \"УК ЖКХ Водолей\"","4306002958","430601001"]
[255,"Верхошижемский муниципальный район","Среднеивкинское","33608432","ООО «Гейзер»","4306003239","430601001"]
[256,"Верхошижемский муниципальный район","Среднеивкинское","33608432","ФГУП \"Почта России\"","7724261610","997750001"]
[257,"Верхошижемский муниципальный район","Среднеивкинское","33608432","ФГУП \"РТРС\"","7717127211","771701001"]
[258,"Верхошижемский муниципальный район","Сырдинское","33608436","МРФ \"Волга\" ПАО \"Ростелеком\"","7707049388","526043001"]
[259,"Верхошижемский муниципальный район","Сырдинское","33608436","ООО «Гейзер»","4306003239","430601001"]
[260,"Верхошижемский муниципальный район","Сырдинское","33608436","СПК \"Звезда\"","4306002820","430601001"]
[261,"Верхошижемский муниципальный район","Сырдинское","33608436","ФГУП \"Почта России\"","7724261610","997750001"]
[262,"Верхошижемский муниципальный район","Сырдинское","33608436","ФГУП \"РТРС\"","7717127211","771701001"]
[263,"Верхошижемский муниципальный район","Угорское","33608440","МРФ \"Волга\" ПАО \"Ростелеком\"","7707049388","526043001"]
[264,"Верхошижемский муниципальный район","Угорское","33608440","ООО «Гейзер»","4306003239","430601001"]
[265,"Верхошижемский муниципальный район","Угорское","33608440","СПК \"Угор\"","4306002789","430601001"]
[266,"Верхошижемский муниципальный район","Угорское","33608440","ФГУП \"Почта России\"","7724261610","997750001"]
[267,"Верхошижемский муниципальный район","Угорское","33608440","ФГУП \"РТРС\"","7717127211","771701001"]
[268,"Вятские Поляны","Вятские Поляны","33704000","Вятско-Полянское районное потребительское общество","4307000022","430701001"]
[269,"Вятские Поляны","Вятские Поляны","33704000","МРФ \"Волга\" ПАО \"Ростелеком\"","7707049388","526043001"]
[270,"Вятские Поляны","Вятские Поляны","33704000","МУП Коммунальные Энергетические Системы \"Энерго\"","4340000559","430701001"]
[271,"Вятские Поляны","Вятские Поляны","33704000","ОАО \"Вятско-Полянская птицефабрика\"","4307003680","430701001"]
[272,"Вятские Поляны","Вятские Поляны","33704000","ОАО \"Вятскополянский машиностроительный завод \"Молот\"","4340000830","430701001"]
[273,"Вятские Поляны","Вятские Поляны","33704000","ООО \"Водоканал\"","4307015614","430701001"]
[274,"Вятские Поляны","Вятские Поляны","33704000","ООО \"Малая энергетика\"","4307003697","430701001"]
[275,"Вятские Поляны","Вятские Поляны","33704000","ООО \"Молот-Оружие\"","4307012765","430701001"]
[276,"Вятские Поляны","Вятские Поляны","33704000","ООО \"Тепловик\"","4307006916","430701001"]
[277,"Вятские Поляны","Вятские Поляны","33704000","ООО \"Экотех\"","4307010084","430701001"]
[278,"Вятские Поляны","Вятские Поляны","33704000","ООО Водоотведение","4307017925","430701001"]
[279,"Вятские Поляны","Вятские Поляны","33704000","ПАО «МРСК «Центра и Приволжья»","5260200603","434502001"]
[280,"Вятские Поляны","Вятские Поляны","33704000","ФГУП \"Почта России\"","7724261610","997750001"]
[281,"Вятские Поляны","Вятские Поляны","33704000","ФГУП \"РТРС\"","7717127211","771701001"]
[282,"Вятскополянский муниципальный район","Вятскополянский муниципальный район","33610000","ИП Чернов А.Ю.","430705090645","отсутствует"]
[283,"Вятскополянский муниципальный район","Вятскополянский муниципальный район","33610000","МКП \"Коммунальщик\"","4307010863","430701001"]
[284,"Вятскополянский муниципальный район","Вятскополянский муниципальный район","33610000","МУП \"Краснополянский водоканал\"","4307008409","430701001"]
[285,"Вятскополянский муниципальный район","Вятскополянский муниципальный район","33610000","ООО \"Алмаз 1\"","4307010408","430701001"]
[286,"Вятскополянский муниципальный район","Вятскополянский муниципальный район","33610000","ООО \"Краснополянский жилкомхоз\"","4307008430","430701001"]
[287,"Вятскополянский муниципальный район","Вятскополянский муниципальный район","33610000","ООО \"Малая энергетика\"","4307003697","430701001"]
[288,"Вятскополянский муниципальный район","Вятскополянский муниципальный район","33610000","ООО \"Манна\"","4307015565","430701001"]
[289,"Вятскополянский муниципальный район","Вятскополянский муниципальный район","33610000","ООО \"Сосновский Водоканал\"","4307008247","430701001"]
[290,"Вятскополянский муниципальный район","Вятскополянский муниципальный район","33610000","ООО «Омга»","4307009145","430701001"]
[291,"Вятскополянский муниципальный район","Вятскополянский муниципальный район","33610000","ФГКУ комбинат \"Ударник\" Росрезерва","4307000840","430701001"]
[292,"Вятскополянский муниципальный район","Вятскополянский муниципальный район","33610000","ФГУП \"РТРС\"","7717127211","771701001"]
[293,"Вятскополянский муниципальный район","Город Сосновка","33610104","МРФ \"Волга\" ПАО \"Ростелеком\"","7707049388","526043001"]
[294,"Вятскополянский муниципальный район","Город Сосновка","33610104","МУП \"Сосновское\"","4307008818","430701001"]
[295,"Вятскополянский муниципальный район","Город Сосновка","33610104","ООО \"Сосновский Водоканал\"","4307008247","430701001"]
[296,"Вятскополянский муниципальный район","Город Сосновка","33610104","ООО \"Стройсервис\"","4307010060","430701001"]
[297,"Вятскополянский муниципальный район","Город Сосновка","33610104","ООО «Коммунальная энергетика»","4307008230","430701001"]
[298,"Вятскополянский муниципальный район","Город Сосновка","33610104","ФГУП \"Почта России\"","7724261610","997750001"]
[299,"Вятскополянский муниципальный район","Город Сосновка","33610104","ФГУП \"РТРС\"","7717127211","771701001"]
[300,"Вятскополянский муниципальный район","Гремячевское","33610404","МКП \"Прометей\"","4307012010","430701001"]
[301,"Вятскополянский муниципальный район","Гремячевское","33610404","МРФ \"Волга\" ПАО \"Ростелеком\"","7707049388","526043001"]
[302,"Вятскополянский муниципальный район","Гремячевское","33610404","ФГУП \"Почта России\"","7724261610","997750001"]
[303,"Вятскополянский муниципальный район","Гремячевское","33610404","ФГУП \"РТРС\"","7717127211","771701001"]
[304,"Вятскополянский муниципальный район","Ершовское","33610406","МКП \"Коммунальщик\"","4307010863","430701001"]
[305,"Вятскополянский муниципальный район","Ершовское","33610406","МРФ \"Волга\" ПАО \"Ростелеком\"","7707049388","526043001"]
[306,"Вятскополянский муниципальный район","Ершовское","33610406","ФГУП \"Почта России\"","7724261610","997750001"]
[307,"Вятскополянский муниципальный район","Ершовское","33610406","ФГУП \"РТРС\"","7717127211","771701001"]
[308,"Вятскополянский муниципальный район","Кулыжское","33610408","МКП \"Коммунальщик\"","4307010863","430701001"]
[309,"Вятскополянский муниципальный район","Кулыжское","33610408","МРФ \"Волга\" ПАО \"Ростелеком\"","7707049388","526043001"]
[310,"Вятскополянский муниципальный район","Кулыжское","33610408","ООО \"Малая энергетика\"","4307003697","430701001"]
[311,"Вятскополянский муниципальный район","Кулыжское","33610408","ФГУП \"Почта России\"","7724261610","997750001"]
[312,"Вятскополянский муниципальный район","Кулыжское","33610408","ФГУП \"РТРС\"","7717127211","771701001"]
[313,"Вятскополянский муниципальный район","Новобурецкое","33610410","МКП \"Коммунальщик\"","4307010863","430701001"]
[314,"Вятскополянский муниципальный район","Новобурецкое","33610410","МРФ \"Волга\" ПАО \"Ростелеком\"","7707049388","526043001"]
[315,"Вятскополянский муниципальный район","Новобурецкое","33610410","ФГУП \"Почта России\"","7724261610","997750001"]
[316,"Вятскополянский муниципальный район","Новобурецкое","33610410","ФГУП \"РТРС\"","7717127211","771701001"]
[317,"Вятскополянский муниципальный район","Омгинское","33610412","МРФ \"Волга\" ПАО \"Ростелеком\"","7707049388","526043001"]
[318,"Вятскополянский муниципальный район","Омгинское","33610412","ООО «Омга»","4307009145","430701001"]
[319,"Вятскополянский муниципальный район","Омгинское","33610412","ФГУП \"Почта России\"","7724261610","997750001"]
[320,"Вятскополянский муниципальный район","Омгинское","33610412","ФГУП \"РТРС\"","7717127211","771701001"]
[321,"Вятскополянский муниципальный район","Поселок Красная Поляна","33610154","МРФ \"Волга\" ПАО \"Ростелеком\"","7707049388","526043001"]
[322,"Вятскополянский муниципальный район","Поселок Красная Поляна","33610154","МУП \"Краснополянский водоканал\"","4307008409","430701001"]
[323,"Вятскополянский муниципальный район","Поселок Красная Поляна","33610154","ООО \"Краснополянский жилкомхоз\"","4307008430","430701001"]
[324,"Вятскополянский муниципальный район","Поселок Красная Поляна","33610154","ООО \"Краснополянский тепловик\"","4307008470","430701001"]
[325,"Вятскополянский муниципальный район","Поселок Красная Поляна","33610154","ФГКУ комбинат \"Ударник\" Росрезерва","4307000840","430701001"]
[326,"Вятскополянский муниципальный район","Поселок Красная Поляна","33610154","ФГУП \"Почта России\"","7724261610","997750001"]
[327,"Вятскополянский муниципальный район","Поселок Красная Поляна","33610154","ФГУП \"РТРС\"","7717127211","771701001"]
[328,"Вятскополянский муниципальный район","Слудское","33610416","МРФ \"Волга\" ПАО \"Ростелеком\"","7707049388","526043001"]
[329,"Вятскополянский муниципальный район","Слудское","33610416","ООО \"Алмаз 1\"","4307010408","430701001"]
[330,"Вятскополянский муниципальный район","Слудское","33610416","ФГУП \"Почта России\"","7724261610","997750001"]
[331,"Вятскополянский муниципальный район","Слудское","33610416","ФГУП \"РТРС\"","7717127211","771701001"]
[332,"Вятскополянский муниципальный район","Среднетойменское","33610420","ИП Чернов А.Ю.","430705090645","отсутствует"]
[333,"Вятскополянский муниципальный район","Среднетойменское","33610420","МКП \"Коммунальщик\"","4307010863","430701001"]
[334,"Вятскополянский муниципальный район","Среднетойменское","33610420","МРФ \"Волга\" ПАО \"Ростелеком\"","7707049388","526043001"]
[335,"Вятскополянский муниципальный район","Среднетойменское","33610420","ФГУП \"Почта России\"","7724261610","997750001"]
[336,"Вятскополянский муниципальный район","Среднетойменское","33610420","ФГУП \"РТРС\"","7717127211","771701001"]
[337,"Вятскополянский муниципальный район","Среднешунское","33610424","МРФ \"Волга\" ПАО \"Ростелеком\"","7707049388","526043001"]
[338,"Вятскополянский муниципальный район","Среднешунское","33610424","ООО \"Газтехсервис\"","4307009280","430701001"]
[339,"Вятскополянский муниципальный район","Среднешунское","33610424","ООО \"Манна\"","4307015565","430701001"]
[340,"Вятскополянский муниципальный район","Среднешунское","33610424","ФГУП \"Почта России\"","7724261610","997750001"]
[341,"Вятскополянский муниципальный район","Среднешунское","33610424","ФГУП \"РТРС\"","7717127211","771701001"]
[342,"Вятскополянский муниципальный район","Старопинигерское","33610426","МКП \"Коммунальщик\"","4307010863","430701001"]
[343,"Вятскополянский муниципальный район","Старопинигерское","33610426","МРФ \"Волга\" ПАО \"Ростелеком\"","7707049388","526043001"]
[344,"Вятскополянский муниципальный район","Старопинигерское","33610426","ФГУП \"Почта России\"","7724261610","997750001"]
[345,"Вятскополянский муниципальный район","Старопинигерское","33610426","ФГУП \"РТРС\"","7717127211","771701001"]
[346,"Вятскополянский муниципальный район","Усть-Люгинское","33610428","МКП \"Коммунальщик\"","4307010863","430701001"]
[347,"Вятскополянский муниципальный район","Усть-Люгинское","33610428","МРФ \"Волга\" ПАО \"Ростелеком\"","7707049388","526043001"]
[348,"Вятскополянский муниципальный район","Усть-Люгинское","33610428","ФГУП \"Почта России\"","7724261610","997750001"]
[349,"Вятскополянский муниципальный район","Усть-Люгинское","33610428","ФГУП \"РТРС\"","7717127211","771701001"]
[350,"Вятскополянский муниципальный район","Чекашевское","33610432","МКП \"Коммунальщик\"","4307010863","430701001"]
[351,"Вятскополянский муниципальный район","Чекашевское","33610432","МРФ \"Волга\" ПАО \"Ростелеком\"","7707049388","526043001"]
[352,"Вятскополянский муниципальный район","Чекашевское","33610432","ФГУП \"Почта России\"","7724261610","997750001"]
[353,"Вятскополянский муниципальный район","Чекашевское","33610432","ФГУП \"РТРС\"","7717127211","771701001"]
[354,"Даровской муниципальный район","Верховонданское","33612412","Администрация Верховонданское с/п","4308003234","430801001"]
[355,"Даровской муниципальный район","Верховонданское","33612412","МРФ \"Волга\" ПАО \"Ростелеком\"","7707049388","526043001"]
[356,"Даровской муниципальный район","Верховонданское","33612412","ООО \"Уником\"","4308003001","430801001"]
[357,"Даровской муниципальный район","Верховонданское","33612412","ФГУП \"Почта России\"","7724261610","997750001"]
[358,"Даровской муниципальный район","Верховонданское","33612412","ФГУП \"РТРС\"","7717127211","771701001"]
[359,"Даровской муниципальный район","Вонданское","33612416","МРФ \"Волга\" ПАО \"Ростелеком\"","7707049388","526043001"]
[360,"Даровской муниципальный район","Вонданское","33612416","ООО «Жилищно-Строительная Компания»","4308004157","430801001"]
[361,"Даровской муниципальный район","Вонданское","33612416","ФГУП \"Почта России\"","7724261610","997750001"]
[362,"Даровской муниципальный район","Вонданское","33612416","ФГУП \"РТРС\"","7717127211","771701001"]
[363,"Даровской муниципальный район","Вонданское","33612416","администрация Вонданского сельского поселения Даровского района","4308003259","430801001"]
[364,"Даровской муниципальный район","Даровской муниципальный район","33612000","АО \"Даровское ДЭП-14\"","4308003562","430801001"]
[365,"Даровской муниципальный район","Даровской муниципальный район","33612000","Администрация Верховонданское с/п","4308003234","430801001"]
[366,"Даровской муниципальный район","Даровской муниципальный район","33612000","Администрация Даровского городского поселения","4308003178","430801001"]
[367,"Даровской муниципальный район","Даровской муниципальный район","33612000","Администрация Кобрского с/п","4308003210","430801001"]
[368,"Даровской муниципальный район","Даровской муниципальный район","33612000","Администрация Лузянского с/п","4308003273","430801001"]
[369,"Даровской муниципальный район","Даровской муниципальный район","33612000","ООО \"Уником\"","4308003001","430801001"]
[370,"Даровской муниципальный район","Даровской муниципальный район","33612000","ФГУП \"РТРС\"","7717127211","771701001"]
[371,"Даровской муниципальный район","Даровской муниципальный район","33612000","администрация Вонданского сельского поселения Даровского района","4308003259","430801001"]
[372,"Даровской муниципальный район","Даровской муниципальный район","33612000","администрация Пиксурского с/п Даровского района","4308003298","430801001"]
[373,"Даровской муниципальный район","Кобрское","33612432","Администрация Кобрского с/п","4308003210","430801001"]
[374,"Даровской муниципальный район","Кобрское","33612432","МРФ \"Волга\" ПАО \"Ростелеком\"","7707049388","526043001"]
[375,"Даровской муниципальный район","Кобрское","33612432","ФГУП \"Почта России\"","7724261610","997750001"]
[376,"Даровской муниципальный район","Кобрское","33612432","ФГУП \"РТРС\"","7717127211","771701001"]
[377,"Даровской муниципальный район","Лузянское","33612440","Администрация Лузянского с/п","4308003273","430801001"]
[378,"Даровской муниципальный район","Лузянское","33612440","МРФ \"Волга\" ПАО \"Ростелеком\"","7707049388","526043001"]
[379,"Даровской муниципальный район","Лузянское","33612440","ООО «Жилищно-Строительная Компания»","4308004157","430801001"]
[380,"Даровской муниципальный район","Лузянское","33612440","ФГУП \"Почта России\"","7724261610","997750001"]
[381,"Даровской муниципальный район","Лузянское","33612440","ФГУП \"РТРС\"","7717127211","771701001"]
[382,"Даровской муниципальный район","Пиксурское","33612408","МРФ \"Волга\" ПАО \"Ростелеком\"","7707049388","526043001"]
[383,"Даровской муниципальный район","Пиксурское","33612408","ФГУП \"Почта России\"","7724261610","997750001"]
[384,"Даровской муниципальный район","Пиксурское","33612408","ФГУП \"РТРС\"","7717127211","771701001"]
[385,"Даровской муниципальный район","Пиксурское","33612408","администрация Пиксурского с/п Даровского района","4308003298","430801001"]
[386,"Даровской муниципальный район","Поселок Даровской","33612151","АО \"Даровское ДЭП-14\"","4308003562","430801001"]
[387,"Даровской муниципальный район","Поселок Даровской","33612151","Администрация Даровского городского поселения","4308003178","430801001"]
[388,"Даровской муниципальный район","Поселок Даровской","33612151","МРФ \"Волга\" ПАО \"Ростелеком\"","7707049388","526043001"]
[389,"Даровской муниципальный район","Поселок Даровской","33612151","МУП «Даровское АТП»","4308000152","430801001"]
[390,"Даровской муниципальный район","Поселок Даровской","33612151","ООО \"Уником\"","4308003001","430801001"]
[391,"Даровской муниципальный район","Поселок Даровской","33612151","ООО «Жилищно-Строительная Компания»","4308004157","430801001"]
[392,"Даровской муниципальный район","Поселок Даровской","33612151","УФПС Кировской области – филиал ФГУП «Почта России»","7724261610","434502001"]
[393,"Даровской муниципальный район","Поселок Даровской","33612151","ФГУП \"Почта России\"","7724261610","997750001"]
[394,"Даровской муниципальный район","Поселок Даровской","33612151","ФГУП \"РТРС\"","7717127211","771701001"]
[395,"ЗАТО Первомайский","ЗАТО Первомайский","33787000","АО \"ГУ ЖКХ\"","5116000922","511601001"]
[396,"ЗАТО Первомайский","ЗАТО Первомайский","33787000","АО \"ГУ ЖКХ\"","5116000922","183845001"]
[397,"ЗАТО Первомайский","ЗАТО Первомайский","33787000","МРФ \"Волга\" ПАО \"Ростелеком\"","7707049388","526043001"]
[398,"ЗАТО Первомайский","ЗАТО Первомайский","33787000","МУП ЖКХ \"Теплосети\"","4338006539","433801001"]
[399,"ЗАТО Первомайский","ЗАТО Первомайский","33787000","МУП ЖКХ \"Уют\"","4338006063","433801001"]
[400,"ЗАТО Первомайский","ЗАТО Первомайский","33787000","ФГУП \"Почта России\"","7724261610","997750001"]
[401,"ЗАТО Первомайский","ЗАТО Первомайский","33787000","ФГУП \"РТРС\"","7717127211","771701001"]
[402,"Зуевский муниципальный район","Город Зуевка","33614101","Горьковская дирекция по тепловодоснабжению структурное подразделение Центральной дирекции по тепловодоснабжению - филиала ОАО \"РЖД\"","7708503727","525745041"]
[403,"Зуевский муниципальный район","Город Зуевка","33614101","ИП Поп Н.Н.","430900037109","отсутствует"]
[404,"Зуевский муниципальный район","Город Зуевка","33614101","МРФ \"Волга\" ПАО \"Ростелеком\"","7707049388","526043001"]
[405,"Зуевский муниципальный район","Город Зуевка","33614101","МУП ЖКХ \"Газтепложилсервис\"","4309005308","430901001"]
[406,"Зуевский муниципальный район","Город Зуевка","33614101","ОАО \"Коммунэнерго\"","4346011123","434501001"]
[407,"Зуевский муниципальный район","Город Зуевка","33614101","ООО \"Косинский картон\"","4309006661","430901001"]
[408,"Зуевский муниципальный район","Город Зуевка","33614101","ООО \"Кристалл\"","4309005523","430901001"]
[409,"Зуевский муниципальный район","Город Зуевка","33614101","ООО \"РемЖилСервис\"","4309004713","430901001"]
[410,"Зуевский муниципальный район","Город Зуевка","33614101","ООО «Зуевская механизированная колонна»","4309004343","430901001"]
[411,"Зуевский муниципальный район","Город Зуевка","33614101","ООО «Зуевский механический завод»","4309000170","430901001"]
[412,"Зуевский муниципальный район","Город Зуевка","33614101","ООО «ТеплоЭнергоСервис»","4309006301","430901001"]
[413,"Зуевский муниципальный район","Город Зуевка","33614101","УФПС Кировской области – филиал ФГУП «Почта России»","7724261610","434502001"]
[414,"Зуевский муниципальный район","Город Зуевка","33614101","ФГУП \"Почта России\"","7724261610","997750001"]
[415,"Зуевский муниципальный район","Город Зуевка","33614101","ФГУП \"РТРС\"","7717127211","771701001"]
[416,"Зуевский муниципальный район","Город Зуевка","33614101","Филиал ОАО \"РЖД\" ГЖД Кировский региональный центр дирекции по тепловодоснабжению","7708503727","435731037"]
[417,"Зуевский муниципальный район","Зуевский муниципальный район","33614000","Администрации Соколовского сельского поселения","4309005072","430901001"]
[418,"Зуевский муниципальный район","Зуевский муниципальный район","33614000","Администрация Кордяжского сельского поселения","4309005114","430901001"]
[419,"Зуевский муниципальный район","Зуевский муниципальный район","33614000","Администрация Октябрьского сельского поселения","4309005097","430901001"]
[420,"Зуевский муниципальный район","Зуевский муниципальный район","33614000","Администрация Сезеневского сельского поселения","4309005040","430901001"]
[421,"Зуевский муниципальный район","Зуевский муниципальный район","33614000","Администрация Чепецкого сельского поселения Зуевского района","4309005033","430901001"]
[422,"Зуевский муниципальный район","Зуевский муниципальный район","33614000","Горьковская дирекция по тепловодоснабжению структурное подразделение Центральной дирекции по тепловодоснабжению - филиала ОАО \"РЖД\"","7708503727","525745041"]
[423,"Зуевский муниципальный район","Зуевский муниципальный район","33614000","МУ Администрация Мухинского сельского поселения Зуевского района Кировской области","4309005139","430901001"]
[424,"Зуевский муниципальный район","Зуевский муниципальный район","33614000","ОАО \"Коммунэнерго\"","4346011123","434501001"]
[425,"Зуевский муниципальный район","Зуевский муниципальный район","33614000","ООО \"КБФ Групп\"","4309006781","430901001"]
[426,"Зуевский муниципальный район","Зуевский муниципальный район","33614000","ООО \"Косинский картон\"","4309006661","430901001"]
[427,"Зуевский муниципальный район","Зуевский муниципальный район","33614000","ООО \"Кристалл\"","4309005523","430901001"]
[428,"Зуевский муниципальный район","Зуевский муниципальный район","33614000","ООО \"РемЖилСервис\"","4309004713","430901001"]
[429,"Зуевский муниципальный район","Зуевский муниципальный район","33614000","ООО \"ТК Ресурс\"","4309006870","430901001"]
[430,"Зуевский муниципальный район","Зуевский муниципальный район","33614000","ООО «СтройКом».","4335003931","433501001"]
[431,"Зуевский муниципальный район","Зуевский муниципальный район","33614000","ООО «ТеплоЭнергоСервис»","4309006301","430901001"]
[432,"Зуевский муниципальный район","Зуевский муниципальный район","33614000","ООО ЖКХ \"Родник\"","4309004618","430901001"]
[433,"Зуевский муниципальный район","Зуевский муниципальный район","33614000","СПК \"Соколовка\"","4309003131","431101001"]
[434,"Зуевский муниципальный район","Зуевский муниципальный район","33614000","СПК ПЗ \"Новый\"","4309000733","430901001"]
[435,"Зуевский муниципальный район","Зуевский муниципальный район","33614000","ФГУП \"РТРС\"","7717127211","771701001"]
[436,"Зуевский муниципальный район","Зуевский муниципальный район","33614000","Филиал ОАО \"РЖД\" ГЖД Кировский региональный центр дирекции по тепловодоснабжению","7708503727","435731037"]
[437,"Зуевский муниципальный район","Зуевское","33614408","МРФ \"Волга\" ПАО \"Ростелеком\"","7707049388","526043001"]
[438,"Зуевский муниципальный район","Зуевское","33614408","ОАО \"Зуевский Агропромснаб\"","4309000035","430901001"]
[439,"Зуевский муниципальный район","Зуевское","33614408","ООО \"Косинский картон\"","4309006661","430901001"]
[440,"Зуевский муниципальный район","Зуевское","33614408","ФГУП \"Почта России\"","7724261610","997750001"]
[441,"Зуевский муниципальный район","Зуевское","33614408","ФГУП \"РТРС\"","7717127211","771701001"]
[442,"Зуевский муниципальный район","Кордяжское","33614412","Администрация Кордяжского сельского поселения","4309005114","430901001"]
[443,"Зуевский муниципальный район","Кордяжское","33614412","МРФ \"Волга\" ПАО \"Ростелеком\"","7707049388","526043001"]
[444,"Зуевский муниципальный район","Кордяжское","33614412","ОАО \"Зуевский Агропромснаб\"","4309000035","430901001"]
[445,"Зуевский муниципальный район","Кордяжское","33614412","ООО \"Косинский картон\"","4309006661","430901001"]
[446,"Зуевский муниципальный район","Кордяжское","33614412","ФГУП \"Почта России\"","7724261610","997750001"]
[447,"Зуевский муниципальный район","Кордяжское","33614412","ФГУП \"РТРС\"","7717127211","771701001"]
[448,"Зуевский муниципальный район","Косинское","33614458","МРФ \"Волга\" ПАО \"Ростелеком\"","7707049388","526043001"]
[449,"Зуевский муниципальный район","Косинское","33614458","ООО \"КБФ Групп\"","4309006781","430901001"]
[450,"Зуевский муниципальный район","Косинское","33614458","ООО \"Косинский картон\"","4309006661","430901001"]
[451,"Зуевский муниципальный район","Косинское","33614458","ООО \"ТК Ресурс\"","4309006870","430901001"]
[452,"Зуевский муниципальный район","Косинское","33614458","ООО «Зуевский механический завод»","4309000170","430901001"]
[453,"Зуевский муниципальный район","Косинское","33614458","ООО «СтройКом».","4335003931","433501001"]
[454,"Зуевский муниципальный район","Косинское","33614458","ООО «ТеплоЭнергоСервис»","4309006301","430901001"]
[455,"Зуевский муниципальный район","Косинское","33614458","ФГУП \"Почта России\"","7724261610","997750001"]
[456,"Зуевский муниципальный район","Косинское","33614458","ФГУП \"РТРС\"","7717127211","771701001"]
[457,"Зуевский муниципальный район","Мухинское","33614424","МРФ \"Волга\" ПАО \"Ростелеком\"","7707049388","526043001"]
[458,"Зуевский муниципальный район","Мухинское","33614424","МУ Администрация Мухинского сельского поселения Зуевского района Кировской области","4309005139","430901001"]
[459,"Зуевский муниципальный район","Мухинское","33614424","ООО \"Косинский картон\"","4309006661","430901001"]
[460,"Зуевский муниципальный район","Мухинское","33614424","ООО ЖКХ \"Родник\"","4309004618","430901001"]
[461,"Зуевский муниципальный район","Мухинское","33614424","ФГУП \"Почта России\"","7724261610","997750001"]
[462,"Зуевский муниципальный район","Мухинское","33614424","ФГУП \"РТРС\"","7717127211","771701001"]
[463,"Зуевский муниципальный район","Октябрьское","33614428","Администрация Октябрьского сельского поселения","4309005097","430901001"]
[464,"Зуевский муниципальный район","Октябрьское","33614428","МРФ \"Волга\" ПАО \"Ростелеком\"","7707049388","526043001"]
[465,"Зуевский муниципальный район","Октябрьское","33614428","ООО \"Косинский картон\"","4309006661","430901001"]
[466,"Зуевский муниципальный район","Октябрьское","33614428","ООО ЖКХ \"Родник\"","4309004618","430901001"]
[467,"Зуевский муниципальный район","Октябрьское","33614428","ФГУП \"Почта России\"","7724261610","997750001"]
[468,"Зуевский муниципальный район","Октябрьское","33614428","ФГУП \"РТРС\"","7717127211","771701001"]
[469,"Зуевский муниципальный район","Сезеневское","33614436","Администрация Сезеневского сельского поселения","4309005040","430901001"]
[470,"Зуевский муниципальный район","Сезеневское","33614436","МРФ \"Волга\" ПАО \"Ростелеком\"","7707049388","526043001"]
[471,"Зуевский муниципальный район","Сезеневское","33614436","ООО \"Косинский картон\"","4309006661","430901001"]
[472,"Зуевский муниципальный район","Сезеневское","33614436","ФГУП \"Почта России\"","7724261610","997750001"]
[473,"Зуевский муниципальный район","Сезеневское","33614436","ФГУП \"РТРС\"","7717127211","771701001"]
[474,"Зуевский муниципальный район","Семушинское","33614442","МРФ \"Волга\" ПАО \"Ростелеком\"","7707049388","526043001"]
[475,"Зуевский муниципальный район","Семушинское","33614442","ООО \"Косинский картон\"","4309006661","430901001"]
[476,"Зуевский муниципальный район","Семушинское","33614442","СХА (колхоз) им.Ленина","4309001511","430901001"]
[477,"Зуевский муниципальный район","Семушинское","33614442","ФГУП \"Почта России\"","7724261610","997750001"]
[478,"Зуевский муниципальный район","Семушинское","33614442","ФГУП \"РТРС\"","7717127211","771701001"]
[479,"Зуевский муниципальный район","Соколовское","33614443","Администрации Соколовского сельского поселения","4309005072","430901001"]
[480,"Зуевский муниципальный район","Соколовское","33614443","МРФ \"Волга\" ПАО \"Ростелеком\"","7707049388","526043001"]
[481,"Зуевский муниципальный район","Соколовское","33614443","ОАО \"Зуевский Агропромснаб\"","4309000035","430901001"]
[482,"Зуевский муниципальный район","Соколовское","33614443","ООО \"Косинский картон\"","4309006661","430901001"]
[483,"Зуевский муниципальный район","Соколовское","33614443","ООО \"ТК Ресурс\"","4309006870","430901001"]
[484,"Зуевский муниципальный район","Соколовское","33614443","СПК \"Соколовка\"","4309003131","431101001"]
[485,"Зуевский муниципальный район","Соколовское","33614443","ФГУП \"Почта России\"","7724261610","997750001"]
[486,"Зуевский муниципальный район","Соколовское","33614443","ФГУП \"РТРС\"","7717127211","771701001"]
[487,"Зуевский муниципальный район","Сунское","33614448","МРФ \"Волга\" ПАО \"Ростелеком\"","7707049388","526043001"]
[488,"Зуевский муниципальный район","Сунское","33614448","ООО \"Косинский картон\"","4309006661","430901001"]
[489,"Зуевский муниципальный район","Сунское","33614448","ООО ЖКХ \"Родник\"","4309004618","430901001"]
[490,"Зуевский муниципальный район","Сунское","33614448","СПК ПЗ \"Новый\"","4309000733","430901001"]
[491,"Зуевский муниципальный район","Сунское","33614448","ФГУП \"Почта России\"","7724261610","997750001"]
[492,"Зуевский муниципальный район","Сунское","33614448","ФГУП \"РТРС\"","7717127211","771701001"]
[493,"Зуевский муниципальный район","Чепецкое","33614453","Администрация Чепецкого сельского поселения Зуевского района","4309005033","430901001"]
[494,"Зуевский муниципальный район","Чепецкое","33614453","МРФ \"Волга\" ПАО \"Ростелеком\"","7707049388","526043001"]
[495,"Зуевский муниципальный район","Чепецкое","33614453","ОАО \"Зуевский Агропромснаб\"","4309000035","430901001"]
[496,"Зуевский муниципальный район","Чепецкое","33614453","ООО \"Косинский картон\"","4309006661","430901001"]
[497,"Зуевский муниципальный район","Чепецкое","33614453","ФГУП \"Почта России\"","7724261610","997750001"]
[498,"Зуевский муниципальный район","Чепецкое","33614453","ФГУП \"РТРС\"","7717127211","771701001"]
[499,"Кикнурский муниципальный район","Кикнурский муниципальный район","33616000","Администрация Кикнурского сельского поселения","4311003763","431101001"]
[500,"Кикнурский муниципальный район","Кикнурский муниципальный район","33616000","Индивидуальный предприниматель Буйских Николай Геннадьевич","433800342908","отсутствует"]
[501,"Кикнурский муниципальный район","Кикнурский муниципальный район","33616000","МУП \"Коммунальщик\"","4311002760","431101001"]
[502,"Кикнурский муниципальный район","Кикнурский муниципальный район","33616000","СПК \"Новый\"","4311003636","431101001"]
[503,"Кикнурский муниципальный район","Кикнурский муниципальный район","33616000","СПК (колхоз) \"Авангард\"","4311002706","431101001"]
[504,"Кикнурский муниципальный район","Кикнурский муниципальный район","33616000","ФГУП \"РТРС\"","7717127211","771701001"]
[505,"Кикнурский муниципальный район","Кикнурское","33616438","Администрация Кикнурского сельского поселения","4311003763","431101001"]
[506,"Кикнурский муниципальный район","Кикнурское","33616438","Индивидуальный предприниматель Буйских Николай Геннадьевич","433800342908","отсутствует"]
[507,"Кикнурский муниципальный район","Кикнурское","33616438","СПК \"Новый\"","4311003636","431101001"]
[508,"Кикнурский муниципальный район","Кикнурское","33616438","СПК (колхоз) \"Авангард\"","4311002706","431101001"]
[509,"Кикнурский муниципальный район","Поселок Кикнур","33616151","Кировский филиал ПАО \"Ростелеком\"","7707049388","434543001"]
[510,"Кикнурский муниципальный район","Поселок Кикнур","33616151","МРФ \"Волга\" ПАО \"Ростелеком\"","7707049388","526043001"]
[511,"Кикнурский муниципальный район","Поселок Кикнур","33616151","МУП \"Коммунальщик\"","4311002760","431101001"]
[512,"Кикнурский муниципальный район","Поселок Кикнур","33616151","ФГУП \"Почта России\"","7724261610","997750001"]
[513,"Кикнурский муниципальный район","Поселок Кикнур","33616151","ФГУП \"РТРС\"","7717127211","771701001"]
[514,"Кильмезский муниципальный район","Большепорекское","33617440","МРФ \"Волга\" ПАО \"Ростелеком\"","7707049388","526043001"]
[515,"Кильмезский муниципальный район","Большепорекское","33617440","ФГУП \"Почта России\"","7724261610","997750001"]
[516,"Кильмезский муниципальный район","Большепорекское","33617440","ФГУП \"РТРС\"","7717127211","771701001"]
[517,"Кильмезский муниципальный район","Бурашевское","33617404","МРФ \"Волга\" ПАО \"Ростелеком\"","7707049388","526043001"]
[518,"Кильмезский муниципальный район","Бурашевское","33617404","ФГУП \"Почта России\"","7724261610","997750001"]
[519,"Кильмезский муниципальный район","Бурашевское","33617404","ФГУП \"РТРС\"","7717127211","771701001"]
[520,"Кильмезский муниципальный район","Вихаревское","33617408","Администрация Вихаревского сельского поселения Кильмезского района","4310033719","431001001"]
[521,"Кильмезский муниципальный район","Вихаревское","33617408","МРФ \"Волга\" ПАО \"Ростелеком\"","7707049388","526043001"]
[522,"Кильмезский муниципальный район","Вихаревское","33617408","ФГУП \"Почта России\"","7724261610","997750001"]
[523,"Кильмезский муниципальный район","Вихаревское","33617408","ФГУП \"РТРС\"","7717127211","771701001"]
[524,"Кильмезский муниципальный район","Дамаскинское","33617412","МРФ \"Волга\" ПАО \"Ростелеком\"","7707049388","526043001"]
[525,"Кильмезский муниципальный район","Дамаскинское","33617412","ФГУП \"Почта России\"","7724261610","997750001"]
[526,"Кильмезский муниципальный район","Дамаскинское","33617412","ФГУП \"РТРС\"","7717127211","771701001"]
[527,"Кильмезский муниципальный район","Зимнякское","33617418","МРФ \"Волга\" ПАО \"Ростелеком\"","7707049388","526043001"]
[528,"Кильмезский муниципальный район","Зимнякское","33617418","ООО \"Кильмезьводоканал\"","4310004203","431001001"]
[529,"Кильмезский муниципальный район","Зимнякское","33617418","ФГУП \"Почта России\"","7724261610","997750001"]
[530,"Кильмезский муниципальный район","Зимнякское","33617418","ФГУП \"РТРС\"","7717127211","771701001"]
[531,"Кильмезский муниципальный район","Кильмезский муниципальный район","33617000","Администрация Вихаревского сельского поселения Кильмезского района","4310033719","431001001"]
[532,"Кильмезский муниципальный район","Кильмезский муниципальный район","33617000","ИП Максимов С.Ф.","431000017214","отсутствует"]
[533,"Кильмезский муниципальный район","Кильмезский муниципальный район","33617000","ООО \"Кильмезьводоканал\"","4310004203","431001001"]
[534,"Кильмезский муниципальный район","Кильмезский муниципальный район","33617000","ФГУП \"РТРС\"","7717127211","771701001"]
[535,"Кильмезский муниципальный район","Малокильмезское","33617424","МРФ \"Волга\" ПАО \"Ростелеком\"","7707049388","526043001"]
[536,"Кильмезский муниципальный район","Малокильмезское","33617424","ФГУП \"Почта России\"","7724261610","997750001"]
[537,"Кильмезский муниципальный район","Малокильмезское","33617424","ФГУП \"РТРС\"","7717127211","771701001"]
[538,"Кильмезский муниципальный район","Моторское","33617428","МРФ \"Волга\" ПАО \"Ростелеком\"","7707049388","526043001"]
[539,"Кильмезский муниципальный район","Моторское","33617428","ФГУП \"Почта России\"","7724261610","997750001"]
[540,"Кильмезский муниципальный район","Моторское","33617428","ФГУП \"РТРС\"","7717127211","771701001"]
[541,"Кильмезский муниципальный район","Паскинское","33617436","МРФ \"Волга\" ПАО \"Ростелеком\"","7707049388","526043001"]
[542,"Кильмезский муниципальный район","Паскинское","33617436","ФГУП \"Почта России\"","7724261610","997750001"]
[543,"Кильмезский муниципальный район","Паскинское","33617436","ФГУП \"РТРС\"","7717127211","771701001"]
[544,"Кильмезский муниципальный район","Поселок Кильмезь","33617151","ИП Максимов С.Ф.","431000017214","отсутствует"]
[545,"Кильмезский муниципальный район","Поселок Кильмезь","33617151","Кировский филиал ПАО \"Ростелеком\"","7707049388","434543001"]
[546,"Кильмезский муниципальный район","Поселок Кильмезь","33617151","МРФ \"Волга\" ПАО \"Ростелеком\"","7707049388","526043001"]
[547,"Кильмезский муниципальный район","Поселок Кильмезь","33617151","ООО \"БЛАГОУСТРОЙСТВО\"","4310004210","431001001"]
[548,"Кильмезский муниципальный район","Поселок Кильмезь","33617151","ООО \"Кильмезьводоканал\"","4310004203","431001001"]
[549,"Кильмезский муниципальный район","Поселок Кильмезь","33617151","ООО \"СтройКомИнвест\"","1832047010","182101001"]
[550,"Кильмезский муниципальный район","Поселок Кильмезь","33617151","ФГУП \"Почта России\"","7724261610","997750001"]
[551,"Кильмезский муниципальный район","Поселок Кильмезь","33617151","ФГУП \"РТРС\"","7717127211","771701001"]
[552,"Кильмезский муниципальный район","Рыбно-Ватажское","33617444","МРФ \"Волга\" ПАО \"Ростелеком\"","7707049388","526043001"]
[553,"Кильмезский муниципальный район","Рыбно-Ватажское","33617444","ФГУП \"Почта России\"","7724261610","997750001"]
[554,"Кильмезский муниципальный район","Рыбно-Ватажское","33617444","ФГУП \"РТРС\"","7717127211","771701001"]
[555,"Кильмезский муниципальный район","Селинское","33617448","МРФ \"Волга\" ПАО \"Ростелеком\"","7707049388","526043001"]
[556,"Кильмезский муниципальный район","Селинское","33617448","ООО \"Кильмезьводоканал\"","4310004203","431001001"]
[557,"Кильмезский муниципальный район","Селинское","33617448","ФГУП \"Почта России\"","7724261610","997750001"]
[558,"Кильмезский муниципальный район","Селинское","33617448","ФГУП \"РТРС\"","7717127211","771701001"]
[559,"Кильмезский муниципальный район","Чернушское","33617456","МРФ \"Волга\" ПАО \"Ростелеком\"","7707049388","526043001"]
[560,"Кильмезский муниципальный район","Чернушское","33617456","ФГУП \"Почта России\"","7724261610","997750001"]
[561,"Кильмезский муниципальный район","Чернушское","33617456","ФГУП \"РТРС\"","7717127211","771701001"]
[562,"Киров","Киров","33701000","АО \"Вятское машиностроительное предприятие \"Авитек\"","4345047310","434501001"]
[563,"Киров","Киров","33701000","АО \"ГУ ЖКХ\"","5116000922","511601001"]
[564,"Киров","Киров","33701000","АО \"ГУ ЖКХ\"","5116000922","183845001"]
[565,"Киров","Киров","33701000","АО \"Газпром газораспределение Киров\"","4346006589","434501001"]
[566,"Киров","Киров","33701000","АО \"Завод \"Сельмаш\"","4345195478","434501001"]
[567,"Киров","Киров","33701000","АО \"Кировская ТЭЦ-1\"","4345261681","434501001"]
[568,"Киров","Киров","33701000","АО \"Кировская теплоснабжающая компания\"","4345230958","434501001"]
[569,"Киров","Киров","33701000","АО \"Кировские коммунальные системы\"","4345230965","434501001"]
[570,"Киров","Киров","33701000","АО \"Кировский сельский строительный комбинат\"","4345146992","890101001"]
[571,"Киров","Киров","33701000","АО \"Куприт\"","4346049110","434501001"]
[572,"Киров","Киров","33701000","АО \"НИИ СВТ\"","4345309407","434501001"]
[573,"Киров","Киров","33701000","АО \"Ново-Вятка\"","4345029946","434501001"]
[574,"Киров","Киров","33701000","АО \"Нововятский лыжный комбинат\"","4349006474","434501001"]
[575,"Киров","Киров","33701000","АО \"Нововятский механический завод\"","4345029953","434501001"]
[576,"Киров","Киров","33701000","АО «Электромашиностроительный завод \"ЛЕПСЕ»","4345000930","434550001"]
[577,"Киров","Киров","33701000","ГАОУ СПО \"Кировский государственный автодорожный техникум\"","4349003579","434501001"]
[578,"Киров","Киров","33701000","Горьковская дирекция ОАО «РЖД»","7708503727","525745022"]
[579,"Киров","Киров","33701000","Горьковская дирекция по тепловодоснабжению - СП Центральной дирекции по тепловодоснабжения - филиала ОАО \"РЖД\" (Муромский территориальный участок)","7708503727","525731036"]
[580,"Киров","Киров","33701000","Горьковская дирекция по тепловодоснабжению структурное подразделение Центральной дирекции по тепловодоснабжению - филиала ОАО \"РЖД\"","7708503727","525745041"]
[581,"Киров","Киров","33701000","ЖСК \"Керамик\"","4347015635","434501001"]
[582,"Киров","Киров","33701000","Жильщно-строительный кооператив \"Доверие\"","4345297776","434501001"]
[583,"Киров","Киров","33701000","ЗАО \"Агрокомбинат племзавод \"Красногорский\"","4347004464","434501001"]
[584,"Киров","Киров","33701000","ЗАО \"Заречье\"","4348000230","434501001"]
[585,"Киров","Киров","33701000","ЗАО \"Промуправление\"","4345268479","434501001"]
[586,"Киров","Киров","33701000","ЗАО \"Сувенир\"","4349004854","434501001"]
[587,"Киров","Киров","33701000","ЗАО \"ЭнергоТранс-С\"","5043048430","504301001"]
[588,"Киров","Киров","33701000","Закрытое акционерное общество \"Энергопромышленная компания\", г. Екатеринбург","6661105959","666101001"]
[589,"Киров","Киров","33701000","КОГБУЗ \"Кировская областная клиническая психиатрическая больница им. Академика В.М. Бехтерева\"","4345393078","434501001"]
[590,"Киров","Киров","33701000","КОГКУСО «Рублевский психоневрологический интернат»","4346021379","434501001"]
[591,"Киров","Киров","33701000","КОГУП \"Облкоммунсервис\"","4346041093","434501001"]
[592,"Киров","Киров","33701000","Кировский филиал ОАО \"ЭнергосбыТ Плюс\"","5612042824","434543001"]
[593,"Киров","Киров","33701000","Кировский филиал ООО \"ЕЭС Гарант\"","5024104671","434543001"]
[594,"Киров","Киров","33701000","Кировский филиал ПАО \"Ростелеком\"","7707049388","434543001"]
[595,"Киров","Киров","33701000","МРФ \"Волга\" ПАО \"Ростелеком\"","7707049388","526043001"]
[596,"Киров","Киров","33701000","МУМП \"Лянгасово\"","4345028565","434501001"]
[597,"Киров","Киров","33701000","МУП \"Водоканал\"","4345000249","434501001"]
[598,"Киров","Киров","33701000","МУП \"ГОРЭЛЕКТРОСЕТЬ\"","4346001502","434501001"]
[599,"Киров","Киров","33701000","МУП \"Нововятский \"Водоканал\"","4345148069","434501001"]
[600,"Киров","Киров","33701000","ОАО \"Волго-Вятская пригородная пассажирская компания\"","5257111223","525701001"]
[601,"Киров","Киров","33701000","ОАО \"Вяткаагроснаб\"","4348001272","434501001"]
[602,"Киров","Киров","33701000","ОАО \"Кировский завод по обработке цветных металлов\"","4347000477","434501001"]
[603,"Киров","Киров","33701000","ОАО \"Кировский завод по производству газосиликатных блоков \"Кировгазосиликат\"","4346054631","434501001"]
[604,"Киров","Киров","33701000","ОАО \"Кировский ордена Отечественной войны 1 степени комбинат искусственных кож\"","4348003456","434501001"]
[605,"Киров","Киров","33701000","ОАО \"Кировэнергосбыт\"","4345103477","434501001"]
[606,"Киров","Киров","33701000","ОАО \"Коммунэнерго\"","4346011123","434501001"]
[607,"Киров","Киров","33701000","ОАО \"Оборонэнергосбыт\"","7704731218","770040100"]
[608,"Киров","Киров","33701000","ОАО \"Северная пригородная пассажирская компания\"","7604192971","760401001"]
[609,"Киров","Киров","33701000","ОАО \"Славянка\"","7702707386","434543001"]
[610,"Киров","Киров","33701000","ОАО «Кирово-Чепецкое управление строительства»","4347030908","434701001"]
[611,"Киров","Киров","33701000","ООО \"Агенство универсальной информации Лира\"","4347032359","434501001"]
[612,"Киров","Киров","33701000","ООО \"Водоснабжение\"","4345142370","434501001"]
[613,"Киров","Киров","33701000","ООО \"Восточная энергетическая компания\"","4345358490","434501001"]
[614,"Киров","Киров","33701000","ООО \"Вятская Энерго-Сберегающая компания\" г.Киров","4345379570","434501001"]
[615,"Киров","Киров","33701000","ООО \"Вятская сетевая компания\"","4345390493","434201001"]
[616,"Киров","Киров","33701000","ООО \"Вятская теплосетевая компания\"","4345437832","434501001"]
[617,"Киров","Киров","33701000","ООО \"Вятская управляющая компания\"","4345357143","434501001"]
[618,"Киров","Киров","33701000","ООО \"Вятский фанерный комбинат\"","4345128104","434501001"]
[619,"Киров","Киров","33701000","ООО \"Вятэнергосервис\"","4345331628","434501001"]
[620,"Киров","Киров","33701000","ООО \"Газпром межрегионгаз Киров\"","4345010511","434501001"]
[621,"Киров","Киров","33701000","ООО \"Газпром теплоэнерго Киров\"","4345268905","434501001"]
[622,"Киров","Киров","33701000","ООО \"ДЕПОВСКАЯ\"","4345400367","434501001"]
[623,"Киров","Киров","33701000","ООО \"ЕДИНАЯ ЭЛЕКТРОСЕТЕВАЯ КОМПАНИЯ\"","4345433098","434501001"]
[624,"Киров","Киров","33701000","ООО \"Евро-строй\"","4345224312","434501001"]
[625,"Киров","Киров","33701000","ООО \"ЖКО 1 Мая\"","4345139674","434501001"]
[626,"Киров","Киров","33701000","ООО \"Зотик\"","4346039721","434501001"]
[627,"Киров","Киров","33701000","ООО \"Кировавтогаз\"","4345169260","434501001"]
[628,"Киров","Киров","33701000","ООО \"Коммунальщик\"","4345078291","434501001"]
[629,"Киров","Киров","33701000","ООО \"Коммунсервис\"","4345312706","434501001"]
[630,"Киров","Киров","33701000","ООО \"Компания Кироввнешторг\"","4345003088","434501001"]
[631,"Киров","Киров","33701000","ООО \"ЛИКС\"","4345445270","434501001"]
[632,"Киров","Киров","33701000","ООО \"Лепсе-сеть\"","4345093540","434501001"]
[633,"Киров","Киров","33701000","ООО \"МагнитЭнерго\"","7715902899","231001001"]
[634,"Киров","Киров","33701000","ООО \"МагнитЭнерго\"","7715902899","231001000"]
[635,"Киров","Киров","33701000","ООО \"Матрица\"","4345110918","434501001"]
[636,"Киров","Киров","33701000","ООО \"НЕФТЕХИМ-ЭнергоТрейд\"","6623066650","662301001"]
[637,"Киров","Киров","33701000","ООО \"Новое энергетическое предприятие\"","4345426380","434501001"]
[638,"Киров","Киров","33701000","ООО \"ПТС \"Физприбор\"","4345069530","434501001"]
[639,"Киров","Киров","33701000","ООО \"Пиллар\"","4345297543","430301001"]
[640,"Киров","Киров","33701000","ООО \"Премьер\"","4305002426","430501001"]
[641,"Киров","Киров","33701000","ООО \"Промсервис\"","4312122788","431201001"]
[642,"Киров","Киров","33701000","ООО \"РН-Энерго\"","7706525041","772501001"]
[643,"Киров","Киров","33701000","ООО \"РРСК\"","5907024108","434543001"]
[644,"Киров","Киров","33701000","ООО \"РСК\"","4345278727","434501001"]
[645,"Киров","Киров","33701000","ООО \"РЭП \"Костино\"","4345130248","434501001"]
[646,"Киров","Киров","33701000","ООО \"Радужнинский завод ЖБИ\"","4345259058","434501001"]
[647,"Киров","Киров","33701000","ООО \"Региональная сеть\"","4345287866","434501001"]
[648,"Киров","Киров","33701000","ООО \"Региональная энергосбытовая компания\" (ОПП)","4633017746","463301001"]
[649,"Киров","Киров","33701000","ООО \"Республиканская сетевая компания\"","1101061957","110101001"]
[650,"Киров","Киров","33701000","ООО \"Русэнергоресурс\"","7706288496","770601001"]
[651,"Киров","Киров","33701000","ООО \"Русэнергосбыт\"","7706284124","770601001"]
[652,"Киров","Киров","33701000","ООО \"САХ\"","4345069473","434501001"]
[653,"Киров","Киров","33701000","ООО \"ССК-ТУР\"","4345372832","434501001"]
[654,"Киров","Киров","33701000","ООО \"СтройСнабТехнология\"","4345007332","434501001"]
[655,"Киров","Киров","33701000","ООО \"ТД \"Кировснабком\"","4345229783","434501001"]
[656,"Киров","Киров","33701000","ООО \"ТЕПЛОКОМ\"","4345400335","434501001"]
[657,"Киров","Киров","33701000","ООО \"Теплогенерирующая компания\"","4345394473","434501001"]
[658,"Киров","Киров","33701000","ООО \"Теплогенерирующее предприятие №3\"","4345352378","434501001"]
[659,"Киров","Киров","33701000","ООО \"Теплосервис\"","4345440401","434501001"]
[660,"Киров","Киров","33701000","ООО \"ТеплосетьПлюс\"","4345157553","434501001"]
[661,"Киров","Киров","33701000","ООО \"Теплоснабжение\"","4345423244","434501001"]
[662,"Киров","Киров","33701000","ООО \"Теплотехник\"","4345109430","434501001"]
[663,"Киров","Киров","33701000","ООО \"Торговый центр \"Новый\"","4345043605","434501001"]
[664,"Киров","Киров","33701000","ООО \"Транзит\"","4345066465","434501001"]
[665,"Киров","Киров","33701000","ООО \"Энергетическая компания Нововятского ЛПК\"","4345036118","434501001"]
[666,"Киров","Киров","33701000","ООО \"Энергоинвест\"","4345139226","434501001"]
[667,"Киров","Киров","33701000","ООО \"Энергопрогноз\"","3328454924","332801001"]
[668,"Киров","Киров","33701000","ООО \"Энергосфера\"","4345442494","434501001"]
[669,"Киров","Киров","33701000","ООО «Водоочистка»","4345370708","434501001"]
[670,"Киров","Киров","33701000","ООО «ДокВуд»","4345292577","434501001"]
[671,"Киров","Киров","33701000","ООО «Кировский завод Лесмаш»","4345086359","434501001"]
[672,"Киров","Киров","33701000","ООО «Производственный комплекс»","4345348050","434501001"]
[673,"Киров","Киров","33701000","ООО «РРСК»","5907024108","132843001"]
[674,"Киров","Киров","33701000","ООО «Рекона»","4347028360","434501001"]
[675,"Киров","Киров","33701000","ООО «Сетевая Компания «ИнТехСервис»","4345328537","434501001"]
[676,"Киров","Киров","33701000","ООО «Управление недвижимостью и Домами»","4345232948","434501001"]
[677,"Киров","Киров","33701000","ООО «Хлынов»","4345287288","434501001"]
[678,"Киров","Киров","33701000","ООО Комфорт","4345397058","434501001"]
[679,"Киров","Киров","33701000","ООО ТСО «Зиновы»","4312148627","431201001"]
[680,"Киров","Киров","33701000","ООО Теплоснабжающая компания","4345337919","434501001"]
[681,"Киров","Киров","33701000","ООО УК \"Азбука быта\"","4345389770","434501001"]
[682,"Киров","Киров","33701000","Общество с ограниченной ответственностью «Областной водоканал»","4345420518","434501001"]
[683,"Киров","Киров","33701000","Общество с ограниченной ответственностью «УВЗ-ЭНЕРГО», г.Нижний Тагил","6623025131","662301001"]
[684,"Киров","Киров","33701000","Открытое акционерное общество \"Содружество\"","1655182480","165501001"]
[685,"Киров","Киров","33701000","ПАО \"Кировский завод \"Маяк\"","4345000947","434501001"]
[686,"Киров","Киров","33701000","ПАО \"Мосэнергосбыт\"","7736520080","997450001"]
[687,"Киров","Киров","33701000","ПАО \"ФСК ЕЭС\"","4716016979","997450001"]
[688,"Киров","Киров","33701000","ПАО «МРСК «Центра и Приволжья»","5260200603","434502001"]
[689,"Киров","Киров","33701000","РСТ Кировской области","4345163236","434501001"]
[690,"Киров","Киров","33701000","Северная дирекция по энергообеспечению - структурное подразделение Трансэнерго - филиала ОАО \"Российские железные дороги\"","7708503727","760445013"]
[691,"Киров","Киров","33701000","УФПС Кировской области – филиал ФГУП «Почта России»","7724261610","434502001"]
[692,"Киров","Киров","33701000","ФГБНУ «Всероссийский научно-исследовательский институт охотничьего хозяйства и звероводства имени профессора Б.М. Житкова»","4347004369","434501001"]
[693,"Киров","Киров","33701000","ФГБОУ ВО \"Вятская государственная сельскохозяйственная академия\"","4346012790","434601001"]
[694,"Киров","Киров","33701000","ФГБУН КНИИГиПК ФМБА России","4346007656","434501001"]
[695,"Киров","Киров","33701000","ФГУП \"Почта России\"","7724261610","997750001"]
[696,"Киров","Киров","33701000","ФГУП \"РТРС\"","7717127211","771701001"]
[697,"Киров","Киров","33701000","Филиал \"Волго-Вятский\" АО \"Оборонэнерго\"","7704726225","526343001"]
[698,"Киров","Киров","33701000","Филиал \"Кировский\" ПАО \"Т Плюс\"","6315376946","434543001"]
[699,"Киров","Киров","33701000","Филиал ОАО \"РЖД\" ГЖД Кировский региональный центр дирекции по тепловодоснабжению","7708503727","435731037"]
[700,"Кирово-Чепецк","Кирово-Чепецк","33707000","АО \"Газпром газораспределение Киров\"","4346006589","434501001"]
[701,"Кирово-Чепецк","Кирово-Чепецк","33707000","АО \"Кировская теплоснабжающая компания\"","4345230958","434501001"]
[702,"Кирово-Чепецк","Кирово-Чепецк","33707000","МРФ \"Волга\" ПАО \"Ростелеком\"","7707049388","526043001"]
[703,"Кирово-Чепецк","Кирово-Чепецк","33707000","МУП \"Водоканал\"","4312126599","431201001"]
[704,"Кирово-Чепецк","Кирово-Чепецк","33707000","МУП \"Коммунхоз\"","4312135113","431201001"]
[705,"Кирово-Чепецк","Кирово-Чепецк","33707000","ООО \"ГалоПолимер Кирово-Чепецк\"","4312126856","590801001"]
[706,"Кирово-Чепецк","Кирово-Чепецк","33707000","ООО \"ЕДИНАЯ ЭЛЕКТРОСЕТЕВАЯ КОМПАНИЯ\"","4345433098","434501001"]
[707,"Кирово-Чепецк","Кирово-Чепецк","33707000","ООО \"СХП Чепецкие теплицы\"","4345108563","431201001"]
[708,"Кирово-Чепецк","Кирово-Чепецк","33707000","ООО \"ЭСО КЧХК\"","4312128123","431201001"]
[709,"Кирово-Чепецк","Кирово-Чепецк","33707000","ООО НовыйЭкоГород","4312143072","431201001"]
[710,"Кирово-Чепецк","Кирово-Чепецк","33707000","ООО ЭСО \"Зиновы\"","4312148634","431201001"]
[711,"Кирово-Чепецк","Кирово-Чепецк","33707000","ФГУП \"Почта России\"","7724261610","997750001"]
[712,"Кирово-Чепецк","Кирово-Чепецк","33707000","ФГУП \"РТРС\"","7717127211","771701001"]
[713,"Кирово-Чепецк","Кирово-Чепецк","33707000","ФКУ БМТ и ВС УФСИН России по Кировской области","4305003211","434501001"]
[714,"Кирово-Чепецк","Кирово-Чепецк","33707000","Филиал \"КЧХК\" АО \"ОХК \"УРАЛХИМ\"","7703647595","431243001"]
[715,"Кирово-Чепецк","Кирово-Чепецк","33707000","Филиал \"Кировский\" ПАО \"Т Плюс\"","6315376946","434543001"]
[716,"Кирово-Чепецкий муниципальный район","Бурмакинское","33618408","МРФ \"Волга\" ПАО \"Ростелеком\"","7707049388","526043001"]
[717,"Кирово-Чепецкий муниципальный район","Бурмакинское","33618408","ООО \"Пасегово\"","4312035888","431201001"]
[718,"Кирово-Чепецкий муниципальный район","Бурмакинское","33618408","ООО \"Ремонтно-эксплуатационный центр Цепели\"","4312134857","431201001"]
[719,"Кирово-Чепецкий муниципальный район","Бурмакинское","33618408","ФГУП \"Почта России\"","7724261610","997750001"]
[720,"Кирово-Чепецкий муниципальный район","Бурмакинское","33618408","ФГУП \"РТРС\"","7717127211","771701001"]
[721,"Кирово-Чепецкий муниципальный район","Кирово-Чепецкий муниципальный район","33618000","АО \"Кировские коммунальные системы\"","4345230965","434501001"]
[722,"Кирово-Чепецкий муниципальный район","Кирово-Чепецкий муниципальный район","33618000","КОГБУЗ \"Областной клинический противотуберкулезный диспансер\"","4345362672","434501001"]
[723,"Кирово-Чепецкий муниципальный район","Кирово-Чепецкий муниципальный район","33618000","КОГУП \"Облкоммунсервис\"","4346041093","434501001"]
[724,"Кирово-Чепецкий муниципальный район","Кирово-Чепецкий муниципальный район","33618000","МУП \"Водоканал\"","4312126599","431201001"]
[725,"Кирово-Чепецкий муниципальный район","Кирово-Чепецкий муниципальный район","33618000","МУП ЖКХ \"Конып\"","4312022504","431201001"]
[726,"Кирово-Чепецкий муниципальный район","Кирово-Чепецкий муниципальный район","33618000","ООО \"ЖКХ Гарант\"","4312042758","431201001"]
[727,"Кирово-Чепецкий муниципальный район","Кирово-Чепецкий муниципальный район","33618000","ООО \"Жилстрой-сервис\"","4312032541","431201001"]
[728,"Кирово-Чепецкий муниципальный район","Кирово-Чепецкий муниципальный район","33618000","ООО \"Пасегово\"","4312035888","431201001"]
[729,"Кирово-Чепецкий муниципальный район","Кирово-Чепецкий муниципальный район","33618000","ООО \"ПетрА\"","4345382830","434501001"]
[730,"Кирово-Чепецкий муниципальный район","Кирово-Чепецкий муниципальный район","33618000","ООО \"СтройЖилКомплект\"","4345216431","434501001"]
[731,"Кирово-Чепецкий муниципальный район","Кирово-Чепецкий муниципальный район","33618000","ООО «ЖКХ УЮТ»","4312149532","431201001"]
[732,"Кирово-Чепецкий муниципальный район","Кирово-Чепецкий муниципальный район","33618000","ООО «Надежда»","4345421293","434501001"]
[733,"Кирово-Чепецкий муниципальный район","Кирово-Чепецкий муниципальный район","33618000","ООО ЖКХ \"Кстинино\"","4312029080","431201001"]
[734,"Кирово-Чепецкий муниципальный район","Кирово-Чепецкий муниципальный район","33618000","ООО МЦ \"Дороничи\"","4348029366","434501001"]
[735,"Кирово-Чепецкий муниципальный район","Кирово-Чепецкий муниципальный район","33618000","ФГУП \"РТРС\"","7717127211","771701001"]
[736,"Кирово-Чепецкий муниципальный район","Коныпское","33618418","МРФ \"Волга\" ПАО \"Ростелеком\"","7707049388","526043001"]
[737,"Кирово-Чепецкий муниципальный район","Коныпское","33618418","МУП ЖКХ \"Конып\"","4312022504","431201001"]
[738,"Кирово-Чепецкий муниципальный район","Коныпское","33618418","ФГУП \"Почта России\"","7724261610","997750001"]
[739,"Кирово-Чепецкий муниципальный район","Коныпское","33618418","ФГУП \"РТРС\"","7717127211","771701001"]
[740,"Кирово-Чепецкий муниципальный район","Кстининское","33618420","МРФ \"Волга\" ПАО \"Ростелеком\"","7707049388","526043001"]
[741,"Кирово-Чепецкий муниципальный район","Кстининское","33618420","ООО \"ПетрА\"","4345382830","434501001"]
[742,"Кирово-Чепецкий муниципальный район","Кстининское","33618420","ООО «Надежда»","4345421293","434501001"]
[743,"Кирово-Чепецкий муниципальный район","Кстининское","33618420","ООО ЖКХ \"Кстинино\"","4312029080","431201001"]
[744,"Кирово-Чепецкий муниципальный район","Кстининское","33618420","ФГУП \"Почта России\"","7724261610","997750001"]
[745,"Кирово-Чепецкий муниципальный район","Кстининское","33618420","ФГУП \"РТРС\"","7717127211","771701001"]
[746,"Кирово-Чепецкий муниципальный район","Мокрецовское","33618424","МРФ \"Волга\" ПАО \"Ростелеком\"","7707049388","526043001"]
[747,"Кирово-Чепецкий муниципальный район","Мокрецовское","33618424","ООО \"ЖКХ Гарант\"","4312042758","431201001"]
[748,"Кирово-Чепецкий муниципальный район","Мокрецовское","33618424","ФГУП \"Почта России\"","7724261610","997750001"]
[749,"Кирово-Чепецкий муниципальный район","Мокрецовское","33618424","ФГУП \"РТРС\"","7717127211","771701001"]
[750,"Кирово-Чепецкий муниципальный район","Пасеговское","33618428","КОГБУЗ \"Областной клинический противотуберкулезный диспансер\"","4345362672","434501001"]
[751,"Кирово-Чепецкий муниципальный район","Пасеговское","33618428","МРФ \"Волга\" ПАО \"Ростелеком\"","7707049388","526043001"]
[752,"Кирово-Чепецкий муниципальный район","Пасеговское","33618428","ООО \"СтройЖилКомплект\"","4345216431","434501001"]
[753,"Кирово-Чепецкий муниципальный район","Пасеговское","33618428","ООО МЦ \"Дороничи\"","4348029366","434501001"]
[754,"Кирово-Чепецкий муниципальный район","Пасеговское","33618428","ФГУП \"Почта России\"","7724261610","997750001"]
[755,"Кирово-Чепецкий муниципальный район","Пасеговское","33618428","ФГУП \"РТРС\"","7717127211","771701001"]
[756,"Кирово-Чепецкий муниципальный район","Поломское","33618432","МРФ \"Волга\" ПАО \"Ростелеком\"","7707049388","526043001"]
[757,"Кирово-Чепецкий муниципальный район","Поломское","33618432","ФГУП \"Почта России\"","7724261610","997750001"]
[758,"Кирово-Чепецкий муниципальный район","Поломское","33618432","ФГУП \"РТРС\"","7717127211","771701001"]
[759,"Кирово-Чепецкий муниципальный район","Просницкое","33618412","МРФ \"Волга\" ПАО \"Ростелеком\"","7707049388","526043001"]
[760,"Кирово-Чепецкий муниципальный район","Просницкое","33618412","МУП ЖКХ \"Конып\"","4312022504","431201001"]
[761,"Кирово-Чепецкий муниципальный район","Просницкое","33618412","ФГУП \"Почта России\"","7724261610","997750001"]
[762,"Кирово-Чепецкий муниципальный район","Просницкое","33618412","ФГУП \"РТРС\"","7717127211","771701001"]
[763,"Кирово-Чепецкий муниципальный район","Селезеневское","33618434","МРФ \"Волга\" ПАО \"Ростелеком\"","7707049388","526043001"]
[764,"Кирово-Чепецкий муниципальный район","Селезеневское","33618434","ФГУП \"Почта России\"","7724261610","997750001"]
[765,"Кирово-Чепецкий муниципальный район","Селезеневское","33618434","ФГУП \"РТРС\"","7717127211","771701001"]
[766,"Кирово-Чепецкий муниципальный район","Фатеевское","33618436","МРФ \"Волга\" ПАО \"Ростелеком\"","7707049388","526043001"]
[767,"Кирово-Чепецкий муниципальный район","Фатеевское","33618436","ООО \"Пасегово\"","4312035888","431201001"]
[768,"Кирово-Чепецкий муниципальный район","Фатеевское","33618436","ФГУП \"Почта России\"","7724261610","997750001"]
[769,"Кирово-Чепецкий муниципальный район","Фатеевское","33618436","ФГУП \"РТРС\"","7717127211","771701001"]
[770,"Кирово-Чепецкий муниципальный район","Федяковское","33618442","АО \"Кировские коммунальные системы\"","4345230965","434501001"]
[771,"Кирово-Чепецкий муниципальный район","Федяковское","33618442","МРФ \"Волга\" ПАО \"Ростелеком\"","7707049388","526043001"]
[772,"Кирово-Чепецкий муниципальный район","Федяковское","33618442","ООО «ЖКХ УЮТ»","4312149532","431201001"]
[773,"Кирово-Чепецкий муниципальный район","Федяковское","33618442","ФГУП \"Почта России\"","7724261610","997750001"]
[774,"Кирово-Чепецкий муниципальный район","Федяковское","33618442","ФГУП \"РТРС\"","7717127211","771701001"]
[775,"Кирово-Чепецкий муниципальный район","Филипповское","33618444","МРФ \"Волга\" ПАО \"Ростелеком\"","7707049388","526043001"]
[776,"Кирово-Чепецкий муниципальный район","Филипповское","33618444","ФГУП \"Почта России\"","7724261610","997750001"]
[777,"Кирово-Чепецкий муниципальный район","Филипповское","33618444","ФГУП \"РТРС\"","7717127211","771701001"]
[778,"Кирово-Чепецкий муниципальный район","Чепецкое","33618448","АО \"Кировская теплоснабжающая компания\"","4345230958","434501001"]
[779,"Кирово-Чепецкий муниципальный район","Чепецкое","33618448","КОГУП \"Облкоммунсервис\"","4346041093","434501001"]
[780,"Кирово-Чепецкий муниципальный район","Чепецкое","33618448","МРФ \"Волга\" ПАО \"Ростелеком\"","7707049388","526043001"]
[781,"Кирово-Чепецкий муниципальный район","Чепецкое","33618448","МУП \"Водоканал\"","4312126599","431201001"]
[782,"Кирово-Чепецкий муниципальный район","Чепецкое","33618448","ООО \"Жилстрой-сервис\"","4312032541","431201001"]
[783,"Кирово-Чепецкий муниципальный район","Чепецкое","33618448","ФГУП \"Почта России\"","7724261610","997750001"]
[784,"Кирово-Чепецкий муниципальный район","Чепецкое","33618448","ФГУП \"РТРС\"","7717127211","771701001"]
[785,"Кирово-Чепецкий муниципальный район","Чувашевское","33618452","МРФ \"Волга\" ПАО \"Ростелеком\"","7707049388","526043001"]
[786,"Кирово-Чепецкий муниципальный район","Чувашевское","33618452","ФГУП \"Почта России\"","7724261610","997750001"]
[787,"Кирово-Чепецкий муниципальный район","Чувашевское","33618452","ФГУП \"РТРС\"","7717127211","771701001"]
[788,"Котельнич","Котельнич","33710000","АО \"ГУ ЖКХ\"","5116000922","511601001"]
[789,"Котельнич","Котельнич","33710000","АО \"ГУ ЖКХ\"","5116000922","183845001"]
[790,"Котельнич","Котельнич","33710000","АО \"Газпром газораспределение Киров\"","4346006589","434501001"]
[791,"Котельнич","Котельнич","33710000","АО \"Котельничское хлебоприемное предприятие\"","4342003185","431301001"]
[792,"Котельнич","Котельнич","33710000","Горьковская дирекция по тепловодоснабжению структурное подразделение Центральной дирекции по тепловодоснабжению - филиала ОАО \"РЖД\"","7708503727","525745041"]
[793,"Котельнич","Котельнич","33710000","ЗАО \"Котельничский мачтопропиточный завод\"","4342000723","434201001"]
[794,"Котельнич","Котельнич","33710000","МП \"Горводоканал\"","4342003643","434201001"]
[795,"Котельнич","Котельнич","33710000","МП «Гостиничный комплекс «Вятка»","4342002329","431301001"]
[796,"Котельнич","Котельнич","33710000","МРФ \"Волга\" ПАО \"Ростелеком\"","7707049388","526043001"]
[797,"Котельнич","Котельнич","33710000","МУП \"Компания котельных и тепловых сетей города Котельнича\"","4313008728","431301001"]
[798,"Котельнич","Котельнич","33710000","ОАО \"Коммунэнерго\"","4346011123","434501001"]
[799,"Котельнич","Котельнич","33710000","ОАО \"Котельничский механический завод\"","4342002463","434201001"]
[800,"Котельнич","Котельнич","33710000","ОАО \"Котельничский хлебокомбинат\"","4342001124","434201001"]
[801,"Котельнич","Котельнич","33710000","ООО \"Импульс\"","4313105320","431301001"]
[802,"Котельнич","Котельнич","33710000","ООО \"Котельничское предприятие \"Металлпром\"","4313106034","431301001"]
[803,"Котельнич","Котельнич","33710000","ООО \"Сапфир\"","4313105760","431301001"]
[804,"Котельнич","Котельнич","33710000","ПАО «МРСК «Центра и Приволжья»","5260200603","434502001"]
[805,"Котельнич","Котельнич","33710000","ПОУ \"Кировский кооперативный техникум\" Кировского облпотребсоюза","4342000949","431301001"]
[806,"Котельнич","Котельнич","33710000","ФГУП \"Почта России\"","7724261610","997750001"]
[807,"Котельнич","Котельнич","33710000","ФГУП \"РТРС\"","7717127211","771701001"]
[808,"Котельнич","Котельнич","33710000","ФКУ БМТ и ВС УФСИН России по Кировской области","4305003211","434501001"]
[809,"Котельнич","Котельнич","33710000","Филиал ОАО \"РЖД\" ГЖД Кировский региональный центр дирекции по тепловодоснабжению","7708503727","435731037"]
[810,"Котельничский муниципальный район","Александровское","33619464","МРФ \"Волга\" ПАО \"Ростелеком\"","7707049388","526043001"]
[811,"Котельничский муниципальный район","Александровское","33619464","ООО \"АЛЕКС\"","4313010519","431301001"]
[812,"Котельничский муниципальный район","Александровское","33619464","ФГУП \"Почта России\"","7724261610","997750001"]
[813,"Котельничский муниципальный район","Александровское","33619464","ФГУП \"РТРС\"","7717127211","771701001"]
[814,"Котельничский муниципальный район","Александровское","33619464","Филиал ОАО \"РЖД\" ГЖД Кировский региональный центр дирекции по тепловодоснабжению","7708503727","435731037"]
[815,"Котельничский муниципальный район","Биртяевское","33619404","КОГУП \"Облкоммунсервис\"","4346041093","434501001"]
[816,"Котельничский муниципальный район","Биртяевское","33619404","МРФ \"Волга\" ПАО \"Ростелеком\"","7707049388","526043001"]
[817,"Котельничский муниципальный район","Биртяевское","33619404","ООО \"Спицыно\"","4313006223","431301001"]
[818,"Котельничский муниципальный район","Биртяевское","33619404","СПК колхоз \"Искра\"","4313000060","431301001"]
[819,"Котельничский муниципальный район","Биртяевское","33619404","ФГУП \"Почта России\"","7724261610","997750001"]
[820,"Котельничский муниципальный район","Биртяевское","33619404","ФГУП \"РТРС\"","7717127211","771701001"]
[821,"Котельничский муниципальный район","Вишкильское","33619432","Администрация Вишкильского сельского поселения","4313005526","431301001"]
[822,"Котельничский муниципальный район","Вишкильское","33619432","МРФ \"Волга\" ПАО \"Ростелеком\"","7707049388","526043001"]
[823,"Котельничский муниципальный район","Вишкильское","33619432","ФГУП \"Почта России\"","7724261610","997750001"]
[824,"Котельничский муниципальный район","Вишкильское","33619432","ФГУП \"РТРС\"","7717127211","771701001"]
[825,"Котельничский муниципальный район","Ежихинское","33619416","МРФ \"Волга\" ПАО \"Ростелеком\"","7707049388","526043001"]
[826,"Котельничский муниципальный район","Ежихинское","33619416","ФГУП \"Почта России\"","7724261610","997750001"]
[827,"Котельничский муниципальный район","Ежихинское","33619416","ФГУП \"РТРС\"","7717127211","771701001"]
[828,"Котельничский муниципальный район","Зайцевское","33619428","МРФ \"Волга\" ПАО \"Ростелеком\"","7707049388","526043001"]
[829,"Котельничский муниципальный район","Зайцевское","33619428","ООО \"АЛЕКС\"","4313010519","431301001"]
[830,"Котельничский муниципальный район","Зайцевское","33619428","ООО \"УК Каскад-ЖКХ\"","4313005815","431301001"]
[831,"Котельничский муниципальный район","Зайцевское","33619428","СПК колхоз \"Искра\"","4313000060","431301001"]
[832,"Котельничский муниципальный район","Зайцевское","33619428","ФГУП \"Почта России\"","7724261610","997750001"]
[833,"Котельничский муниципальный район","Зайцевское","33619428","ФГУП \"РТРС\"","7717127211","771701001"]
[834,"Котельничский муниципальный район","Карпушинское","33619440","Администрация Карпушинского сельского поселения Котельничского района","4313005484","431301001"]
[835,"Котельничский муниципальный район","Карпушинское","33619440","МРФ \"Волга\" ПАО \"Ростелеком\"","7707049388","526043001"]
[836,"Котельничский муниципальный район","Карпушинское","33619440","ООО ЖКХ \"Импульс\"","4313006199","431301001"]
[837,"Котельничский муниципальный район","Карпушинское","33619440","ФГУП \"Почта России\"","7724261610","997750001"]
[838,"Котельничский муниципальный район","Карпушинское","33619440","ФГУП \"РТРС\"","7717127211","771701001"]
[839,"Котельничский муниципальный район","Комсомольское","33619452","Администрация Комсомольского сельского поселения","4313005710","431301001"]
[840,"Котельничский муниципальный район","Комсомольское","33619452","МРФ \"Волга\" ПАО \"Ростелеком\"","7707049388","526043001"]
[841,"Котельничский муниципальный район","Комсомольское","33619452","ООО \"Альфа\"","4313009513","431301001"]
[842,"Котельничский муниципальный район","Комсомольское","33619452","ФГУП \"Почта России\"","7724261610","997750001"]
[843,"Котельничский муниципальный район","Комсомольское","33619452","ФГУП \"РТРС\"","7717127211","771701001"]
[844,"Котельничский муниципальный район","Котельничский муниципальный район","33619000","Администрация Карпушинского сельского поселения Котельничского района","4313005484","431301001"]
[845,"Котельничский муниципальный район","Котельничский муниципальный район","33619000","Администрация Светловского сельского поселения","4313005678","431301001"]
[846,"Котельничский муниципальный район","Котельничский муниципальный район","33619000","Администрация Чистопольского сельского поселения Котельничского района Кировской области","4313005766","431301001"]
[847,"Котельничский муниципальный район","Котельничский муниципальный район","33619000","КОГУП \"Облкоммунсервис\"","4346041093","434501001"]
[848,"Котельничский муниципальный район","Котельничский муниципальный район","33619000","МУП \"ЖКХ Юбилейного сельского поселения\"","4313010558","431301001"]
[849,"Котельничский муниципальный район","Котельничский муниципальный район","33619000","ООО \"АЛЕКС\"","4313010519","431301001"]
[850,"Котельничский муниципальный район","Котельничский муниципальный район","33619000","ООО \"Макарье ЖКХ\"","4313010170","431301001"]
[851,"Котельничский муниципальный район","Котельничский муниципальный район","33619000","ООО \"Спицыно\"","4313006223","431301001"]
[852,"Котельничский муниципальный район","Котельничский муниципальный район","33619000","ООО \"УК Каскад-ЖКХ\"","4313005815","431301001"]
[853,"Котельничский муниципальный район","Котельничский муниципальный район","33619000","ООО \"Юдинка\"","4313007153","431301001"]
[854,"Котельничский муниципальный район","Котельничский муниципальный район","33619000","ООО «Коммунальное предприятие»","4345420998","434501001"]
[855,"Котельничский муниципальный район","Котельничский муниципальный район","33619000","ООО ЖКХ \"Импульс\"","4313006199","431301001"]
[856,"Котельничский муниципальный район","Котельничский муниципальный район","33619000","СПК колхоз \"Искра\"","4313000060","431301001"]
[857,"Котельничский муниципальный район","Котельничский муниципальный район","33619000","ФГУП \"РТРС\"","7717127211","771701001"]
[858,"Котельничский муниципальный район","Котельничский муниципальный район","33619000","Филиал ОАО \"РЖД\" ГЖД Кировский региональный центр дирекции по тепловодоснабжению","7708503727","435731037"]
[859,"Котельничский муниципальный район","Котельничское","33619456","МРФ \"Волга\" ПАО \"Ростелеком\"","7707049388","526043001"]
[860,"Котельничский муниципальный район","Котельничское","33619456","ООО \"Леском\"","4313005244","431301001"]
[861,"Котельничский муниципальный район","Котельничское","33619456","ООО \"Спицыно\"","4313006223","431301001"]
[862,"Котельничский муниципальный район","Котельничское","33619456","ООО ЖКХ \"Импульс\"","4313006199","431301001"]
[863,"Котельничский муниципальный район","Котельничское","33619456","ФГУП \"Почта России\"","7724261610","997750001"]
[864,"Котельничский муниципальный район","Котельничское","33619456","ФГУП \"РТРС\"","7717127211","771701001"]
[865,"Котельничский муниципальный район","Красногорское","33619488","МРФ \"Волга\" ПАО \"Ростелеком\"","7707049388","526043001"]
[866,"Котельничский муниципальный район","Красногорское","33619488","ООО \"Юдинка\"","4313007153","431301001"]
[867,"Котельничский муниципальный район","Красногорское","33619488","ФГУП \"Почта России\"","7724261610","997750001"]
[868,"Котельничский муниципальный район","Красногорское","33619488","ФГУП \"РТРС\"","7717127211","771701001"]
[869,"Котельничский муниципальный район","Красногорское","33619488","Филиал ОАО \"РЖД\" ГЖД Кировский региональный центр дирекции по тепловодоснабжению","7708503727","435731037"]
[870,"Котельничский муниципальный район","Макарьевское","33619460","МРФ \"Волга\" ПАО \"Ростелеком\"","7707049388","526043001"]
[871,"Котельничский муниципальный район","Макарьевское","33619460","ООО \"Макарье ЖКХ\"","4313010170","431301001"]
[872,"Котельничский муниципальный район","Макарьевское","33619460","ФГУП \"Почта России\"","7724261610","997750001"]
[873,"Котельничский муниципальный район","Макарьевское","33619460","ФГУП \"РТРС\"","7717127211","771701001"]
[874,"Котельничский муниципальный район","Молотниковское","33619436","МРФ \"Волга\" ПАО \"Ростелеком\"","7707049388","526043001"]
[875,"Котельничский муниципальный район","Молотниковское","33619436","ООО \"УК Каскад-ЖКХ\"","4313005815","431301001"]
[876,"Котельничский муниципальный район","Молотниковское","33619436","ФГУП \"Почта России\"","7724261610","997750001"]
[877,"Котельничский муниципальный район","Молотниковское","33619436","ФГУП \"РТРС\"","7717127211","771701001"]
[878,"Котельничский муниципальный район","Морозовское","33619468","МРФ \"Волга\" ПАО \"Ростелеком\"","7707049388","526043001"]
[879,"Котельничский муниципальный район","Морозовское","33619468","ООО ЖКХ \"Импульс\"","4313006199","431301001"]
[880,"Котельничский муниципальный район","Морозовское","33619468","ФГУП \"Почта России\"","7724261610","997750001"]
[881,"Котельничский муниципальный район","Морозовское","33619468","ФГУП \"РТРС\"","7717127211","771701001"]
[882,"Котельничский муниципальный район","Покровское","33619480","МРФ \"Волга\" ПАО \"Ростелеком\"","7707049388","526043001"]
[883,"Котельничский муниципальный район","Покровское","33619480","ООО ЖКХ \"Импульс\"","4313006199","431301001"]
[884,"Котельничский муниципальный район","Покровское","33619480","ФГУП \"Почта России\"","7724261610","997750001"]
[885,"Котельничский муниципальный район","Покровское","33619480","ФГУП \"РТРС\"","7717127211","771701001"]
[886,"Котельничский муниципальный район","Родичевское","33619424","МРФ \"Волга\" ПАО \"Ростелеком\"","7707049388","526043001"]
[887,"Котельничский муниципальный район","Родичевское","33619424","ООО \"АЛЕКС\"","4313010519","431301001"]
[888,"Котельничский муниципальный район","Родичевское","33619424","ФГУП \"Почта России\"","7724261610","997750001"]
[889,"Котельничский муниципальный район","Родичевское","33619424","ФГУП \"РТРС\"","7717127211","771701001"]
[890,"Котельничский муниципальный район","Светловское","33619481","Администрация Светловского сельского поселения","4313005678","431301001"]
[891,"Котельничский муниципальный район","Светловское","33619481","КОГУП \"Облкоммунсервис\"","4346041093","434501001"]
[892,"Котельничский муниципальный район","Светловское","33619481","МРФ \"Волга\" ПАО \"Ростелеком\"","7707049388","526043001"]
[893,"Котельничский муниципальный район","Светловское","33619481","ФГУП \"Почта России\"","7724261610","997750001"]
[894,"Котельничский муниципальный район","Светловское","33619481","ФГУП \"РТРС\"","7717127211","771701001"]
[895,"Котельничский муниципальный район","Спасское","33619484","МРФ \"Волга\" ПАО \"Ростелеком\"","7707049388","526043001"]
[896,"Котельничский муниципальный район","Спасское","33619484","ФГУП \"Почта России\"","7724261610","997750001"]
[897,"Котельничский муниципальный район","Спасское","33619484","ФГУП \"РТРС\"","7717127211","771701001"]
[898,"Котельничский муниципальный район","Сретенское","33619486","МРФ \"Волга\" ПАО \"Ростелеком\"","7707049388","526043001"]
[899,"Котельничский муниципальный район","Сретенское","33619486","ФГУП \"Почта России\"","7724261610","997750001"]
[900,"Котельничский муниципальный район","Сретенское","33619486","ФГУП \"РТРС\"","7717127211","771701001"]
[901,"Котельничский муниципальный район","Чистопольское","33619490","Администрация Чистопольского сельского поселения Котельничского района Кировской области","4313005766","431301001"]
[902,"Котельничский муниципальный район","Чистопольское","33619490","МРФ \"Волга\" ПАО \"Ростелеком\"","7707049388","526043001"]
[903,"Котельничский муниципальный район","Чистопольское","33619490","ФГУП \"Почта России\"","7724261610","997750001"]
[904,"Котельничский муниципальный район","Чистопольское","33619490","ФГУП \"РТРС\"","7717127211","771701001"]
[905,"Котельничский муниципальный район","Юбилейное","33619448","МРФ \"Волга\" ПАО \"Ростелеком\"","7707049388","526043001"]
[906,"Котельничский муниципальный район","Юбилейное","33619448","МУП \"ЖКХ Юбилейного сельского поселения\"","4313010558","431301001"]
[907,"Котельничский муниципальный район","Юбилейное","33619448","ООО «Коммунальное предприятие»","4345420998","434501001"]
[908,"Котельничский муниципальный район","Юбилейное","33619448","ООО Агрофирма \"Колхоз \"Путь Ленина\"","4313009601","431301001"]
[909,"Котельничский муниципальный район","Юбилейное","33619448","ФГУП \"Почта России\"","7724261610","997750001"]
[910,"Котельничский муниципальный район","Юбилейное","33619448","ФГУП \"РТРС\"","7717127211","771701001"]
[911,"Котельничский муниципальный район","Юрьевское","33619494","МРФ \"Волга\" ПАО \"Ростелеком\"","7707049388","526043001"]
[912,"Котельничский муниципальный район","Юрьевское","33619494","ООО \"Спицыно\"","4313006223","431301001"]
[913,"Котельничский муниципальный район","Юрьевское","33619494","ФГУП \"Почта России\"","7724261610","997750001"]
[914,"Котельничский муниципальный район","Юрьевское","33619494","ФГУП \"РТРС\"","7717127211","771701001"]
[915,"Куменский муниципальный район","Березниковское","33620408","МРФ \"Волга\" ПАО \"Ростелеком\"","7707049388","526043001"]
[916,"Куменский муниципальный район","Березниковское","33620408","ООО \"Тепло-транс\"","4314005590","431401001"]
[917,"Куменский муниципальный район","Березниковское","33620408","СПК \"Березниковский\"","4314000626","431401001"]
[918,"Куменский муниципальный район","Березниковское","33620408","ФГУП \"Почта России\"","7724261610","997750001"]
[919,"Куменский муниципальный район","Березниковское","33620408","ФГУП \"РТРС\"","7717127211","771701001"]
[920,"Куменский муниципальный район","Большеперелазское","33620440","МРФ \"Волга\" ПАО \"Ростелеком\"","7707049388","526043001"]
[921,"Куменский муниципальный район","Большеперелазское","33620440","МУП \"Куменские тепловые системы\"","4314005173","431401001"]
[922,"Куменский муниципальный район","Большеперелазское","33620440","ООО \"Куменское ВКХ\"","4314004317","431401001"]
[923,"Куменский муниципальный район","Большеперелазское","33620440","СПК  (колхоз)  \"Знамя Ленина\"","4314000231","431401001"]
[924,"Куменский муниципальный район","Большеперелазское","33620440","СПК (колхоз) \"Красное знамя\"","4314000369","431401001"]
[925,"Куменский муниципальный район","Большеперелазское","33620440","ФГУП \"Почта России\"","7724261610","997750001"]
[926,"Куменский муниципальный район","Большеперелазское","33620440","ФГУП \"РТРС\"","7717127211","771701001"]
[927,"Куменский муниципальный район","Верхобыстрицкое","33620416","МРФ \"Волга\" ПАО \"Ростелеком\"","7707049388","526043001"]
[928,"Куменский муниципальный район","Верхобыстрицкое","33620416","ООО \"Плюс\"","4314005487","431401001"]
[929,"Куменский муниципальный район","Верхобыстрицкое","33620416","ФГУП \"Почта России\"","7724261610","997750001"]
[930,"Куменский муниципальный район","Верхобыстрицкое","33620416","ФГУП \"РТРС\"","7717127211","771701001"]
[931,"Куменский муниципальный район","Вичевское","33620420","ЗАО племзавод \"Октябрьский\"","4314004250","431401001"]
[932,"Куменский муниципальный район","Вичевское","33620420","МРФ \"Волга\" ПАО \"Ростелеком\"","7707049388","526043001"]
[933,"Куменский муниципальный район","Вичевское","33620420","ООО \"Вожгальское домоуправление\"","4314005423","431401001"]
[934,"Куменский муниципальный район","Вичевское","33620420","ООО \"Газпром теплоэнерго Киров\"","4345268905","434501001"]
[935,"Куменский муниципальный район","Вичевское","33620420","ФГУП \"Почта России\"","7724261610","997750001"]
[936,"Куменский муниципальный район","Вичевское","33620420","ФГУП \"РТРС\"","7717127211","771701001"]
[937,"Куменский муниципальный район","Вожгальское","33620421","МРФ \"Волга\" ПАО \"Ростелеком\"","7707049388","526043001"]
[938,"Куменский муниципальный район","Вожгальское","33620421","ООО \"Вожгальское домоуправление\"","4314005423","431401001"]
[939,"Куменский муниципальный район","Вожгальское","33620421","ООО \"Газпром теплоэнерго Киров\"","4345268905","434501001"]
[940,"Куменский муниципальный район","Вожгальское","33620421","СПК (колхоз) \"Красное знамя\"","4314000369","431401001"]
[941,"Куменский муниципальный район","Вожгальское","33620421","СПК ордена Ленина племзавод \"Красный Октябрь\"","4314000721","431401001"]
[942,"Куменский муниципальный район","Вожгальское","33620421","ФГУП \"Почта России\"","7724261610","997750001"]
[943,"Куменский муниципальный район","Вожгальское","33620421","ФГУП \"РТРС\"","7717127211","771701001"]
[944,"Куменский муниципальный район","Кумёнское","33620428","МРФ \"Волга\" ПАО \"Ростелеком\"","7707049388","526043001"]
[945,"Куменский муниципальный район","Кумёнское","33620428","МУП \"Куменские тепловые системы\"","4314005173","431401001"]
[946,"Куменский муниципальный район","Кумёнское","33620428","ООО \"Газпром теплоэнерго Киров\"","4345268905","434501001"]
[947,"Куменский муниципальный район","Кумёнское","33620428","ООО \"Куменское ВКХ\"","4314004317","431401001"]
[948,"Куменский муниципальный район","Кумёнское","33620428","ФГУП \"Почта России\"","7724261610","997750001"]
[949,"Куменский муниципальный район","Кумёнское","33620428","ФГУП \"РТРС\"","7717127211","771701001"]
[950,"Куменский муниципальный район","Куменский муниципальный район","33620000","ИП Мартынов Николай Алексеевич","431401081640","отсутствует"]
[951,"Куменский муниципальный район","Куменский муниципальный район","33620000","МУП \"Куменский коммунсервис\"","4314005180","431401001"]
[952,"Куменский муниципальный район","Куменский муниципальный район","33620000","МУП ЖКХ п.Речной","4314005938","431401001"]
[953,"Куменский муниципальный район","Куменский муниципальный район","33620000","ОАО \"Коммунэнерго\"","4346011123","434501001"]
[954,"Куменский муниципальный район","Куменский муниципальный район","33620000","ООО \"Вожгальское домоуправление\"","4314005423","431401001"]
[955,"Куменский муниципальный район","Куменский муниципальный район","33620000","ООО \"Газпром теплоэнерго Киров\"","4345268905","434501001"]
[956,"Куменский муниципальный район","Куменский муниципальный район","33620000","СПК (колхоз) \"Красное знамя\"","4314000369","431401001"]
[957,"Куменский муниципальный район","Куменский муниципальный район","33620000","ФГУП \"РТРС\"","7717127211","771701001"]
[958,"Куменский муниципальный район","Поселок Кумены","33620151","МРФ \"Волга\" ПАО \"Ростелеком\"","7707049388","526043001"]
[959,"Куменский муниципальный район","Поселок Кумены","33620151","МУП \"Куменские тепловые системы\"","4314005173","431401001"]
[960,"Куменский муниципальный район","Поселок Кумены","33620151","МУП \"Куменский коммунсервис\"","4314005180","431401001"]
[961,"Куменский муниципальный район","Поселок Кумены","33620151","ОАО \"Коммунэнерго\"","4346011123","434501001"]
[962,"Куменский муниципальный район","Поселок Кумены","33620151","ООО \"Газпром теплоэнерго Киров\"","4345268905","434501001"]
[963,"Куменский муниципальный район","Поселок Кумены","33620151","ООО \"Куменское ВКХ\"","4314004317","431401001"]
[964,"Куменский муниципальный район","Поселок Кумены","33620151","ООО «Тепло»","4314005906","431401001"]
[965,"Куменский муниципальный район","Поселок Кумены","33620151","ФГУП \"Почта России\"","7724261610","997750001"]
[966,"Куменский муниципальный район","Поселок Кумены","33620151","ФГУП \"РТРС\"","7717127211","771701001"]
[967,"Куменский муниципальный район","Поселок Нижнеивкино","33620154","ЗАО \"Санаторий Нижне-Ивкино\"","4314000305","431401001"]
[968,"Куменский муниципальный район","Поселок Нижнеивкино","33620154","КОГБУЗ \"Кировская областная больница восстановительного лечения\"","4314005254","431401001"]
[969,"Куменский муниципальный район","Поселок Нижнеивкино","33620154","МРФ \"Волга\" ПАО \"Ростелеком\"","7707049388","526043001"]
[970,"Куменский муниципальный район","Поселок Нижнеивкино","33620154","МУП \"Куменские тепловые системы\"","4314005173","431401001"]
[971,"Куменский муниципальный район","Поселок Нижнеивкино","33620154","ООО \"ВКБ-Сервис\"","4314005705","431401001"]
[972,"Куменский муниципальный район","Поселок Нижнеивкино","33620154","ООО \"Санаторий \"Лесная Новь\" имени Ю.Ф. Янтарева\"","4314005945","431401001"]
[973,"Куменский муниципальный район","Поселок Нижнеивкино","33620154","ФГУП \"Почта России\"","7724261610","997750001"]
[974,"Куменский муниципальный район","Поселок Нижнеивкино","33620154","ФГУП \"РТРС\"","7717127211","771701001"]
[975,"Куменский муниципальный район","Речное","33620444","ИП Мартынов Николай Алексеевич","431401081640","отсутствует"]
[976,"Куменский муниципальный район","Речное","33620444","МРФ \"Волга\" ПАО \"Ростелеком\"","7707049388","526043001"]
[977,"Куменский муниципальный район","Речное","33620444","МУП ЖКХ п.Речной","4314005938","431401001"]
[978,"Куменский муниципальный район","Речное","33620444","ООО \"Олимпийские тепловые сети\"","4314005656","431401001"]
[979,"Куменский муниципальный район","Речное","33620444","ФГУП \"Почта России\"","7724261610","997750001"]
[980,"Куменский муниципальный район","Речное","33620444","ФГУП \"РТРС\"","7717127211","771701001"]
[981,"Лебяжский муниципальный район","Ветошкинское","33621412","Администрация Ветошкинского с/п","4315006405","431501001"]
[982,"Лебяжский муниципальный район","Ветошкинское","33621412","МРФ \"Волга\" ПАО \"Ростелеком\"","7707049388","526043001"]
[983,"Лебяжский муниципальный район","Ветошкинское","33621412","ФГУП \"Почта России\"","7724261610","997750001"]
[984,"Лебяжский муниципальный район","Ветошкинское","33621412","ФГУП \"РТРС\"","7717127211","771701001"]
[985,"Лебяжский муниципальный район","Лажское","33621444","МКУ Администрация Лажского сельского поселения Лебяжского района Кировкой области","4315006613","431501001"]
[986,"Лебяжский муниципальный район","Лажское","33621444","МРФ \"Волга\" ПАО \"Ростелеком\"","7707049388","526043001"]
[987,"Лебяжский муниципальный район","Лажское","33621444","ФГУП \"Почта России\"","7724261610","997750001"]
[988,"Лебяжский муниципальный район","Лажское","33621444","ФГУП \"РТРС\"","7717127211","771701001"]
[989,"Лебяжский муниципальный район","Лебяжский муниципальный район","33621000","ФГУП \"РТРС\"","7717127211","771701001"]
[990,"Лебяжский муниципальный район","Михеевское","33621404","МКУ Администрация Михеевского сельского поселения Лебяжского района Кировской области","4315006660","431501001"]
[991,"Лебяжский муниципальный район","Михеевское","33621404","МРФ \"Волга\" ПАО \"Ростелеком\"","7707049388","526043001"]
[992,"Лебяжский муниципальный район","Михеевское","33621404","ФГУП \"Почта России\"","7724261610","997750001"]
[993,"Лебяжский муниципальный район","Михеевское","33621404","ФГУП \"РТРС\"","7717127211","771701001"]
[994,"Лебяжский муниципальный район","Поселок Лебяжье","33621151","КОГБУЗ \"Лебяжская ЦРБ\"","4315001100","431501001"]
[995,"Лебяжский муниципальный район","Поселок Лебяжье","33621151","МРФ \"Волга\" ПАО \"Ростелеком\"","7707049388","526043001"]
[996,"Лебяжский муниципальный район","Поселок Лебяжье","33621151","МУП \"Коммунсервис\"","4315002545","431501001"]
[997,"Лебяжский муниципальный район","Поселок Лебяжье","33621151","ФГУП \"Почта России\"","7724261610","997750001"]
[998,"Лебяжский муниципальный район","Поселок Лебяжье","33621151","ФГУП \"РТРС\"","7717127211","771701001"]
[999,"Лузский муниципальный район","Город Луза","33622101","Индивидуальный предприниматель Одегов А.Н.","431600019020","431601001"]
[1000,"Лузский муниципальный район","Город Луза","33622101","МРФ \"Волга\" ПАО \"Ростелеком\"","7707049388","526043001"]
[1001,"Лузский муниципальный район","Город Луза","33622101","МУП «Коммунсервис»","4316005919","431601001"]
[1002,"Лузский муниципальный район","Город Луза","33622101","ООО \"Лузское УЖКХ\"","4316005757","431601001"]
[1003,"Лузский муниципальный район","Город Луза","33622101","ООО Инвестиционная компания «Развитие»","4318004163","431801001"]
[1004,"Лузский муниципальный район","Город Луза","33622101","ФГУП \"Почта России\"","7724261610","997750001"]
[1005,"Лузский муниципальный район","Город Луза","33622101","ФГУП \"РТРС\"","7717127211","771701001"]
[1006,"Лузский муниципальный район","Лузский муниципальный район","33622000","ФГУП \"РТРС\"","7717127211","771701001"]
[1007,"Лузский муниципальный район","Папуловское","33622428","МРФ \"Волга\" ПАО \"Ростелеком\"","7707049388","526043001"]
[1008,"Лузский муниципальный район","Папуловское","33622428","ФГУП \"Почта России\"","7724261610","997750001"]
[1009,"Лузский муниципальный район","Папуловское","33622428","ФГУП \"РТРС\"","7717127211","771701001"]
[1010,"Лузский муниципальный район","Поселок Лальск","33622154","МРФ \"Волга\" ПАО \"Ростелеком\"","7707049388","526043001"]
[1011,"Лузский муниципальный район","Поселок Лальск","33622154","ООО \"Лальский коммунальный сервис\"","4316005450","431601001"]
[1012,"Лузский муниципальный район","Поселок Лальск","33622154","ФГУП \"Почта России\"","7724261610","997750001"]
[1013,"Лузский муниципальный район","Поселок Лальск","33622154","ФГУП \"РТРС\"","7717127211","771701001"]
[1014,"Малмыжский муниципальный район","Аджимское","33623404","МРФ \"Волга\" ПАО \"Ростелеком\"","7707049388","526043001"]
[1015,"Малмыжский муниципальный район","Аджимское","33623404","ООО \"Водолей\"","4317006841","431701001"]
[1016,"Малмыжский муниципальный район","Аджимское","33623404","ООО «Приор»","4317006111","431701001"]
[1017,"Малмыжский муниципальный район","Аджимское","33623404","СПК сельскохозяйственный артель-колхоз \"Зерновой\"","4317000800","431701001"]
[1018,"Малмыжский муниципальный район","Аджимское","33623404","ФГУП \"Почта России\"","7724261610","997750001"]
[1019,"Малмыжский муниципальный район","Аджимское","33623404","ФГУП \"РТРС\"","7717127211","771701001"]
[1020,"Малмыжский муниципальный район","Арыкское","33623408","МРФ \"Волга\" ПАО \"Ростелеком\"","7707049388","526043001"]
[1021,"Малмыжский муниципальный район","Арыкское","33623408","ФГУП \"Почта России\"","7724261610","997750001"]
[1022,"Малмыжский муниципальный район","Арыкское","33623408","ФГУП \"РТРС\"","7717127211","771701001"]
[1023,"Малмыжский муниципальный район","Большекитякское","33623412","МРФ \"Волга\" ПАО \"Ростелеком\"","7707049388","526043001"]
[1024,"Малмыжский муниципальный район","Большекитякское","33623412","ООО \"ЖКХ\" г. Малмыж","4317005196","431701001"]
[1025,"Малмыжский муниципальный район","Большекитякское","33623412","ООО \"Технические системы\"","4317005982","431701001"]
[1026,"Малмыжский муниципальный район","Большекитякское","33623412","ФГУП \"Почта России\"","7724261610","997750001"]
[1027,"Малмыжский муниципальный район","Большекитякское","33623412","ФГУП \"РТРС\"","7717127211","771701001"]
[1028,"Малмыжский муниципальный район","Город Малмыж","33623101","ИП Васильев Геннадий Иванович","431701399635","431701001"]
[1029,"Малмыжский муниципальный район","Город Малмыж","33623101","ИП Габдуллин Н.А.","431700008590","отсутствует"]
[1030,"Малмыжский муниципальный район","Город Малмыж","33623101","ИП Заболотских А. В.","431700046845","отсутствует"]
[1031,"Малмыжский муниципальный район","Город Малмыж","33623101","КОГКУСО «Малмыжский психоневрологический интернат»","4317001900","431701001"]
[1032,"Малмыжский муниципальный район","Город Малмыж","33623101","Кировский филиал ПАО \"Ростелеком\"","7707049388","434543001"]
[1033,"Малмыжский муниципальный район","Город Малмыж","33623101","МРФ \"Волга\" ПАО \"Ростелеком\"","7707049388","526043001"]
[1034,"Малмыжский муниципальный район","Город Малмыж","33623101","МУП \"Газстрой\"","4317002773","431701001"]
[1035,"Малмыжский муниципальный район","Город Малмыж","33623101","ОАО \"Малмыжский завод по ремонту диз.двигателей\"","4317000543","431701001"]
[1036,"Малмыжский муниципальный район","Город Малмыж","33623101","ООО \"ЖКХ\" г. Малмыж","4317005196","431701001"]
[1037,"Малмыжский муниципальный район","Город Малмыж","33623101","СПК сельскохозяйственный артель-колхоз \"Зерновой\"","4317000800","431701001"]
[1038,"Малмыжский муниципальный район","Город Малмыж","33623101","ФГУП \"Почта России\"","7724261610","997750001"]
[1039,"Малмыжский муниципальный район","Город Малмыж","33623101","ФГУП \"РТРС\"","7717127211","771701001"]
[1040,"Малмыжский муниципальный район","Каксинвайское","33623424","МРФ \"Волга\" ПАО \"Ростелеком\"","7707049388","526043001"]
[1041,"Малмыжский муниципальный район","Каксинвайское","33623424","ФГУП \"Почта России\"","7724261610","997750001"]
[1042,"Малмыжский муниципальный район","Каксинвайское","33623424","ФГУП \"РТРС\"","7717127211","771701001"]
[1043,"Малмыжский муниципальный район","Калининское","33623428","ИП Васильев Геннадий Иванович","431701399635","431701001"]
[1044,"Малмыжский муниципальный район","Калининское","33623428","МРФ \"Волга\" ПАО \"Ростелеком\"","7707049388","526043001"]
[1045,"Малмыжский муниципальный район","Калининское","33623428","МУП \"Топливо\"","4317004918","431701001"]
[1046,"Малмыжский муниципальный район","Калининское","33623428","ФГУП \"Почта России\"","7724261610","997750001"]
[1047,"Малмыжский муниципальный район","Калининское","33623428","ФГУП \"РТРС\"","7717127211","771701001"]
[1048,"Малмыжский муниципальный район","Константиновское","33623432","МРФ \"Волга\" ПАО \"Ростелеком\"","7707049388","526043001"]
[1049,"Малмыжский муниципальный район","Константиновское","33623432","ФГУП \"Почта России\"","7724261610","997750001"]
[1050,"Малмыжский муниципальный район","Константиновское","33623432","ФГУП \"РТРС\"","7717127211","771701001"]
[1051,"Малмыжский муниципальный район","Малмыжский муниципальный район","33623000","Администрация Савальского сельского поселения","4317005573","431700100"]
[1052,"Малмыжский муниципальный район","Малмыжский муниципальный район","33623000","КОГКУСО «Малмыжский психоневрологический интернат»","4317001900","431701001"]
[1053,"Малмыжский муниципальный район","Малмыжский муниципальный район","33623000","ООО \"ЖКХ\" г. Малмыж","4317005196","431701001"]
[1054,"Малмыжский муниципальный район","Малмыжский муниципальный район","33623000","ООО «Приор»","4317006111","431701001"]
[1055,"Малмыжский муниципальный район","Малмыжский муниципальный район","33623000","ФГУП \"РТРС\"","7717127211","771701001"]
[1056,"Малмыжский муниципальный район","Мари-Малмыжское","33623436","ИП Васильев Геннадий Иванович","431701399635","431701001"]
[1057,"Малмыжский муниципальный район","Мари-Малмыжское","33623436","МРФ \"Волга\" ПАО \"Ростелеком\"","7707049388","526043001"]
[1058,"Малмыжский муниципальный район","Мари-Малмыжское","33623436","ФГУП \"Почта России\"","7724261610","997750001"]
[1059,"Малмыжский муниципальный район","Мари-Малмыжское","33623436","ФГУП \"РТРС\"","7717127211","771701001"]
[1060,"Малмыжский муниципальный район","Мелетское","33623440","МРФ \"Волга\" ПАО \"Ростелеком\"","7707049388","526043001"]
[1061,"Малмыжский муниципальный район","Мелетское","33623440","ФГУП \"Почта России\"","7724261610","997750001"]
[1062,"Малмыжский муниципальный район","Мелетское","33623440","ФГУП \"РТРС\"","7717127211","771701001"]
[1063,"Малмыжский муниципальный район","Новосмаильское","33623444","МРФ \"Волга\" ПАО \"Ростелеком\"","7707049388","526043001"]
[1064,"Малмыжский муниципальный район","Новосмаильское","33623444","МУП \"Газстрой\"","4317002773","431701001"]
[1065,"Малмыжский муниципальный район","Новосмаильское","33623444","ООО \"ЖКХ\" г. Малмыж","4317005196","431701001"]
[1066,"Малмыжский муниципальный район","Новосмаильское","33623444","ООО \"Технические системы\"","4317005982","431701001"]
[1067,"Малмыжский муниципальный район","Новосмаильское","33623444","ФГУП \"Почта России\"","7724261610","997750001"]
[1068,"Малмыжский муниципальный район","Новосмаильское","33623444","ФГУП \"РТРС\"","7717127211","771701001"]
[1069,"Малмыжский муниципальный район","Плотбищенское","33623448","Администрация Плотбищенского с/п","4317005333","431701001"]
[1070,"Малмыжский муниципальный район","Плотбищенское","33623448","МРФ \"Волга\" ПАО \"Ростелеком\"","7707049388","526043001"]
[1071,"Малмыжский муниципальный район","Плотбищенское","33623448","ФГУП \"Почта России\"","7724261610","997750001"]
[1072,"Малмыжский муниципальный район","Плотбищенское","33623448","ФГУП \"РТРС\"","7717127211","771701001"]
[1073,"Малмыжский муниципальный район","Преображенское","33623452","МРФ \"Волга\" ПАО \"Ростелеком\"","7707049388","526043001"]
[1074,"Малмыжский муниципальный район","Преображенское","33623452","ФГУП \"Почта России\"","7724261610","997750001"]
[1075,"Малмыжский муниципальный район","Преображенское","33623452","ФГУП \"РТРС\"","7717127211","771701001"]
[1076,"Малмыжский муниципальный район","Ральниковское","33623456","МРФ \"Волга\" ПАО \"Ростелеком\"","7707049388","526043001"]
[1077,"Малмыжский муниципальный район","Ральниковское","33623456","ООО \"Порез\"","4317005774","431701001"]
[1078,"Малмыжский муниципальный район","Ральниковское","33623456","ФГУП \"Почта России\"","7724261610","997750001"]
[1079,"Малмыжский муниципальный район","Ральниковское","33623456","ФГУП \"РТРС\"","7717127211","771701001"]
[1080,"Малмыжский муниципальный район","Рожкинское","33623460","Администрация Рожкинского с/п","4317005326","431701001"]
[1081,"Малмыжский муниципальный район","Рожкинское","33623460","МРФ \"Волга\" ПАО \"Ростелеком\"","7707049388","526043001"]
[1082,"Малмыжский муниципальный район","Рожкинское","33623460","ООО \"ЖКХ\" г. Малмыж","4317005196","431701001"]
[1083,"Малмыжский муниципальный район","Рожкинское","33623460","ФГУП \"Почта России\"","7724261610","997750001"]
[1084,"Малмыжский муниципальный район","Рожкинское","33623460","ФГУП \"РТРС\"","7717127211","771701001"]
[1085,"Малмыжский муниципальный район","Савальское","33623464","Администрация Савальского сельского поселения","4317005573","431700100"]
[1086,"Малмыжский муниципальный район","Савальское","33623464","ИП Солодянкина Н.Н.","431700312617","000000000"]
[1087,"Малмыжский муниципальный район","Савальское","33623464","МРФ \"Волга\" ПАО \"Ростелеком\"","7707049388","526043001"]
[1088,"Малмыжский муниципальный район","Савальское","33623464","ООО «Приор»","4317006111","431701001"]
[1089,"Малмыжский муниципальный район","Савальское","33623464","СПК сельскохозяйственный артель-колхоз \"Зерновой\"","4317000800","431701001"]
[1090,"Малмыжский муниципальный район","Савальское","33623464","ФГУП \"Почта России\"","7724261610","997750001"]
[1091,"Малмыжский муниципальный район","Савальское","33623464","ФГУП \"РТРС\"","7717127211","771701001"]
[1092,"Малмыжский муниципальный район","Староирюкское","33623470","МРФ \"Волга\" ПАО \"Ростелеком\"","7707049388","526043001"]
[1093,"Малмыжский муниципальный район","Староирюкское","33623470","ООО «Приор»","4317006111","431701001"]
[1094,"Малмыжский муниципальный район","Староирюкское","33623470","СПК сельскохозяйственный артель-колхоз \"Зерновой\"","4317000800","431701001"]
[1095,"Малмыжский муниципальный район","Староирюкское","33623470","ФГУП \"Почта России\"","7724261610","997750001"]
[1096,"Малмыжский муниципальный район","Староирюкское","33623470","ФГУП \"РТРС\"","7717127211","771701001"]
[1097,"Малмыжский муниципальный район","Старотушкинское","33623472","МРФ \"Волга\" ПАО \"Ростелеком\"","7707049388","526043001"]
[1098,"Малмыжский муниципальный район","Старотушкинское","33623472","ООО \"ЖКХ\" г. Малмыж","4317005196","431701001"]
[1099,"Малмыжский муниципальный район","Старотушкинское","33623472","СПК-СХА (колхоз) им.Мичурина","4317000712","431701001"]
[1100,"Малмыжский муниципальный район","Старотушкинское","33623472","ФГУП \"Почта России\"","7724261610","997750001"]
[1101,"Малмыжский муниципальный район","Старотушкинское","33623472","ФГУП \"РТРС\"","7717127211","771701001"]
[1102,"Малмыжский муниципальный район","Тат-Верх-Гоньбинское","33623476","МРФ \"Волга\" ПАО \"Ростелеком\"","7707049388","526043001"]
[1103,"Малмыжский муниципальный район","Тат-Верх-Гоньбинское","33623476","ООО «Приор»","4317006111","431701001"]
[1104,"Малмыжский муниципальный район","Тат-Верх-Гоньбинское","33623476","СПК СХА (колхоз) \"Гигант\"","4317000487","431701001"]
[1105,"Малмыжский муниципальный район","Тат-Верх-Гоньбинское","33623476","СПК сельскохозяйственный артель-колхоз \"Зерновой\"","4317000800","431701001"]
[1106,"Малмыжский муниципальный район","Тат-Верх-Гоньбинское","33623476","ФГУП \"Почта России\"","7724261610","997750001"]
[1107,"Малмыжский муниципальный район","Тат-Верх-Гоньбинское","33623476","ФГУП \"РТРС\"","7717127211","771701001"]
[1108,"Мурашинский муниципальный район","Город Мураши","33624101","Горьковская дирекция по тепловодоснабжению структурное подразделение Центральной дирекции по тепловодоснабжению - филиала ОАО \"РЖД\"","7708503727","525745041"]
[1109,"Мурашинский муниципальный район","Город Мураши","33624101","МРФ \"Волга\" ПАО \"Ростелеком\"","7707049388","526043001"]
[1110,"Мурашинский муниципальный район","Город Мураши","33624101","МУП \"Водник\"","4318001719","431801001"]
[1111,"Мурашинский муниципальный район","Город Мураши","33624101","ООО \"Вяткомсервис\"","4345042048","434501001"]
[1112,"Мурашинский муниципальный район","Город Мураши","33624101","ООО \"Полигон\"","4318004188","431801001"]
[1113,"Мурашинский муниципальный район","Город Мураши","33624101","ООО \"Тепло-Сервис\"","4318003723","431801001"]
[1114,"Мурашинский муниципальный район","Город Мураши","33624101","ООО \"Теплоинвест\"","4318004340","431801001"]
[1115,"Мурашинский муниципальный район","Город Мураши","33624101","ООО «ТеплоИнвест Плюс»","4318000289","431801001"]
[1116,"Мурашинский муниципальный район","Город Мураши","33624101","ФГКУ «3 отряд федеральной противопожарной службы по Кировской области»","4345026783","434501001"]
[1117,"Мурашинский муниципальный район","Город Мураши","33624101","ФГУП \"Почта России\"","7724261610","997750001"]
[1118,"Мурашинский муниципальный район","Город Мураши","33624101","ФГУП \"РТРС\"","7717127211","771701001"]
[1119,"Мурашинский муниципальный район","Город Мураши","33624101","Филиал ОАО \"РЖД\" ГЖД Кировский региональный центр дирекции по тепловодоснабжению","7708503727","435731037"]
[1120,"Мурашинский муниципальный район","Мурашинский муниципальный район","33624000","Горьковская дирекция по тепловодоснабжению структурное подразделение Центральной дирекции по тепловодоснабжению - филиала ОАО \"РЖД\"","7708503727","525745041"]
[1121,"Мурашинский муниципальный район","Мурашинский муниципальный район","33624000","МУП \"Родник\"","4318004519","431801001"]
[1122,"Мурашинский муниципальный район","Мурашинский муниципальный район","33624000","ООО \"Жилкомсервис\"","4318004565","431801001"]
[1123,"Мурашинский муниципальный район","Мурашинский муниципальный район","33624000","ООО \"Тепло-Сервис\"","4318003723","431801001"]
[1124,"Мурашинский муниципальный район","Мурашинский муниципальный район","33624000","ООО «ТеплоИнвест Плюс»","4318000289","431801001"]
[1125,"Мурашинский муниципальный район","Мурашинский муниципальный район","33624000","ООО «ТрансЛес»","4318003804","431801001"]
[1126,"Мурашинский муниципальный район","Мурашинский муниципальный район","33624000","ФГКУ «3 отряд федеральной противопожарной службы по Кировской области»","4345026783","434501001"]
[1127,"Мурашинский муниципальный район","Мурашинский муниципальный район","33624000","ФГУП \"РТРС\"","7717127211","771701001"]
[1128,"Мурашинский муниципальный район","Мурашинский муниципальный район","33624000","Филиал ОАО \"РЖД\" ГЖД Кировский региональный центр дирекции по тепловодоснабжению","7708503727","435731037"]
[1129,"Мурашинский муниципальный район","Мурашинское","33624435","МРФ \"Волга\" ПАО \"Ростелеком\"","7707049388","526043001"]
[1130,"Мурашинский муниципальный район","Мурашинское","33624435","МУП \"Родник\"","4318004519","431801001"]
[1131,"Мурашинский муниципальный район","Мурашинское","33624435","ООО \"ЖКХ Октябрьский\"","4318004445","431801001"]
[1132,"Мурашинский муниципальный район","Мурашинское","33624435","ООО \"Жилкомсервис\"","4318004565","431801001"]
[1133,"Мурашинский муниципальный район","Мурашинское","33624435","ООО «ТрансЛес»","4318003804","431801001"]
[1134,"Мурашинский муниципальный район","Мурашинское","33624435","СПК колхоз \"Мурашинский\"","4318000842","431801001"]
[1135,"Мурашинский муниципальный район","Мурашинское","33624435","ФГУП \"Почта России\"","7724261610","997750001"]
[1136,"Мурашинский муниципальный район","Мурашинское","33624435","ФГУП \"РТРС\"","7717127211","771701001"]
[1137,"Нагорский муниципальный район","Кобринское","33625416","МРФ \"Волга\" ПАО \"Ростелеком\"","7707049388","526043001"]
[1138,"Нагорский муниципальный район","Кобринское","33625416","ООО \"ЖилКомСервис\"","4319006678","431901001"]
[1139,"Нагорский муниципальный район","Кобринское","33625416","ФГУП \"Почта России\"","7724261610","997750001"]
[1140,"Нагорский муниципальный район","Кобринское","33625416","ФГУП \"РТРС\"","7717127211","771701001"]
[1141,"Нагорский муниципальный район","Метелевское","33625424","МРФ \"Волга\" ПАО \"Ростелеком\"","7707049388","526043001"]
[1142,"Нагорский муниципальный район","Метелевское","33625424","ФГУП \"Почта России\"","7724261610","997750001"]
[1143,"Нагорский муниципальный район","Метелевское","33625424","ФГУП \"РТРС\"","7717127211","771701001"]
[1144,"Нагорский муниципальный район","Мулинское","33625428","МРФ \"Волга\" ПАО \"Ростелеком\"","7707049388","526043001"]
[1145,"Нагорский муниципальный район","Мулинское","33625428","МУП \"Мулинское ЖКХ\"","4319003099","431901001"]
[1146,"Нагорский муниципальный район","Мулинское","33625428","ФГУП \"Почта России\"","7724261610","997750001"]
[1147,"Нагорский муниципальный район","Мулинское","33625428","ФГУП \"РТРС\"","7717127211","771701001"]
[1148,"Нагорский муниципальный район","Нагорский муниципальный район","33625000","ФГУП \"РТРС\"","7717127211","771701001"]
[1149,"Нагорский муниципальный район","Поселок Нагорск","33625151","МРФ \"Волга\" ПАО \"Ростелеком\"","7707049388","526043001"]
[1150,"Нагорский муниципальный район","Поселок Нагорск","33625151","Нагорское Райпо","4319000429","431901001"]
[1151,"Нагорский муниципальный район","Поселок Нагорск","33625151","ООО \"Нагорская МСО\"","4319000186","431901001"]
[1152,"Нагорский муниципальный район","Поселок Нагорск","33625151","ООО «Нагорские коммунальные системы»","4319000362","431901001"]
[1153,"Нагорский муниципальный район","Поселок Нагорск","33625151","УФПС Кировской области – филиал ФГУП «Почта России»","7724261610","434502001"]
[1154,"Нагорский муниципальный район","Поселок Нагорск","33625151","ФГУП \"Почта России\"","7724261610","997750001"]
[1155,"Нагорский муниципальный район","Поселок Нагорск","33625151","ФГУП \"РТРС\"","7717127211","771701001"]
[1156,"Нагорский муниципальный район","Синегорское","33625444","МРФ \"Волга\" ПАО \"Ростелеком\"","7707049388","526043001"]
[1157,"Нагорский муниципальный район","Синегорское","33625444","ООО \"ЖилКомСервис\"","4319006678","431901001"]
[1158,"Нагорский муниципальный район","Синегорское","33625444","ФГУП \"Почта России\"","7724261610","997750001"]
[1159,"Нагорский муниципальный район","Синегорское","33625444","ФГУП \"РТРС\"","7717127211","771701001"]
[1160,"Нагорский муниципальный район","Чеглаковское","33625432","МРФ \"Волга\" ПАО \"Ростелеком\"","7707049388","526043001"]
[1161,"Нагорский муниципальный район","Чеглаковское","33625432","ФГУП \"Почта России\"","7724261610","997750001"]
[1162,"Нагорский муниципальный район","Чеглаковское","33625432","ФГУП \"РТРС\"","7717127211","771701001"]
[1163,"Немский муниципальный район","Архангельское","33626404","МРФ \"Волга\" ПАО \"Ростелеком\"","7707049388","526043001"]
[1164,"Немский муниципальный район","Архангельское","33626404","МУП \"Лес\"","4320002621","432001001"]
[1165,"Немский муниципальный район","Архангельское","33626404","ООО \"Дебют\"","4320002798","432001001"]
[1166,"Немский муниципальный район","Архангельское","33626404","ООО \"Кировавтогаз\"","4345169260","434501001"]
[1167,"Немский муниципальный район","Архангельское","33626404","ООО \"Фламинго\"","4320002808","432001001"]
[1168,"Немский муниципальный район","Архангельское","33626404","ФГУП \"Почта России\"","7724261610","997750001"]
[1169,"Немский муниципальный район","Архангельское","33626404","ФГУП \"РТРС\"","7717127211","771701001"]
[1170,"Немский муниципальный район","Ильинское","33626412","МРФ \"Волга\" ПАО \"Ростелеком\"","7707049388","526043001"]
[1171,"Немский муниципальный район","Ильинское","33626412","ООО \"Олимп\"","4320002830","432001001"]
[1172,"Немский муниципальный район","Ильинское","33626412","ФГУП \"Почта России\"","7724261610","997750001"]
[1173,"Немский муниципальный район","Ильинское","33626412","ФГУП \"РТРС\"","7717127211","771701001"]
[1174,"Немский муниципальный район","Немский муниципальный район","33626000","ООО \"Кировавтогаз\"","4345169260","434501001"]
[1175,"Немский муниципальный район","Немский муниципальный район","33626000","ФГУП \"РТРС\"","7717127211","771701001"]
[1176,"Немский муниципальный район","Немское городское поселение","33626151","МРФ \"Волга\" ПАО \"Ростелеком\"","7707049388","526043001"]
[1177,"Немский муниципальный район","Немское городское поселение","33626151","МУП \"Лес\"","4320002621","432001001"]
[1178,"Немский муниципальный район","Немское городское поселение","33626151","ООО \"Кировавтогаз\"","4345169260","434501001"]
[1179,"Немский муниципальный район","Немское городское поселение","33626151","УФПС Кировской области – филиал ФГУП «Почта России»","7724261610","434502001"]
[1180,"Немский муниципальный район","Немское городское поселение","33626151","ФГУП \"Почта России\"","7724261610","997750001"]
[1181,"Немский муниципальный район","Немское городское поселение","33626151","ФГУП \"РТРС\"","7717127211","771701001"]
[1182,"Немский муниципальный район","Немское сельское поселение","33626424","МКУ администрация Немского сельского поселения","4320002438","432001001"]
[1183,"Немский муниципальный район","Немское сельское поселение","33626424","МРФ \"Волга\" ПАО \"Ростелеком\"","7707049388","526043001"]
[1184,"Немский муниципальный район","Немское сельское поселение","33626424","МУП \"Лес\"","4320002621","432001001"]
[1185,"Немский муниципальный район","Немское сельское поселение","33626424","ФГУП \"Почта России\"","7724261610","997750001"]
[1186,"Немский муниципальный район","Немское сельское поселение","33626424","ФГУП \"РТРС\"","7717127211","771701001"]
[1187,"Нолинский муниципальный район","Город Нолинск","33627101","КОГПОБУ \"Нолинский техникум механизации сельского хозяйства\"","4321002078","432101001"]
[1188,"Нолинский муниципальный район","Город Нолинск","33627101","МРФ \"Волга\" ПАО \"Ростелеком\"","7707049388","526043001"]
[1189,"Нолинский муниципальный район","Город Нолинск","33627101","ОАО \"Коммунэнерго\"","4346011123","434501001"]
[1190,"Нолинский муниципальный район","Город Нолинск","33627101","ООО \"Кировавтогаз\"","4345169260","434501001"]
[1191,"Нолинский муниципальный район","Город Нолинск","33627101","ООО \"Ремонтный завод\"","4321005382","432101001"]
[1192,"Нолинский муниципальный район","Город Нолинск","33627101","ООО \"Родник\"","4321005311","432101001"]
[1193,"Нолинский муниципальный район","Город Нолинск","33627101","ООО \"Эко-Трейд\"","4321006570","432101001"]
[1194,"Нолинский муниципальный район","Город Нолинск","33627101","УФПС Кировской области – филиал ФГУП «Почта России»","7724261610","434502001"]
[1195,"Нолинский муниципальный район","Город Нолинск","33627101","ФГУП \"Почта России\"","7724261610","997750001"]
[1196,"Нолинский муниципальный район","Город Нолинск","33627101","ФГУП \"РТРС\"","7717127211","771701001"]
[1197,"Нолинский муниципальный район","Красноярское","33627418","Администрация МО Красноярского сельского поселения Нолинского района","4321005992","432101001"]
[1198,"Нолинский муниципальный район","Красноярское","33627418","МРФ \"Волга\" ПАО \"Ростелеком\"","7707049388","526043001"]
[1199,"Нолинский муниципальный район","Красноярское","33627418","ООО \"Кировавтогаз\"","4345169260","434501001"]
[1200,"Нолинский муниципальный район","Красноярское","33627418","ФГУП \"Почта России\"","7724261610","997750001"]
[1201,"Нолинский муниципальный район","Красноярское","33627418","ФГУП \"РТРС\"","7717127211","771701001"]
[1202,"Нолинский муниципальный район","Кырчанское","33627420","Администрация муницыпального образования Кырчанское сельское поселение","4321006065","432101001"]
[1203,"Нолинский муниципальный район","Кырчанское","33627420","МРФ \"Волга\" ПАО \"Ростелеком\"","7707049388","526043001"]
[1204,"Нолинский муниципальный район","Кырчанское","33627420","ООО \"Кировавтогаз\"","4345169260","434501001"]
[1205,"Нолинский муниципальный район","Кырчанское","33627420","Сельскохозяйственная артель - колхоз \"Восход\"","4321000391","432101001"]
[1206,"Нолинский муниципальный район","Кырчанское","33627420","ФГУП \"Почта России\"","7724261610","997750001"]
[1207,"Нолинский муниципальный район","Кырчанское","33627420","ФГУП \"РТРС\"","7717127211","771701001"]
[1208,"Нолинский муниципальный район","Лудянское","33627428","Администрация Лудянского сп","4321005960","432101001"]
[1209,"Нолинский муниципальный район","Лудянское","33627428","МРФ \"Волга\" ПАО \"Ростелеком\"","7707049388","526043001"]
[1210,"Нолинский муниципальный район","Лудянское","33627428","ФГУП \"Почта России\"","7724261610","997750001"]
[1211,"Нолинский муниципальный район","Лудянское","33627428","ФГУП \"РТРС\"","7717127211","771701001"]
[1212,"Нолинский муниципальный район","Медведское","33627430","Администрация Медведского сельского поселения","4321006058","432101001"]
[1213,"Нолинский муниципальный район","Медведское","33627430","МРФ \"Волга\" ПАО \"Ростелеком\"","7707049388","526043001"]
[1214,"Нолинский муниципальный район","Медведское","33627430","ООО \"Кировавтогаз\"","4345169260","434501001"]
[1215,"Нолинский муниципальный район","Медведское","33627430","ФГУП \"Почта России\"","7724261610","997750001"]
[1216,"Нолинский муниципальный район","Медведское","33627430","ФГУП \"РТРС\"","7717127211","771701001"]
[1217,"Нолинский муниципальный район","Нолинский муниципальный район","33627000","Администрация МО Аркульское гп Нолинского района Кировской области","4321006040","432101001"]
[1218,"Нолинский муниципальный район","Нолинский муниципальный район","33627000","Администрация муниципального образования  Рябиновского сельского поселения Нолинского района Кировской области","4321006072","432101001"]
[1219,"Нолинский муниципальный район","Нолинский муниципальный район","33627000","Администрация муниципального образования Перевозское сельское поселение Нолинского района Кировской области","4321006033","432101001"]
[1220,"Нолинский муниципальный район","Нолинский муниципальный район","33627000","ОАО \"Коммунэнерго\"","4346011123","434501001"]
[1221,"Нолинский муниципальный район","Нолинский муниципальный район","33627000","ООО \"Кировавтогаз\"","4345169260","434501001"]
[1222,"Нолинский муниципальный район","Нолинский муниципальный район","33627000","ООО «Управляющая компания Наш Дом»","4345266954","432101001"]
[1223,"Нолинский муниципальный район","Нолинский муниципальный район","33627000","ФГУП \"РТРС\"","7717127211","771701001"]
[1224,"Нолинский муниципальный район","Перевозское","33627436","Администрация муниципального образования Перевозское сельское поселение Нолинского района Кировской области","4321006033","432101001"]
[1225,"Нолинский муниципальный район","Перевозское","33627436","МРФ \"Волга\" ПАО \"Ростелеком\"","7707049388","526043001"]
[1226,"Нолинский муниципальный район","Перевозское","33627436","ООО \"Кировавтогаз\"","4345169260","434501001"]
[1227,"Нолинский муниципальный район","Перевозское","33627436","ФГУП \"Почта России\"","7724261610","997750001"]
[1228,"Нолинский муниципальный район","Перевозское","33627436","ФГУП \"РТРС\"","7717127211","771701001"]
[1229,"Нолинский муниципальный район","Поселок Аркуль","33627152","Администрация МО Аркульское гп Нолинского района Кировской области","4321006040","432101001"]
[1230,"Нолинский муниципальный район","Поселок Аркуль","33627152","МРФ \"Волга\" ПАО \"Ростелеком\"","7707049388","526043001"]
[1231,"Нолинский муниципальный район","Поселок Аркуль","33627152","ОАО \"Коммунэнерго\"","4346011123","434501001"]
[1232,"Нолинский муниципальный район","Поселок Аркуль","33627152","ООО \"Кировавтогаз\"","4345169260","434501001"]
[1233,"Нолинский муниципальный район","Поселок Аркуль","33627152","ООО «Управляющая компания Наш Дом»","4345266954","432101001"]
[1234,"Нолинский муниципальный район","Поселок Аркуль","33627152","ФГУП \"Почта России\"","7724261610","997750001"]
[1235,"Нолинский муниципальный район","Поселок Аркуль","33627152","ФГУП \"РТРС\"","7717127211","771701001"]
[1236,"Нолинский муниципальный район","Рябиновское","33627432","Администрация муниципального образования  Рябиновского сельского поселения Нолинского района Кировской области","4321006072","432101001"]
[1237,"Нолинский муниципальный район","Рябиновское","33627432","МРФ \"Волга\" ПАО \"Ростелеком\"","7707049388","526043001"]
[1238,"Нолинский муниципальный район","Рябиновское","33627432","ОАО \"Коммунэнерго\"","4346011123","434501001"]
[1239,"Нолинский муниципальный район","Рябиновское","33627432","ФГУП \"Почта России\"","7724261610","997750001"]
[1240,"Нолинский муниципальный район","Рябиновское","33627432","ФГУП \"РТРС\"","7717127211","771701001"]
[1241,"Нолинский муниципальный район","Татауровское","33627452","Администрация Татауровского с/п","4321005985","432101001"]
[1242,"Нолинский муниципальный район","Татауровское","33627452","МКОУ ООШ с. Татаурово","4321019000","432101001"]
[1243,"Нолинский муниципальный район","Татауровское","33627452","МРФ \"Волга\" ПАО \"Ростелеком\"","7707049388","526043001"]
[1244,"Нолинский муниципальный район","Татауровское","33627452","ФГУП \"Почта России\"","7724261610","997750001"]
[1245,"Нолинский муниципальный район","Татауровское","33627452","ФГУП \"РТРС\"","7717127211","771701001"]
[1246,"Нолинский муниципальный район","Шварихинское","33627456","Администрация муниципального образования Шварихинского сельского поселения","4321005978","432101001"]
[1247,"Нолинский муниципальный район","Шварихинское","33627456","ЗАО \"Зыковское\"","4321005801","432101001"]
[1248,"Нолинский муниципальный район","Шварихинское","33627456","МРФ \"Волга\" ПАО \"Ростелеком\"","7707049388","526043001"]
[1249,"Нолинский муниципальный район","Шварихинское","33627456","ООО \"Кировавтогаз\"","4345169260","434501001"]
[1250,"Нолинский муниципальный район","Шварихинское","33627456","ФГУП \"Почта России\"","7724261610","997750001"]
[1251,"Нолинский муниципальный район","Шварихинское","33627456","ФГУП \"РТРС\"","7717127211","771701001"]
[1252,"Омутнинский муниципальный район","Белореченское","33628410","МКУП ЖКХ \"Коммунальник\"","4322007368","432201001"]
[1253,"Омутнинский муниципальный район","Белореченское","33628410","МРФ \"Волга\" ПАО \"Ростелеком\"","7707049388","526043001"]
[1254,"Омутнинский муниципальный район","Белореченское","33628410","МУП ЖКХ Омутнинского района","4322000404","432201001"]
[1255,"Омутнинский муниципальный район","Белореченское","33628410","ФГУП \"Почта России\"","7724261610","997750001"]
[1256,"Омутнинский муниципальный район","Белореченское","33628410","ФГУП \"РТРС\"","7717127211","771701001"]
[1257,"Омутнинский муниципальный район","Вятское","33628412","МКУП ЖКХ \"Коммунальник\"","4322007368","432201001"]
[1258,"Омутнинский муниципальный район","Вятское","33628412","МРФ \"Волга\" ПАО \"Ростелеком\"","7707049388","526043001"]
[1259,"Омутнинский муниципальный район","Вятское","33628412","МУП ЖКХ \"Песковский коммунальник\"","4322006886","432201001"]
[1260,"Омутнинский муниципальный район","Вятское","33628412","МУП ЖКХ Омутнинского района","4322000404","432201001"]
[1261,"Омутнинский муниципальный район","Вятское","33628412","ФГУП \"Почта России\"","7724261610","997750001"]
[1262,"Омутнинский муниципальный район","Вятское","33628412","ФГУП \"РТРС\"","7717127211","771701001"]
[1263,"Омутнинский муниципальный район","Город Омутнинск","33628101","АО \"ГУ ЖКХ\"","5116000922","511601001"]
[1264,"Омутнинский муниципальный район","Город Омутнинск","33628101","АО \"ГУ ЖКХ\"","5116000922","183845001"]
[1265,"Омутнинский муниципальный район","Город Омутнинск","33628101","АО \"Омутнинский металлургический завод\"","4322000130","432201001"]
[1266,"Омутнинский муниципальный район","Город Омутнинск","33628101","Администрация муниципального образования Омутнинское городское поселение","4322008178","432201001"]
[1267,"Омутнинский муниципальный район","Город Омутнинск","33628101","Горьковская дирекция по тепловодоснабжению структурное подразделение Центральной дирекции по тепловодоснабжению - филиала ОАО \"РЖД\"","7708503727","525745041"]
[1268,"Омутнинский муниципальный район","Город Омутнинск","33628101","КОГУП \"Облкоммунсервис\"","4346041093","434501001"]
[1269,"Омутнинский муниципальный район","Город Омутнинск","33628101","МРФ \"Волга\" ПАО \"Ростелеком\"","7707049388","526043001"]
[1270,"Омутнинский муниципальный район","Город Омутнинск","33628101","МУП ЖКХ \"Водоканал\"","4322007696","432201001"]
[1271,"Омутнинский муниципальный район","Город Омутнинск","33628101","МУП ЖКХ «Благоустройство»","4322006903","432201001"]
[1272,"Омутнинский муниципальный район","Город Омутнинск","33628101","МУП ЖКХ Омутнинского района","4322000404","432201001"]
[1273,"Омутнинский муниципальный район","Город Омутнинск","33628101","ФГУП \"Почта России\"","7724261610","997750001"]
[1274,"Омутнинский муниципальный район","Город Омутнинск","33628101","ФГУП \"РТРС\"","7717127211","771701001"]
[1275,"Омутнинский муниципальный район","Город Омутнинск","33628101","ФКУ БМТ и ВС УФСИН России по Кировской области","4305003211","434501001"]
[1276,"Омутнинский муниципальный район","Город Омутнинск","33628101","Филиал ОАО \"РЖД\" ГЖД Кировский региональный центр дирекции по тепловодоснабжению","7708503727","435731037"]
[1277,"Омутнинский муниципальный район","Залазнинское","33628420","МРФ \"Волга\" ПАО \"Ростелеком\"","7707049388","526043001"]
[1278,"Омутнинский муниципальный район","Залазнинское","33628420","МУП ЖКХ Омутнинского района","4322000404","432201001"]
[1279,"Омутнинский муниципальный район","Залазнинское","33628420","ФГУП \"Почта России\"","7724261610","997750001"]
[1280,"Омутнинский муниципальный район","Залазнинское","33628420","ФГУП \"РТРС\"","7717127211","771701001"]
[1281,"Омутнинский муниципальный район","Леснополянское","33628424","МРФ \"Волга\" ПАО \"Ростелеком\"","7707049388","526043001"]
[1282,"Омутнинский муниципальный район","Леснополянское","33628424","МУП ЖКХ \"Песковский коммунальник\"","4322006886","432201001"]
[1283,"Омутнинский муниципальный район","Леснополянское","33628424","ФГУП \"Почта России\"","7724261610","997750001"]
[1284,"Омутнинский муниципальный район","Леснополянское","33628424","ФГУП \"РТРС\"","7717127211","771701001"]
[1285,"Омутнинский муниципальный район","Омутнинский муниципальный район","33628000","АО \"ГУ ЖКХ\"","5116000922","511601001"]
[1286,"Омутнинский муниципальный район","Омутнинский муниципальный район","33628000","АО \"ГУ ЖКХ\"","5116000922","183845001"]
[1287,"Омутнинский муниципальный район","Омутнинский муниципальный район","33628000","Администрация муниципального образования Омутнинское городское поселение","4322008178","432201001"]
[1288,"Омутнинский муниципальный район","Омутнинский муниципальный район","33628000","Горьковская дирекция по тепловодоснабжению структурное подразделение Центральной дирекции по тепловодоснабжению - филиала ОАО \"РЖД\"","7708503727","525745041"]
[1289,"Омутнинский муниципальный район","Омутнинский муниципальный район","33628000","КОГУП \"Облкоммунсервис\"","4346041093","434501001"]
[1290,"Омутнинский муниципальный район","Омутнинский муниципальный район","33628000","МУП ЖКХ \"Песковский коммунальник\"","4322006886","432201001"]
[1291,"Омутнинский муниципальный район","Омутнинский муниципальный район","33628000","МУП ЖКХ Омутнинского района","4322000404","432201001"]
[1292,"Омутнинский муниципальный район","Омутнинский муниципальный район","33628000","ООО \"Региональная энерго-сетевая компания\"","9710014702","771001001"]
[1293,"Омутнинский муниципальный район","Омутнинский муниципальный район","33628000","ФГУП \"РТРС\"","7717127211","771701001"]
[1294,"Омутнинский муниципальный район","Омутнинский муниципальный район","33628000","ФКУ БМТ и ВС УФСИН России по Кировской области","4305003211","434501001"]
[1295,"Омутнинский муниципальный район","Омутнинский муниципальный район","33628000","Филиал ОАО \"РЖД\" ГЖД Кировский региональный центр дирекции по тепловодоснабжению","7708503727","435731037"]
[1296,"Омутнинский муниципальный район","Поселок Восточный","33628155","МКУП ЖКХ \"Коммунальник\"","4322007368","432201001"]
[1297,"Омутнинский муниципальный район","Поселок Восточный","33628155","МРФ \"Волга\" ПАО \"Ростелеком\"","7707049388","526043001"]
[1298,"Омутнинский муниципальный район","Поселок Восточный","33628155","ООО \"Восток\"","4322010635","432201001"]
[1299,"Омутнинский муниципальный район","Поселок Восточный","33628155","ООО \"Востокэнерго\"","4322009728","432201001"]
[1300,"Омутнинский муниципальный район","Поселок Восточный","33628155","ООО \"Региональная энерго-сетевая компания\"","9710014702","771001001"]
[1301,"Омутнинский муниципальный район","Поселок Восточный","33628155","ФГУП \"Почта России\"","7724261610","997750001"]
[1302,"Омутнинский муниципальный район","Поселок Восточный","33628155","ФГУП \"РТРС\"","7717127211","771701001"]
[1303,"Омутнинский муниципальный район","Поселок Восточный","33628155","ФКУ БМТ и ВС УФСИН России по Кировской области","4305003211","434501001"]
[1304,"Омутнинский муниципальный район","Поселок Песковка","33628162","Горьковская дирекция по тепловодоснабжению структурное подразделение Центральной дирекции по тепловодоснабжению - филиала ОАО \"РЖД\"","7708503727","525745041"]
[1305,"Омутнинский муниципальный район","Поселок Песковка","33628162","КОГУП \"Облкоммунсервис\"","4346041093","434501001"]
[1306,"Омутнинский муниципальный район","Поселок Песковка","33628162","МРФ \"Волга\" ПАО \"Ростелеком\"","7707049388","526043001"]
[1307,"Омутнинский муниципальный район","Поселок Песковка","33628162","МУП ЖКХ \"Песковский коммунальник\"","4322006886","432201001"]
[1308,"Омутнинский муниципальный район","Поселок Песковка","33628162","ФГУП \"Почта России\"","7724261610","997750001"]
[1309,"Омутнинский муниципальный район","Поселок Песковка","33628162","ФГУП \"РТРС\"","7717127211","771701001"]
[1310,"Омутнинский муниципальный район","Поселок Песковка","33628162","ФКУ БМТ и ВС УФСИН России по Кировской области","4305003211","434501001"]
[1311,"Омутнинский муниципальный район","Поселок Песковка","33628162","ФКУ ИК-1 УФСИН России по Кировской области","4322005233","432201001"]
[1312,"Омутнинский муниципальный район","Поселок Песковка","33628162","Филиал ОАО \"РЖД\" ГЖД Кировский региональный центр дирекции по тепловодоснабжению","7708503727","435731037"]
[1313,"Омутнинский муниципальный район","Чернохолуницкое","33628430","МРФ \"Волга\" ПАО \"Ростелеком\"","7707049388","526043001"]
[1314,"Омутнинский муниципальный район","Чернохолуницкое","33628430","МУП ЖКХ Омутнинского района","4322000404","432201001"]
[1315,"Омутнинский муниципальный район","Чернохолуницкое","33628430","ФГУП \"Почта России\"","7724261610","997750001"]
[1316,"Омутнинский муниципальный район","Чернохолуницкое","33628430","ФГУП \"РТРС\"","7717127211","771701001"]
[1317,"Омутнинский муниципальный район","Шахровское","33628432","МРФ \"Волга\" ПАО \"Ростелеком\"","7707049388","526043001"]
[1318,"Омутнинский муниципальный район","Шахровское","33628432","МУП ЖКХ Омутнинского района","4322000404","432201001"]
[1319,"Омутнинский муниципальный район","Шахровское","33628432","ФГУП \"Почта России\"","7724261610","997750001"]
[1320,"Омутнинский муниципальный район","Шахровское","33628432","ФГУП \"РТРС\"","7717127211","771701001"]
[1321,"Опаринский муниципальный район","Альмежское","33629404","МРФ \"Волга\" ПАО \"Ростелеком\"","7707049388","526043001"]
[1322,"Опаринский муниципальный район","Альмежское","33629404","ОАО \"Моломский ЛХЗ\"","4323000118","432301001"]
[1323,"Опаринский муниципальный район","Альмежское","33629404","ФГУП \"Почта России\"","7724261610","997750001"]
[1324,"Опаринский муниципальный район","Альмежское","33629404","ФГУП \"РТРС\"","7717127211","771701001"]
[1325,"Опаринский муниципальный район","Вазюкское","33629408","МКУ «Управление жилищно-коммунального хозяйства пос. Вазюк»","4323004271","432301001"]
[1326,"Опаринский муниципальный район","Вазюкское","33629408","МРФ \"Волга\" ПАО \"Ростелеком\"","7707049388","526043001"]
[1327,"Опаринский муниципальный район","Вазюкское","33629408","ФГУП \"Почта России\"","7724261610","997750001"]
[1328,"Опаринский муниципальный район","Вазюкское","33629408","ФГУП \"РТРС\"","7717127211","771701001"]
[1329,"Опаринский муниципальный район","Заринское","33629414","МРФ \"Волга\" ПАО \"Ростелеком\"","7707049388","526043001"]
[1330,"Опаринский муниципальный район","Заринское","33629414","ОАО \"Моломский ЛХЗ\"","4323000118","432301001"]
[1331,"Опаринский муниципальный район","Заринское","33629414","ООО \"Управляющая компания \"Комфорт-Плюс\"","4323004352","432301001"]
[1332,"Опаринский муниципальный район","Заринское","33629414","ООО «Энергосервис»","4323004112","432301001"]
[1333,"Опаринский муниципальный район","Заринское","33629414","ФГУП \"Почта России\"","7724261610","997750001"]
[1334,"Опаринский муниципальный район","Заринское","33629414","ФГУП \"РТРС\"","7717127211","771701001"]
[1335,"Опаринский муниципальный район","Маромицкое","33629424","МРФ \"Волга\" ПАО \"Ростелеком\"","7707049388","526043001"]
[1336,"Опаринский муниципальный район","Маромицкое","33629424","МУП \"Маромицкое коммунальное хозяйство\"","4323004539","432301001"]
[1337,"Опаринский муниципальный район","Маромицкое","33629424","ФГУП \"Почта России\"","7724261610","997750001"]
[1338,"Опаринский муниципальный район","Маромицкое","33629424","ФГУП \"РТРС\"","7717127211","771701001"]
[1339,"Опаринский муниципальный район","Моломский","33629428","МРФ \"Волга\" ПАО \"Ростелеком\"","7707049388","526043001"]
[1340,"Опаринский муниципальный район","Моломский","33629428","ФГУП \"Почта России\"","7724261610","997750001"]
[1341,"Опаринский муниципальный район","Опаринский муниципальный район","33629000","МКУ \"Управление жилищно-коммунального хозяйства п. Речной\"","4323004916","432301001"]
[1342,"Опаринский муниципальный район","Опаринский муниципальный район","33629000","МУП \"Маромицкое коммунальное хозяйство\"","4323004539","432301001"]
[1343,"Опаринский муниципальный район","Опаринский муниципальный район","33629000","ООО \"Управляющая компания \"Комфорт-Плюс\"","4323004352","432301001"]
[1344,"Опаринский муниципальный район","Опаринский муниципальный район","33629000","ФГУП \"РТРС\"","7717127211","771701001"]
[1345,"Опаринский муниципальный район","Опаринский муниципальный район","33629000","ФКУ \"Исправительная колония №9 Управления Федеральной службы исполнения наказаний по Кировской области\"","4323001898","432301001"]
[1346,"Опаринский муниципальный район","Опаринский муниципальный район","33629000","ФКУ БМТ и ВС УФСИН России по Кировской области","4305003211","434501001"]
[1347,"Опаринский муниципальный район","Поселок Опарино","33629151","Кировский филиал ПАО \"Ростелеком\"","7707049388","434543001"]
[1348,"Опаринский муниципальный район","Поселок Опарино","33629151","МРФ \"Волга\" ПАО \"Ростелеком\"","7707049388","526043001"]
[1349,"Опаринский муниципальный район","Поселок Опарино","33629151","МУП Опаринское КХ","4323003990","432301001"]
[1350,"Опаринский муниципальный район","Поселок Опарино","33629151","ОАО \"Моломский ЛХЗ\"","4323000118","432301001"]
[1351,"Опаринский муниципальный район","Поселок Опарино","33629151","ФГУП \"Почта России\"","7724261610","997750001"]
[1352,"Опаринский муниципальный район","Поселок Опарино","33629151","ФГУП \"РТРС\"","7717127211","771701001"]
[1353,"Опаринский муниципальный район","Речное","33629434","МКУ \"Управление жилищно-коммунального хозяйства п. Речной\"","4323004916","432301001"]
[1354,"Опаринский муниципальный район","Речное","33629434","МРФ \"Волга\" ПАО \"Ростелеком\"","7707049388","526043001"]
[1355,"Опаринский муниципальный район","Речное","33629434","ФГУП \"Почта России\"","7724261610","997750001"]
[1356,"Опаринский муниципальный район","Речное","33629434","ФГУП \"РТРС\"","7717127211","771701001"]
[1357,"Опаринский муниципальный район","Речное","33629434","ФКУ \"Исправительная колония №9 Управления Федеральной службы исполнения наказаний по Кировской области\"","4323001898","432301001"]
[1358,"Опаринский муниципальный район","Речное","33629434","ФКУ БМТ и ВС УФСИН России по Кировской области","4305003211","434501001"]
[1359,"Опаринский муниципальный район","Стрельское","33629435","МРФ \"Волга\" ПАО \"Ростелеком\"","7707049388","526043001"]
[1360,"Опаринский муниципальный район","Стрельское","33629435","ФГУП \"Почта России\"","7724261610","997750001"]
[1361,"Опаринский муниципальный район","Стрельское","33629435","ФГУП \"РТРС\"","7717127211","771701001"]
[1362,"Оричевский муниципальный район","Адышевское","33630404","МРФ \"Волга\" ПАО \"Ростелеком\"","7707049388","526043001"]
[1363,"Оричевский муниципальный район","Адышевское","33630404","МУП ЖКХ Адышевского сельского поселения Оричевского района Кировской области \"Адышево\"","4324007268","432401001"]
[1364,"Оричевский муниципальный район","Адышевское","33630404","ООО \"Санаторий Колос\"","4324004852","432401001"]
[1365,"Оричевский муниципальный район","Адышевское","33630404","ФГУП \"Почта России\"","7724261610","997750001"]
[1366,"Оричевский муниципальный район","Адышевское","33630404","ФГУП \"РТРС\"","7717127211","771701001"]
[1367,"Оричевский муниципальный район","Быстрицкое","33630406","ИП Кашатских","434581859890","434501001"]
[1368,"Оричевский муниципальный район","Быстрицкое","33630406","МРФ \"Волга\" ПАО \"Ростелеком\"","7707049388","526043001"]
[1369,"Оричевский муниципальный район","Быстрицкое","33630406","ООО \"ЖКХ Торфяное\"","4324050175","432401001"]
[1370,"Оричевский муниципальный район","Быстрицкое","33630406","ФГУП \"Почта России\"","7724261610","997750001"]
[1371,"Оричевский муниципальный район","Быстрицкое","33630406","ФГУП \"РТРС\"","7717127211","771701001"]
[1372,"Оричевский муниципальный район","Гарское","33630412","МРФ \"Волга\" ПАО \"Ростелеком\"","7707049388","526043001"]
[1373,"Оричевский муниципальный район","Гарское","33630412","ООО \"Водоканал плюс\"","4324006803","432401001"]
[1374,"Оричевский муниципальный район","Гарское","33630412","ООО ТК \"Теплосервис\"","4324008261","432401001"]
[1375,"Оричевский муниципальный район","Гарское","33630412","ФГУП \"Почта России\"","7724261610","997750001"]
[1376,"Оричевский муниципальный район","Гарское","33630412","ФГУП \"РТРС\"","7717127211","771701001"]
[1377,"Оричевский муниципальный район","Истобенское","33630416","МРФ \"Волга\" ПАО \"Ростелеком\"","7707049388","526043001"]
[1378,"Оричевский муниципальный район","Истобенское","33630416","ООО \"Водоканал\"","4324050320","432401001"]
[1379,"Оричевский муниципальный район","Истобенское","33630416","ФГУП \"Почта России\"","7724261610","997750001"]
[1380,"Оричевский муниципальный район","Истобенское","33630416","ФГУП \"РТРС\"","7717127211","771701001"]
[1381,"Оричевский муниципальный район","Коршикское","33630420","МРФ \"Волга\" ПАО \"Ростелеком\"","7707049388","526043001"]
[1382,"Оричевский муниципальный район","Коршикское","33630420","ООО ЖКХ \"Коршикское\"","4324007444","432401001"]
[1383,"Оричевский муниципальный район","Коршикское","33630420","ФГУП \"Почта России\"","7724261610","997750001"]
[1384,"Оричевский муниципальный район","Коршикское","33630420","ФГУП \"РТРС\"","7717127211","771701001"]
[1385,"Оричевский муниципальный район","Кучелаповское","33630424","МРФ \"Волга\" ПАО \"Ростелеком\"","7707049388","526043001"]
[1386,"Оричевский муниципальный район","Кучелаповское","33630424","МУП ЖКХ Кучелаповского сельского поселения Оричевского района Кировской области \"Кучелапы\"","4324008247","432401001"]
[1387,"Оричевский муниципальный район","Кучелаповское","33630424","ООО ЖКХ \"Коршикское\"","4324007444","432401001"]
[1388,"Оричевский муниципальный район","Кучелаповское","33630424","СХПК \"Искра\"","4324001428","432401001"]
[1389,"Оричевский муниципальный район","Кучелаповское","33630424","Санаторий \"Сосновый бор\" - филиал АО \"РЖД-ЗДОРОВЬЕ\"","7703715816","432443002"]
[1390,"Оричевский муниципальный район","Кучелаповское","33630424","ФГУП \"Почта России\"","7724261610","997750001"]
[1391,"Оричевский муниципальный район","Кучелаповское","33630424","ФГУП \"РТРС\"","7717127211","771701001"]
[1392,"Оричевский муниципальный район","Лёвинское","33630153","МРФ \"Волга\" ПАО \"Ростелеком\"","7707049388","526043001"]
[1393,"Оричевский муниципальный район","Лёвинское","33630153","МУП ЖКХ \"Сети\" поселок Левинцы Оричесвкий район","4324007123","432401001"]
[1394,"Оричевский муниципальный район","Лёвинское","33630153","ООО Водоканалсервис","4324007892","432401001"]
[1395,"Оричевский муниципальный район","Лёвинское","33630153","Оричевское МУПП ЖКХ \"Коммунсервис\"","4324049317","432401001"]
[1396,"Оричевский муниципальный район","Лёвинское","33630153","ФГУП \"Почта России\"","7724261610","997750001"]
[1397,"Оричевский муниципальный район","Лёвинское","33630153","ФГУП \"РТРС\"","7717127211","771701001"]
[1398,"Оричевский муниципальный район","Лугоболотное","33630426","МРФ \"Волга\" ПАО \"Ростелеком\"","7707049388","526043001"]
[1399,"Оричевский муниципальный район","Лугоболотное","33630426","ООО ЖКХ \"Юбилейный\"","4324007412","432401001"]
[1400,"Оричевский муниципальный район","Лугоболотное","33630426","ФГУП \"Почта России\"","7724261610","997750001"]
[1401,"Оричевский муниципальный район","Лугоболотное","33630426","ФГУП \"РТРС\"","7717127211","771701001"]
[1402,"Оричевский муниципальный район","Лугоболотное","33630426","ФГУП Кировская лугоболотная опытная станция","4324001900","432401001"]
[1403,"Оричевский муниципальный район","Мирнинское","33630154","АО \"ГУ ЖКХ\"","5116000922","511601001"]
[1404,"Оричевский муниципальный район","Мирнинское","33630154","АО \"ГУ ЖКХ\"","5116000922","183845001"]
[1405,"Оричевский муниципальный район","Мирнинское","33630154","МРФ \"Волга\" ПАО \"Ростелеком\"","7707049388","526043001"]
[1406,"Оричевский муниципальный район","Мирнинское","33630154","ООО \"Водоканал плюс\"","4324006803","432401001"]
[1407,"Оричевский муниципальный район","Мирнинское","33630154","ООО «Теплоэнерго»","4345309118","434501001"]
[1408,"Оричевский муниципальный район","Мирнинское","33630154","ООО КС-Сервис","4345456867","434501001"]
[1409,"Оричевский муниципальный район","Мирнинское","33630154","ООО ТК \"Теплосервис Плюс\"","4324008448","432401001"]
[1410,"Оричевский муниципальный район","Мирнинское","33630154","ООО ТК \"Теплосервис\"","4324008261","432401001"]
[1411,"Оричевский муниципальный район","Мирнинское","33630154","ФГУП \"Почта России\"","7724261610","997750001"]
[1412,"Оричевский муниципальный район","Мирнинское","33630154","ФГУП \"РТРС\"","7717127211","771701001"]
[1413,"Оричевский муниципальный район","Мирнинское","33630154","Филиал \"Войсковая часть 21228\" ФБУ - войсковая часть 70855","7724729390","432443001"]
[1414,"Оричевский муниципальный район","Оричевский муниципальный район","33630000","АО \"ГУ ЖКХ\"","5116000922","511601001"]
[1415,"Оричевский муниципальный район","Оричевский муниципальный район","33630000","АО \"ГУ ЖКХ\"","5116000922","183845001"]
[1416,"Оричевский муниципальный район","Оричевский муниципальный район","33630000","Администрация Пищальского сельского поселения Оричевского района  Кировской области","4324049532","431301001"]
[1417,"Оричевский муниципальный район","Оричевский муниципальный район","33630000","Горьковская дирекция по тепловодоснабжению структурное подразделение Центральной дирекции по тепловодоснабжению - филиала ОАО \"РЖД\"","7708503727","525745041"]
[1418,"Оричевский муниципальный район","Оричевский муниципальный район","33630000","ООО КС-Сервис","4345456867","434501001"]
[1419,"Оричевский муниципальный район","Оричевский муниципальный район","33630000","ООО ТК \"Теплосервис\"","4324008261","432401001"]
[1420,"Оричевский муниципальный район","Оричевский муниципальный район","33630000","ФГУП \"РТРС\"","7717127211","771701001"]
[1421,"Оричевский муниципальный район","Оричевский муниципальный район","33630000","Филиал \"Войсковая часть 21228\" ФБУ - войсковая часть 70855","7724729390","432443001"]
[1422,"Оричевский муниципальный район","Оричевский муниципальный район","33630000","Филиал ОАО \"РЖД\" ГЖД Кировский региональный центр дирекции по тепловодоснабжению","7708503727","435731037"]
[1423,"Оричевский муниципальный район","Оричевское","33630151","АО \"ГУ ЖКХ\"","5116000922","511601001"]
[1424,"Оричевский муниципальный район","Оричевское","33630151","АО \"ГУ ЖКХ\"","5116000922","183845001"]
[1425,"Оричевский муниципальный район","Оричевское","33630151","Горьковская дирекция по тепловодоснабжению структурное подразделение Центральной дирекции по тепловодоснабжению - филиала ОАО \"РЖД\"","7708503727","525745041"]
[1426,"Оричевский муниципальный район","Оричевское","33630151","МРФ \"Волга\" ПАО \"Ростелеком\"","7707049388","526043001"]
[1427,"Оричевский муниципальный район","Оричевское","33630151","ООО  \"ПромУниверсалЛес\"","4345292150","434501001"]
[1428,"Оричевский муниципальный район","Оричевское","33630151","ООО \"Водоканал\"","4324050320","432401001"]
[1429,"Оричевский муниципальный район","Оричевское","33630151","ООО ТК \"Теплосервис\"","4324008261","432401001"]
[1430,"Оричевский муниципальный район","Оричевское","33630151","Оричевское МУПП ЖКХ \"Коммунсервис\"","4324049317","432401001"]
[1431,"Оричевский муниципальный район","Оричевское","33630151","ФГУП \"Почта России\"","7724261610","997750001"]
[1432,"Оричевский муниципальный район","Оричевское","33630151","ФГУП \"РТРС\"","7717127211","771701001"]
[1433,"Оричевский муниципальный район","Оричевское","33630151","Филиал ОАО \"РЖД\" ГЖД Кировский региональный центр дирекции по тепловодоснабжению","7708503727","435731037"]
[1434,"Оричевский муниципальный район","Пищальское","33630436","Администрация Пищальского сельского поселения Оричевского района  Кировской области","4324049532","431301001"]
[1435,"Оричевский муниципальный район","Пищальское","33630436","МРФ \"Волга\" ПАО \"Ростелеком\"","7707049388","526043001"]
[1436,"Оричевский муниципальный район","Пищальское","33630436","ООО \"Бор\"","4324005060","432401001"]
[1437,"Оричевский муниципальный район","Пищальское","33630436","ФГУП \"Почта России\"","7724261610","997750001"]
[1438,"Оричевский муниципальный район","Пищальское","33630436","ФГУП \"РТРС\"","7717127211","771701001"]
[1439,"Оричевский муниципальный район","Пустощенское","33630440","МРФ \"Волга\" ПАО \"Ростелеком\"","7707049388","526043001"]
[1440,"Оричевский муниципальный район","Пустощенское","33630440","ООО \"Водоканал\"","4324050320","432401001"]
[1441,"Оричевский муниципальный район","Пустощенское","33630440","ФГУП \"Почта России\"","7724261610","997750001"]
[1442,"Оричевский муниципальный район","Пустощенское","33630440","ФГУП \"РТРС\"","7717127211","771701001"]
[1443,"Оричевский муниципальный район","Спас-Талицкое","33630444","МРФ \"Волга\" ПАО \"Ростелеком\"","7707049388","526043001"]
[1444,"Оричевский муниципальный район","Спас-Талицкое","33630444","ООО \"Водоканал\"","4324050320","432401001"]
[1445,"Оричевский муниципальный район","Спас-Талицкое","33630444","ФГУП \"Почта России\"","7724261610","997750001"]
[1446,"Оричевский муниципальный район","Спас-Талицкое","33630444","ФГУП \"РТРС\"","7717127211","771701001"]
[1447,"Оричевский муниципальный район","Стрижевское","33630157","МРФ \"Волга\" ПАО \"Ростелеком\"","7707049388","526043001"]
[1448,"Оричевский муниципальный район","Стрижевское","33630157","МУПП ЖКХ \"Уют\"","4324006994","432401001"]
[1449,"Оричевский муниципальный район","Стрижевское","33630157","ООО «СТЭКС»","4324007959","432401001"]
[1450,"Оричевский муниципальный район","Стрижевское","33630157","ФГУП \"Почта России\"","7724261610","997750001"]
[1451,"Оричевский муниципальный район","Стрижевское","33630157","ФГУП \"РТРС\"","7717127211","771701001"]
[1452,"Оричевский муниципальный район","Суводское","33630448","МРФ \"Волга\" ПАО \"Ростелеком\"","7707049388","526043001"]
[1453,"Оричевский муниципальный район","Суводское","33630448","ООО \"Бор\"","4324005060","432401001"]
[1454,"Оричевский муниципальный район","Суводское","33630448","ФГУП \"Почта России\"","7724261610","997750001"]
[1455,"Оричевский муниципальный район","Суводское","33630448","ФГУП \"РТРС\"","7717127211","771701001"]
[1456,"Оричевский муниципальный район","Торфяное","33630450","МРФ \"Волга\" ПАО \"Ростелеком\"","7707049388","526043001"]
[1457,"Оричевский муниципальный район","Торфяное","33630450","ООО \"ЖКХ Торфяное\"","4324050175","432401001"]
[1458,"Оричевский муниципальный район","Торфяное","33630450","ФГУП \"Почта России\"","7724261610","997750001"]
[1459,"Оричевский муниципальный район","Торфяное","33630450","ФГУП \"РТРС\"","7717127211","771701001"]
[1460,"Оричевский муниципальный район","Усовское","33630452","МРФ \"Волга\" ПАО \"Ростелеком\"","7707049388","526043001"]
[1461,"Оричевский муниципальный район","Усовское","33630452","ООО \"Водоканал\"","4324050320","432401001"]
[1462,"Оричевский муниципальный район","Усовское","33630452","ООО \"Оричи-строй\"","4324006955","432401001"]
[1463,"Оричевский муниципальный район","Усовское","33630452","Оричевское МУПП ЖКХ \"Коммунсервис\"","4324049317","432401001"]
[1464,"Оричевский муниципальный район","Усовское","33630452","ФГУП \"Почта России\"","7724261610","997750001"]
[1465,"Оричевский муниципальный район","Усовское","33630452","ФГУП \"РТРС\"","7717127211","771701001"]
[1466,"Оричевский муниципальный район","Шалеговское","33630456","МРФ \"Волга\" ПАО \"Ростелеком\"","7707049388","526043001"]
[1467,"Оричевский муниципальный район","Шалеговское","33630456","ООО \"Водоканал\"","4324050320","432401001"]
[1468,"Оричевский муниципальный район","Шалеговское","33630456","ООО ТК \"Теплосервис\"","4324008261","432401001"]
[1469,"Оричевский муниципальный район","Шалеговское","33630456","ФГУП \"Почта России\"","7724261610","997750001"]
[1470,"Оричевский муниципальный район","Шалеговское","33630456","ФГУП \"РТРС\"","7717127211","771701001"]
[1471,"Орловский муниципальный район","Орловский муниципальный район","33645000","ФГУП \"РТРС\"","7717127211","771701001"]
[1472,"Орловский муниципальный район","Орловское городское поселение","33645101","ИП Гордеева О.В.","433601166687","отсутствует"]
[1473,"Орловский муниципальный район","Орловское городское поселение","33645101","МРФ \"Волга\" ПАО \"Ростелеком\"","7707049388","526043001"]
[1474,"Орловский муниципальный район","Орловское городское поселение","33645101","ООО \"Лесстройкомплект\"","4345379651","434501001"]
[1475,"Орловский муниципальный район","Орловское городское поселение","33645101","ООО \"Орловский водоканал\"","4336002521","433601001"]
[1476,"Орловский муниципальный район","Орловское городское поселение","33645101","ООО \"Предприятие объединенных котельных\"","4336003331","433601001"]
[1477,"Орловский муниципальный район","Орловское городское поселение","33645101","ООО \"Чистый город\"","4336003564","433601001"]
[1478,"Орловский муниципальный район","Орловское городское поселение","33645101","ФГУП \"Почта России\"","7724261610","997750001"]
[1479,"Орловский муниципальный район","Орловское городское поселение","33645101","ФГУП \"РТРС\"","7717127211","771701001"]
[1480,"Орловский муниципальный район","Орловское сельское поселение","33645420","МРФ \"Волга\" ПАО \"Ростелеком\"","7707049388","526043001"]
[1481,"Орловский муниципальный район","Орловское сельское поселение","33645420","МУП ЖКХ «Орловское»","4336003941","433601001"]
[1482,"Орловский муниципальный район","Орловское сельское поселение","33645420","МУП Родник","4336004007","433601001"]
[1483,"Орловский муниципальный район","Орловское сельское поселение","33645420","ООО \"Орловский водоканал\"","4336002521","433601001"]
[1484,"Орловский муниципальный район","Орловское сельское поселение","33645420","ООО Агрофирма \"Пригородная\"","4336003405","433601001"]
[1485,"Орловский муниципальный район","Орловское сельское поселение","33645420","СХЗАО \"Тохтинское\"","4336001694","433601001"]
[1486,"Орловский муниципальный район","Орловское сельское поселение","33645420","ФГУП \"Почта России\"","7724261610","997750001"]
[1487,"Орловский муниципальный район","Орловское сельское поселение","33645420","ФГУП \"РТРС\"","7717127211","771701001"]
[1488,"Орловский муниципальный район","Орловское сельское поселение","33645420","Цепелевское МУП ЖКХ","4336002708","433601001"]
[1489,"Пижанский муниципальный район","Ахмановское","33631404","МРФ \"Волга\" ПАО \"Ростелеком\"","7707049388","526043001"]
[1490,"Пижанский муниципальный район","Ахмановское","33631404","ОАО \"Коммунэнерго\"","4346011123","434501001"]
[1491,"Пижанский муниципальный район","Ахмановское","33631404","ООО \"Строительно-монтажная компания \"Крафт\"","4325003259","432501001"]
[1492,"Пижанский муниципальный район","Ахмановское","33631404","ООО «Вятка-Промприбор»","4347016903","434501001"]
[1493,"Пижанский муниципальный район","Ахмановское","33631404","РПМП \"Пижанскагропромэнерго\"","4325000025","432501001"]
[1494,"Пижанский муниципальный район","Ахмановское","33631404","ФГУП \"Почта России\"","7724261610","997750001"]
[1495,"Пижанский муниципальный район","Ахмановское","33631404","ФГУП \"РТРС\"","7717127211","771701001"]
[1496,"Пижанский муниципальный район","Безводнинское","33631408","МРФ \"Волга\" ПАО \"Ростелеком\"","7707049388","526043001"]
[1497,"Пижанский муниципальный район","Безводнинское","33631408","ООО \"Строительно-монтажная компания \"Крафт\"","4325003259","432501001"]
[1498,"Пижанский муниципальный район","Безводнинское","33631408","РПМП \"Пижанскагропромэнерго\"","4325000025","432501001"]
[1499,"Пижанский муниципальный район","Безводнинское","33631408","ФГУП \"Почта России\"","7724261610","997750001"]
[1500,"Пижанский муниципальный район","Безводнинское","33631408","ФГУП \"РТРС\"","7717127211","771701001"]
[1501,"Пижанский муниципальный район","Войское","33631412","МРФ \"Волга\" ПАО \"Ростелеком\"","7707049388","526043001"]
[1502,"Пижанский муниципальный район","Войское","33631412","ООО \"Строительно-монтажная компания \"Крафт\"","4325003259","432501001"]
[1503,"Пижанский муниципальный район","Войское","33631412","РПМП \"Пижанскагропромэнерго\"","4325000025","432501001"]
[1504,"Пижанский муниципальный район","Войское","33631412","ФГУП \"Почта России\"","7724261610","997750001"]
[1505,"Пижанский муниципальный район","Войское","33631412","ФГУП \"РТРС\"","7717127211","771701001"]
[1506,"Пижанский муниципальный район","Ижевское","33631416","МКУК «Пижанская централизованная клубная система»","4325003040","432501001"]
[1507,"Пижанский муниципальный район","Ижевское","33631416","МРФ \"Волга\" ПАО \"Ростелеком\"","7707049388","526043001"]
[1508,"Пижанский муниципальный район","Ижевское","33631416","ОАО \"Коммунэнерго\"","4346011123","434501001"]
[1509,"Пижанский муниципальный район","Ижевское","33631416","ООО \"Строительно-монтажная компания \"Крафт\"","4325003259","432501001"]
[1510,"Пижанский муниципальный район","Ижевское","33631416","ООО \"Теплоэнергоресурс\"","4345404682","434501001"]
[1511,"Пижанский муниципальный район","Ижевское","33631416","РПМП \"Пижанскагропромэнерго\"","4325000025","432501001"]
[1512,"Пижанский муниципальный район","Ижевское","33631416","ФГУП \"Почта России\"","7724261610","997750001"]
[1513,"Пижанский муниципальный район","Ижевское","33631416","ФГУП \"РТРС\"","7717127211","771701001"]
[1514,"Пижанский муниципальный район","Обуховское","33631436","МРФ \"Волга\" ПАО \"Ростелеком\"","7707049388","526043001"]
[1515,"Пижанский муниципальный район","Обуховское","33631436","ООО \"Строительно-монтажная компания \"Крафт\"","4325003259","432501001"]
[1516,"Пижанский муниципальный район","Обуховское","33631436","РПМП \"Пижанскагропромэнерго\"","4325000025","432501001"]
[1517,"Пижанский муниципальный район","Обуховское","33631436","ФГУП \"Почта России\"","7724261610","997750001"]
[1518,"Пижанский муниципальный район","Обуховское","33631436","ФГУП \"РТРС\"","7717127211","771701001"]
[1519,"Пижанский муниципальный район","Пижанский муниципальный район","33631000","МКУК «Пижанская централизованная клубная система»","4325003040","432501001"]
[1520,"Пижанский муниципальный район","Пижанский муниципальный район","33631000","ОАО \"Коммунэнерго\"","4346011123","434501001"]
[1521,"Пижанский муниципальный район","Пижанский муниципальный район","33631000","ООО \"Строительно-монтажная компания \"Крафт\"","4325003259","432501001"]
[1522,"Пижанский муниципальный район","Пижанский муниципальный район","33631000","ООО \"Теплоэнергоресурс\"","4345404682","434501001"]
[1523,"Пижанский муниципальный район","Пижанский муниципальный район","33631000","ООО «Вятка-Промприбор»","4347016903","434501001"]
[1524,"Пижанский муниципальный район","Пижанский муниципальный район","33631000","ООО «Теплосервис»","4325003347","432501001"]
[1525,"Пижанский муниципальный район","Пижанский муниципальный район","33631000","РПМП \"Пижанскагропромэнерго\"","4325000025","432501001"]
[1526,"Пижанский муниципальный район","Пижанский муниципальный район","33631000","ФГУП \"РТРС\"","7717127211","771701001"]
[1527,"Пижанский муниципальный район","Пижанское","33631151","МРФ \"Волга\" ПАО \"Ростелеком\"","7707049388","526043001"]
[1528,"Пижанский муниципальный район","Пижанское","33631151","ООО \"Строительно-монтажная компания \"Крафт\"","4325003259","432501001"]
[1529,"Пижанский муниципальный район","Пижанское","33631151","ООО «Теплосервис»","4325003347","432501001"]
[1530,"Пижанский муниципальный район","Пижанское","33631151","РПМП \"Пижанскагропромэнерго\"","4325000025","432501001"]
[1531,"Пижанский муниципальный район","Пижанское","33631151","ФГУП \"Почта России\"","7724261610","997750001"]
[1532,"Пижанский муниципальный район","Пижанское","33631151","ФГУП \"РТРС\"","7717127211","771701001"]
[1533,"Подосиновский муниципальный район","Демьяновское городское поселение","33632154","Администрации Демьяновского городского поселения","4326008161","432601001"]
[1534,"Подосиновский муниципальный район","Демьяновское городское поселение","33632154","МРФ \"Волга\" ПАО \"Ростелеком\"","7707049388","526043001"]
[1535,"Подосиновский муниципальный район","Демьяновское городское поселение","33632154","ООО \"Водосервис-плюс\"","4326001230","432301001"]
[1536,"Подосиновский муниципальный район","Демьяновское городское поселение","33632154","ООО \"Демьяновские мануфактуры\"","4326010234","432601001"]
[1537,"Подосиновский муниципальный район","Демьяновское городское поселение","33632154","ООО \"Тепловик\"","4326009574","432601001"]
[1538,"Подосиновский муниципальный район","Демьяновское городское поселение","33632154","ООО «Теплосервис Плюс»","4326999829","432601001"]
[1539,"Подосиновский муниципальный район","Демьяновское городское поселение","33632154","ФГУП \"Почта России\"","7724261610","997750001"]
[1540,"Подосиновский муниципальный район","Демьяновское городское поселение","33632154","ФГУП \"РТРС\"","7717127211","771701001"]
[1541,"Подосиновский муниципальный район","Пинюгское городское поселение","33632157","Горьковская дирекция по тепловодоснабжению структурное подразделение Центральной дирекции по тепловодоснабжению - филиала ОАО \"РЖД\"","7708503727","525745041"]
[1542,"Подосиновский муниципальный район","Пинюгское городское поселение","33632157","МРФ \"Волга\" ПАО \"Ростелеком\"","7707049388","526043001"]
[1543,"Подосиновский муниципальный район","Пинюгское городское поселение","33632157","ООО \"Водосервис-плюс\"","4326001230","432301001"]
[1544,"Подосиновский муниципальный район","Пинюгское городское поселение","33632157","ООО \"Теплосервис п. Пинюг\"","4326009976","432601001"]
[1545,"Подосиновский муниципальный район","Пинюгское городское поселение","33632157","ООО «Теплосервис Плюс»","4326999829","432601001"]
[1546,"Подосиновский муниципальный район","Пинюгское городское поселение","33632157","ФГУП \"Почта России\"","7724261610","997750001"]
[1547,"Подосиновский муниципальный район","Пинюгское городское поселение","33632157","ФГУП \"РТРС\"","7717127211","771701001"]
[1548,"Подосиновский муниципальный район","Пинюгское городское поселение","33632157","Филиал ОАО \"РЖД\" ГЖД Кировский региональный центр дирекции по тепловодоснабжению","7708503727","435731037"]
[1549,"Подосиновский муниципальный район","Подосиновский муниципальный район","33632000","Горьковская дирекция по тепловодоснабжению структурное подразделение Центральной дирекции по тепловодоснабжению - филиала ОАО \"РЖД\"","7708503727","525745041"]
[1550,"Подосиновский муниципальный район","Подосиновский муниципальный район","33632000","МУП \"Коммунсервис\"","4326001342","432601001"]
[1551,"Подосиновский муниципальный район","Подосиновский муниципальный район","33632000","ООО \"Водосервис-плюс\"","4326001230","432301001"]
[1552,"Подосиновский муниципальный район","Подосиновский муниципальный район","33632000","ООО «Теплосервисная Компания»","4326001303","432601001"]
[1553,"Подосиновский муниципальный район","Подосиновский муниципальный район","33632000","ПАО «МРСК «Центра и Приволжья»","5260200603","434502001"]
[1554,"Подосиновский муниципальный район","Подосиновский муниципальный район","33632000","ФГУП \"РТРС\"","7717127211","771701001"]
[1555,"Подосиновский муниципальный район","Подосиновский муниципальный район","33632000","Филиал ОАО \"РЖД\" ГЖД Кировский региональный центр дирекции по тепловодоснабжению","7708503727","435731037"]
[1556,"Подосиновский муниципальный район","Подосиновское городское поселение","33632151","КОГК УСО \"Подосиновский психоневрологический интернат\"","4326001695","432601001"]
[1557,"Подосиновский муниципальный район","Подосиновское городское поселение","33632151","МРФ \"Волга\" ПАО \"Ростелеком\"","7707049388","526043001"]
[1558,"Подосиновский муниципальный район","Подосиновское городское поселение","33632151","МУП \"Коммунсервис\"","4326001342","432601001"]
[1559,"Подосиновский муниципальный район","Подосиновское городское поселение","33632151","МУП \"ПОДОСИНОВЕЦ АВТОТРАНС\"","4326010121","432601001"]
[1560,"Подосиновский муниципальный район","Подосиновское городское поселение","33632151","ООО \"Водосервис-плюс\"","4326001230","432301001"]
[1561,"Подосиновский муниципальный район","Подосиновское городское поселение","33632151","ООО «Теплосервис Плюс»","4326999829","432601001"]
[1562,"Подосиновский муниципальный район","Подосиновское городское поселение","33632151","ООО «Теплосервисная Компания»","4326001303","432601001"]
[1563,"Подосиновский муниципальный район","Подосиновское городское поселение","33632151","ПАО «МРСК «Центра и Приволжья»","5260200603","434502001"]
[1564,"Подосиновский муниципальный район","Подосиновское городское поселение","33632151","ФГУП \"Почта России\"","7724261610","997750001"]
[1565,"Подосиновский муниципальный район","Подосиновское городское поселение","33632151","ФГУП \"РТРС\"","7717127211","771701001"]
[1566,"Подосиновский муниципальный район","Пушемское","33632424","МРФ \"Волга\" ПАО \"Ростелеком\"","7707049388","526043001"]
[1567,"Подосиновский муниципальный район","Пушемское","33632424","ООО \"Водосервис-плюс\"","4326001230","432301001"]
[1568,"Подосиновский муниципальный район","Пушемское","33632424","ООО «Теплосервис Плюс»","4326999829","432601001"]
[1569,"Подосиновский муниципальный район","Пушемское","33632424","ФГУП \"Почта России\"","7724261610","997750001"]
[1570,"Подосиновский муниципальный район","Пушемское","33632424","ФГУП \"РТРС\"","7717127211","771701001"]
[1571,"Подосиновский муниципальный район","Утмановское","33632428","МРФ \"Волга\" ПАО \"Ростелеком\"","7707049388","526043001"]
[1572,"Подосиновский муниципальный район","Утмановское","33632428","ООО \"Водосервис-плюс\"","4326001230","432301001"]
[1573,"Подосиновский муниципальный район","Утмановское","33632428","ФГУП \"Почта России\"","7724261610","997750001"]
[1574,"Подосиновский муниципальный район","Утмановское","33632428","ФГУП \"РТРС\"","7717127211","771701001"]
[1575,"Подосиновский муниципальный район","Яхреньгское","33632440","МРФ \"Волга\" ПАО \"Ростелеком\"","7707049388","526043001"]
[1576,"Подосиновский муниципальный район","Яхреньгское","33632440","ООО \"Водосервис-плюс\"","4326001230","432301001"]
[1577,"Подосиновский муниципальный район","Яхреньгское","33632440","СПК \"Новый Маяк\"","4326009743","432601001"]
[1578,"Подосиновский муниципальный район","Яхреньгское","33632440","ФГУП \"Почта России\"","7724261610","997750001"]
[1579,"Подосиновский муниципальный район","Яхреньгское","33632440","ФГУП \"РТРС\"","7717127211","771701001"]
[1580,"Санчурский муниципальный район","Городищенское","33633418","МРФ \"Волга\" ПАО \"Ростелеком\"","7707049388","526043001"]
[1581,"Санчурский муниципальный район","Городищенское","33633418","МУП «Коммунтранссервис»","4327005244","432701001"]
[1582,"Санчурский муниципальный район","Городищенское","33633418","ООО \"Рассвет\"","4327003230","432701001"]
[1583,"Санчурский муниципальный район","Городищенское","33633418","ФГУП \"Почта России\"","7724261610","997750001"]
[1584,"Санчурский муниципальный район","Городищенское","33633418","ФГУП \"РТРС\"","7717127211","771701001"]
[1585,"Санчурский муниципальный район","Корляковское","33633432","Администрация Корляковского с/п","4327003550","432701001"]
[1586,"Санчурский муниципальный район","Корляковское","33633432","МРФ \"Волга\" ПАО \"Ростелеком\"","7707049388","526043001"]
[1587,"Санчурский муниципальный район","Корляковское","33633432","ФГУП \"Почта России\"","7724261610","997750001"]
[1588,"Санчурский муниципальный район","Корляковское","33633432","ФГУП \"РТРС\"","7717127211","771701001"]
[1589,"Санчурский муниципальный район","Люмпанурское","33633444","Администрация Люмпанурского с/п","4327003536","432701001"]
[1590,"Санчурский муниципальный район","Люмпанурское","33633444","МРФ \"Волга\" ПАО \"Ростелеком\"","7707049388","526043001"]
[1591,"Санчурский муниципальный район","Люмпанурское","33633444","ФГУП \"Почта России\"","7724261610","997750001"]
[1592,"Санчурский муниципальный район","Люмпанурское","33633444","ФГУП \"РТРС\"","7717127211","771701001"]
[1593,"Санчурский муниципальный район","Матвинурское","33633448","Администрация Матвинурского сельского поселения","4327003631","432701001"]
[1594,"Санчурский муниципальный район","Матвинурское","33633448","МРФ \"Волга\" ПАО \"Ростелеком\"","7707049388","526043001"]
[1595,"Санчурский муниципальный район","Матвинурское","33633448","МУП «Коммунтранссервис»","4327005244","432701001"]
[1596,"Санчурский муниципальный район","Матвинурское","33633448","ФГУП \"Почта России\"","7724261610","997750001"]
[1597,"Санчурский муниципальный район","Матвинурское","33633448","ФГУП \"РТРС\"","7717127211","771701001"]
[1598,"Санчурский муниципальный район","Поселок Санчурск","33633151","Кировский филиал ПАО \"Ростелеком\"","7707049388","434543001"]
[1599,"Санчурский муниципальный район","Поселок Санчурск","33633151","МРФ \"Волга\" ПАО \"Ростелеком\"","7707049388","526043001"]
[1600,"Санчурский муниципальный район","Поселок Санчурск","33633151","МУП «Коммунтранссервис»","4327005244","432701001"]
[1601,"Санчурский муниципальный район","Поселок Санчурск","33633151","ООО \"Мастер\"","4327004547","432701001"]
[1602,"Санчурский муниципальный район","Поселок Санчурск","33633151","ООО «Техно-Сервис»","1215117924","121501001"]
[1603,"Санчурский муниципальный район","Поселок Санчурск","33633151","ФГУП \"Почта России\"","7724261610","997750001"]
[1604,"Санчурский муниципальный район","Поселок Санчурск","33633151","ФГУП \"РТРС\"","7717127211","771701001"]
[1605,"Санчурский муниципальный район","Санчурский муниципальный район","33633000","Администрация Матвинурского сельского поселения","4327003631","432701001"]
[1606,"Санчурский муниципальный район","Санчурский муниципальный район","33633000","МУП «Коммунтранссервис»","4327005244","432701001"]
[1607,"Санчурский муниципальный район","Санчурский муниципальный район","33633000","ФГУП \"РТРС\"","7717127211","771701001"]
[1608,"Санчурский муниципальный район","Сметанинское","33633452","МРФ \"Волга\" ПАО \"Ростелеком\"","7707049388","526043001"]
[1609,"Санчурский муниципальный район","Сметанинское","33633452","МУП «Коммунтранссервис»","4327005244","432701001"]
[1610,"Санчурский муниципальный район","Сметанинское","33633452","СХПК \"Заозерский\"","4327000180","432701001"]
[1611,"Санчурский муниципальный район","Сметанинское","33633452","ФГУП \"Почта России\"","7724261610","997750001"]
[1612,"Санчурский муниципальный район","Сметанинское","33633452","ФГУП \"РТРС\"","7717127211","771701001"]
[1613,"Санчурский муниципальный район","Шишовское","33633456","МРФ \"Волга\" ПАО \"Ростелеком\"","7707049388","526043001"]
[1614,"Санчурский муниципальный район","Шишовское","33633456","ОАО \"Правда\"","4327004184","432701001"]
[1615,"Санчурский муниципальный район","Шишовское","33633456","ФГУП \"Почта России\"","7724261610","997750001"]
[1616,"Санчурский муниципальный район","Шишовское","33633456","ФГУП \"РТРС\"","7717127211","771701001"]
[1617,"Свечинский муниципальный район","Поселок Свеча","33634151","ИП Каргапольцев Леонид Петрович","433700221120","отсутствует"]
[1618,"Свечинский муниципальный район","Поселок Свеча","33634151","Кировский филиал ПАО \"Ростелеком\"","7707049388","434543001"]
[1619,"Свечинский муниципальный район","Поселок Свеча","33634151","МКУ \"Служба хозяйственного обеспечения Свечинского района\"","4328003120","432801001"]
[1620,"Свечинский муниципальный район","Поселок Свеча","33634151","МОУ СОШ пгт Свеча Свечинского района Кировской области","4328001997","432801001"]
[1621,"Свечинский муниципальный район","Поселок Свеча","33634151","МРФ \"Волга\" ПАО \"Ростелеком\"","7707049388","526043001"]
[1622,"Свечинский муниципальный район","Поселок Свеча","33634151","МУП \"Свечатеплосервис\"","4328003017","432801001"]
[1623,"Свечинский муниципальный район","Поселок Свеча","33634151","МУП \"Свечинское ЖКХ\"","4328003190","432801001"]
[1624,"Свечинский муниципальный район","Поселок Свеча","33634151","ООО \"РКС\"","4328003176","432801001"]
[1625,"Свечинский муниципальный район","Поселок Свеча","33634151","Свечинское районное потребительское общество","4328000023","432801001"]
[1626,"Свечинский муниципальный район","Поселок Свеча","33634151","Северная Дирекция по тепловодоснабжению структурное подразделение Центральной дирекции по тепловодоснабжению - филиала ОАО \"РЖД\"","7708503727","760445028"]
[1627,"Свечинский муниципальный район","Поселок Свеча","33634151","ФГУП \"Почта России\"","7724261610","997750001"]
[1628,"Свечинский муниципальный район","Поселок Свеча","33634151","ФГУП \"РТРС\"","7717127211","771701001"]
[1629,"Свечинский муниципальный район","Свечинский муниципальный район","33634000","Администрация Свечинского сельского поселения","4328002334","432801001"]
[1630,"Свечинский муниципальный район","Свечинский муниципальный район","33634000","ИП Каргапольцев Леонид Петрович","433700221120","отсутствует"]
[1631,"Свечинский муниципальный район","Свечинский муниципальный район","33634000","МКУ \"Служба хозяйственного обеспечения Свечинского района\"","4328003120","432801001"]
[1632,"Свечинский муниципальный район","Свечинский муниципальный район","33634000","МОУ СОШ пгт Свеча Свечинского района Кировской области","4328001997","432801001"]
[1633,"Свечинский муниципальный район","Свечинский муниципальный район","33634000","МУП \"Свечатеплосервис\"","4328003017","432801001"]
[1634,"Свечинский муниципальный район","Свечинский муниципальный район","33634000","МУП \"Свечинское ЖКХ\"","4328003190","432801001"]
[1635,"Свечинский муниципальный район","Свечинский муниципальный район","33634000","ООО \"РКС\"","4328003176","432801001"]
[1636,"Свечинский муниципальный район","Свечинский муниципальный район","33634000","Северная Дирекция по тепловодоснабжению структурное подразделение Центральной дирекции по тепловодоснабжению - филиала ОАО \"РЖД\"","7708503727","760445028"]
[1637,"Свечинский муниципальный район","Свечинский муниципальный район","33634000","ФГУП \"РТРС\"","7717127211","771701001"]
[1638,"Свечинский муниципальный район","Свечинское","33634448","Администрация Свечинского сельского поселения","4328002334","432801001"]
[1639,"Свечинский муниципальный район","Свечинское","33634448","МРФ \"Волга\" ПАО \"Ростелеком\"","7707049388","526043001"]
[1640,"Свечинский муниципальный район","Свечинское","33634448","ФГУП \"Почта России\"","7724261610","997750001"]
[1641,"Свечинский муниципальный район","Свечинское","33634448","ФГУП \"РТРС\"","7717127211","771701001"]
[1642,"Слободской","Слободской","33713000","АО \"ГУ ЖКХ\"","5116000922","511601001"]
[1643,"Слободской","Слободской","33713000","АО \"ГУ ЖКХ\"","5116000922","183845001"]
[1644,"Слободской","Слободской","33713000","АО \"Красный якорь\"","4343004720","771701001"]
[1645,"Слободской","Слободской","33713000","МРФ \"Волга\" ПАО \"Ростелеком\"","7707049388","526043001"]
[1646,"Слободской","Слободской","33713000","МУП \"Благоустройство\"","4329009244","432901001"]
[1647,"Слободской","Слободской","33713000","МУП \"ВКХ г.Слободского\"","4329012455","432901001"]
[1648,"Слободской","Слободской","33713000","МУП \"Теплосервис\"","4329007543","432901001"]
[1649,"Слободской","Слободской","33713000","ОАО \"Коммунэнерго\"","4346011123","434501001"]
[1650,"Слободской","Слободской","33713000","ОАО \"Слободской машиностроительный завод\"","4329000080","432901001"]
[1651,"Слободской","Слободской","33713000","ООО \"Зеленый Мир\"","4329018094","432901001"]
[1652,"Слободской","Слободской","33713000","ООО \"Коммунальщик\"","4343004671","434301001"]
[1653,"Слободской","Слободской","33713000","ООО \"Предприятие по утилизации бытовых и промышленных отходов\"","4329012085","432901001"]
[1654,"Слободской","Слободской","33713000","ООО \"Развитие\"","4345398407","434501001"]
[1655,"Слободской","Слободской","33713000","ООО \"Сквирэл\"","4329014660","432901001"]
[1656,"Слободской","Слободской","33713000","ООО \"Спичечная фабрика \"Белка-Фаворит\"","4329015216","432901001"]
[1657,"Слободской","Слободской","33713000","ООО \"Эдельвейс-2\"","4329003891","432901001"]
[1658,"Слободской","Слободской","33713000","ООО «КоммунальщикПлюс»","4329018200","434301001"]
[1659,"Слободской","Слободской","33713000","ООО «Расчетная компания»","4345431164","434501001"]
[1660,"Слободской","Слободской","33713000","ООО «Тепловые системы»","4345431460","434501001"]
[1661,"Слободской","Слободской","33713000","ФГУП \"Почта России\"","7724261610","997750001"]
[1662,"Слободской","Слободской","33713000","ФГУП \"РТРС\"","7717127211","771701001"]
[1663,"Слободской муниципальный район","Бобинское","33635402","АО \"Санаторий Митино\"","4329000724","432901001"]
[1664,"Слободской муниципальный район","Бобинское","33635402","МРФ \"Волга\" ПАО \"Ростелеком\"","7707049388","526043001"]
[1665,"Слободской муниципальный район","Бобинское","33635402","МУП ЖКХ \"Запад\"","4329018545","432901001"]
[1666,"Слободской муниципальный район","Бобинское","33635402","ООО \"Многоотраслевое предприятие\"","4329011028","432901001"]
[1667,"Слободской муниципальный район","Бобинское","33635402","ООО \"Торговый дом \"Митино\"","4329015625","432901001"]
[1668,"Слободской муниципальный район","Бобинское","33635402","ФГУП \"Почта России\"","7724261610","997750001"]
[1669,"Слободской муниципальный район","Бобинское","33635402","ФГУП \"РТРС\"","7717127211","771701001"]
[1670,"Слободской муниципальный район","Денисовское","33635404","МРФ \"Волга\" ПАО \"Ростелеком\"","7707049388","526043001"]
[1671,"Слободской муниципальный район","Денисовское","33635404","ООО \"Восток\"","4329012864","432901001"]
[1672,"Слободской муниципальный район","Денисовское","33635404","ФГУП \"Почта России\"","7724261610","997750001"]
[1673,"Слободской муниципальный район","Денисовское","33635404","ФГУП \"РТРС\"","7717127211","771701001"]
[1674,"Слободской муниципальный район","Закаринское","33635412","МРФ \"Волга\" ПАО \"Ростелеком\"","7707049388","526043001"]
[1675,"Слободской муниципальный район","Закаринское","33635412","ООО \"Тепловик\"","4329010909","432901001"]
[1676,"Слободской муниципальный район","Закаринское","33635412","ФГУП \"Почта России\"","7724261610","997750001"]
[1677,"Слободской муниципальный район","Закаринское","33635412","ФГУП \"РТРС\"","7717127211","771701001"]
[1678,"Слободской муниципальный район","Ильинское","33635416","МП ЖКХ п. Вахруши","4329004750","432901001"]
[1679,"Слободской муниципальный район","Ильинское","33635416","МРФ \"Волга\" ПАО \"Ростелеком\"","7707049388","526043001"]
[1680,"Слободской муниципальный район","Ильинское","33635416","ООО \"Союз\"","4329012906","432901001"]
[1681,"Слободской муниципальный район","Ильинское","33635416","ФГУП \"Почта России\"","7724261610","997750001"]
[1682,"Слободской муниципальный район","Ильинское","33635416","ФГУП \"РТРС\"","7717127211","771701001"]
[1683,"Слободской муниципальный район","Каринское","33635424","КОГАУСО «Каринский психоневрологический интернат»","4329001421","432901001"]
[1684,"Слободской муниципальный район","Каринское","33635424","МРФ \"Волга\" ПАО \"Ростелеком\"","7707049388","526043001"]
[1685,"Слободской муниципальный район","Каринское","33635424","ООО \"Тепловик\"","4329010909","432901001"]
[1686,"Слободской муниципальный район","Каринское","33635424","ФГУП \"Почта России\"","7724261610","997750001"]
[1687,"Слободской муниципальный район","Каринское","33635424","ФГУП \"РТРС\"","7717127211","771701001"]
[1688,"Слободской муниципальный район","Ленинское","33635432","МРФ \"Волга\" ПАО \"Ростелеком\"","7707049388","526043001"]
[1689,"Слободской муниципальный район","Ленинское","33635432","МУП ЖКХ \"Запад\"","4329018545","432901001"]
[1690,"Слободской муниципальный район","Ленинское","33635432","ООО \"Многоотраслевое предприятие\"","4329011028","432901001"]
[1691,"Слободской муниципальный район","Ленинское","33635432","ФГУП \"Почта России\"","7724261610","997750001"]
[1692,"Слободской муниципальный район","Ленинское","33635432","ФГУП \"РТРС\"","7717127211","771701001"]
[1693,"Слободской муниципальный район","Озерницкий","33635436","МРФ \"Волга\" ПАО \"Ростелеком\"","7707049388","526043001"]
[1694,"Слободской муниципальный район","Озерницкий","33635436","ООО \"Восток\"","4329012864","432901001"]
[1695,"Слободской муниципальный район","Озерницкий","33635436","ФГУП \"Почта России\"","7724261610","997750001"]
[1696,"Слободской муниципальный район","Озерницкий","33635436","ФГУП \"РТРС\"","7717127211","771701001"]
[1697,"Слободской муниципальный район","Октябрьское","33635440","МРФ \"Волга\" ПАО \"Ростелеком\"","7707049388","526043001"]
[1698,"Слободской муниципальный район","Октябрьское","33635440","ООО \"Октябрьский\"","4329010916","432901001"]
[1699,"Слободской муниципальный район","Октябрьское","33635440","ФГУП \"Почта России\"","7724261610","997750001"]
[1700,"Слободской муниципальный район","Октябрьское","33635440","ФГУП \"РТРС\"","7717127211","771701001"]
[1701,"Слободской муниципальный район","Поселок Вахруши","33635153","МП ЖКХ п. Вахруши","4329004750","432901001"]
[1702,"Слободской муниципальный район","Поселок Вахруши","33635153","МРФ \"Волга\" ПАО \"Ростелеком\"","7707049388","526043001"]
[1703,"Слободской муниципальный район","Поселок Вахруши","33635153","МУП ЖКХ \"Запад\"","4329018545","432901001"]
[1704,"Слободской муниципальный район","Поселок Вахруши","33635153","ООО \"Газпром теплоэнерго Киров\"","4345268905","434501001"]
[1705,"Слободской муниципальный район","Поселок Вахруши","33635153","ООО \"Многоотраслевое предприятие\"","4329011028","432901001"]
[1706,"Слободской муниципальный район","Поселок Вахруши","33635153","ООО «Вахруши-Юфть»","4329014050","432901001"]
[1707,"Слободской муниципальный район","Поселок Вахруши","33635153","ФГУП \"Почта России\"","7724261610","997750001"]
[1708,"Слободской муниципальный район","Поселок Вахруши","33635153","ФГУП \"РТРС\"","7717127211","771701001"]
[1709,"Слободской муниципальный район","Светозаревское","33635446","МРФ \"Волга\" ПАО \"Ростелеком\"","7707049388","526043001"]
[1710,"Слободской муниципальный район","Светозаревское","33635446","ООО \"Тепловик\"","4329010909","432901001"]
[1711,"Слободской муниципальный район","Светозаревское","33635446","ФГУП \"Почта России\"","7724261610","997750001"]
[1712,"Слободской муниципальный район","Светозаревское","33635446","ФГУП \"РТРС\"","7717127211","771701001"]
[1713,"Слободской муниципальный район","Слободской муниципальный район","33635000","ГУСО \"Подлевский психоневрологический интернат\"","4329002908","432901001"]
[1714,"Слободской муниципальный район","Слободской муниципальный район","33635000","МУП ЖКХ \"Запад\"","4329018545","432901001"]
[1715,"Слободской муниципальный район","Слободской муниципальный район","33635000","ОАО Слободская \"Агропромтехника\"","4329002030","432901001"]
[1716,"Слободской муниципальный район","Слободской муниципальный район","33635000","ООО \"Газпром теплоэнерго Киров\"","4345268905","434501001"]
[1717,"Слободской муниципальный район","Слободской муниципальный район","33635000","ООО \"Многоотраслевое предприятие\"","4329011028","432901001"]
[1718,"Слободской муниципальный район","Слободской муниципальный район","33635000","ООО \"Октябрьский\"","4329010916","432901001"]
[1719,"Слободской муниципальный район","Слободской муниципальный район","33635000","ООО \"Торговый дом \"Митино\"","4329015625","432901001"]
[1720,"Слободской муниципальный район","Слободской муниципальный район","33635000","ФГУП \"РТРС\"","7717127211","771701001"]
[1721,"Слободской муниципальный район","Стуловское","33635456","МП ЖКХ п. Вахруши","4329004750","432901001"]
[1722,"Слободской муниципальный район","Стуловское","33635456","МРФ \"Волга\" ПАО \"Ростелеком\"","7707049388","526043001"]
[1723,"Слободской муниципальный район","Стуловское","33635456","ОАО Слободская \"Агропромтехника\"","4329002030","432901001"]
[1724,"Слободской муниципальный район","Стуловское","33635456","ООО \"ПМК-14\"","4345074258","432901001"]
[1725,"Слободской муниципальный район","Стуловское","33635456","ФГУП \"Почта России\"","7724261610","997750001"]
[1726,"Слободской муниципальный район","Стуловское","33635456","ФГУП \"РТРС\"","7717127211","771701001"]
[1727,"Слободской муниципальный район","Шестаковское","33635460","МРФ \"Волга\" ПАО \"Ростелеком\"","7707049388","526043001"]
[1728,"Слободской муниципальный район","Шестаковское","33635460","ООО \"Восток\"","4329012864","432901001"]
[1729,"Слободской муниципальный район","Шестаковское","33635460","СПК СХА (колхоз) \"Красная Талица\"","4329004510","432901001"]
[1730,"Слободской муниципальный район","Шестаковское","33635460","ФГУП \"Почта России\"","7724261610","997750001"]
[1731,"Слободской муниципальный район","Шестаковское","33635460","ФГУП \"РТРС\"","7717127211","771701001"]
[1732,"Слободской муниципальный район","Шиховское","33635452","ГУСО \"Подлевский психоневрологический интернат\"","4329002908","432901001"]
[1733,"Слободской муниципальный район","Шиховское","33635452","МРФ \"Волга\" ПАО \"Ростелеком\"","7707049388","526043001"]
[1734,"Слободской муниципальный район","Шиховское","33635452","МУП ЖКХ \"Запад\"","4329018545","432901001"]
[1735,"Слободской муниципальный район","Шиховское","33635452","ООО \"Звероводческое племенное хозяйство \"Вятка","4329008459","432901001"]
[1736,"Слободской муниципальный район","Шиховское","33635452","ООО \"Многоотраслевое предприятие\"","4329011028","432901001"]
[1737,"Слободской муниципальный район","Шиховское","33635452","ФГУП \"Почта России\"","7724261610","997750001"]
[1738,"Слободской муниципальный район","Шиховское","33635452","ФГУП \"РТРС\"","7717127211","771701001"]
[1739,"Советский муниципальный район","Город Советск","33636101","АО \"Жильё\"","4330006270","433001001"]
[1740,"Советский муниципальный район","Город Советск","33636101","КОГБУЗ \"Кировская областная клиническая психиатрическая больница им. Академика В.М. Бехтерева\"","4345393078","434501001"]
[1741,"Советский муниципальный район","Город Советск","33636101","КОГПОАУ ТПИНП г.Советска","4330001306","433001001"]
[1742,"Советский муниципальный район","Город Советск","33636101","КОГПОБУ \"Суводский лесхоз-техникум\"","4330000341","433001001"]
[1743,"Советский муниципальный район","Город Советск","33636101","МРФ \"Волга\" ПАО \"Ростелеком\"","7707049388","526043001"]
[1744,"Советский муниципальный район","Город Советск","33636101","ОАО \"Коммунэнерго\"","4346011123","434501001"]
[1745,"Советский муниципальный район","Город Советск","33636101","ОАО \"Советские коммунальные системы\"","4330008076","433001001"]
[1746,"Советский муниципальный район","Город Советск","33636101","ОАО \"Советское ремтехпредприятие\"","4330000327","433001001"]
[1747,"Советский муниципальный район","Город Советск","33636101","ООО \"ЖКХ\"","4330007604","433001001"]
[1748,"Советский муниципальный район","Город Советск","33636101","ООО \"Крона\"","4330004850","433001001"]
[1749,"Советский муниципальный район","Город Советск","33636101","ООО \"Советский мясокомбинат\"","4330005910","433001001"]
[1750,"Советский муниципальный район","Город Советск","33636101","ООО «Теплосеть»","4330006978","433001001"]
[1751,"Советский муниципальный район","Город Советск","33636101","ООО «Управляющая компания Вектор»","4330008005","433001001"]
[1752,"Советский муниципальный район","Город Советск","33636101","ФГУП \"Почта России\"","7724261610","997750001"]
[1753,"Советский муниципальный район","Город Советск","33636101","ФГУП \"РТРС\"","7717127211","771701001"]
[1754,"Советский муниципальный район","Греховское","33636460","Администрация муниципального образования Греховское сельское поселение Советского района Кировской области","4330005149","433001001"]
[1755,"Советский муниципальный район","Греховское","33636460","КОГКУСО\"Советский психоневрологический интернат\"","4330001514","433001001"]
[1756,"Советский муниципальный район","Греховское","33636460","МРФ \"Волга\" ПАО \"Ростелеком\"","7707049388","526043001"]
[1757,"Советский муниципальный район","Греховское","33636460","ФГУП \"Почта России\"","7724261610","997750001"]
[1758,"Советский муниципальный район","Греховское","33636460","ФГУП \"РТРС\"","7717127211","771701001"]
[1759,"Советский муниципальный район","Зашижемское","33636420","АО \"Жильё\"","4330006270","433001001"]
[1760,"Советский муниципальный район","Зашижемское","33636420","Администрация муниципального образования Зашижемское сельское поселение Советского района Кировской области.","4330005170","433001001"]
[1761,"Советский муниципальный район","Зашижемское","33636420","МРФ \"Волга\" ПАО \"Ростелеком\"","7707049388","526043001"]
[1762,"Советский муниципальный район","Зашижемское","33636420","ОАО \"Советские коммунальные системы\"","4330008076","433001001"]
[1763,"Советский муниципальный район","Зашижемское","33636420","ФГУП \"Почта России\"","7724261610","997750001"]
[1764,"Советский муниципальный район","Зашижемское","33636420","ФГУП \"РТРС\"","7717127211","771701001"]
[1765,"Советский муниципальный район","Ильинское","33636424","Администрация муниципального образования Ильинское сельское поселение Советского района Кировской области.","4330005131","433001001"]
[1766,"Советский муниципальный район","Ильинское","33636424","МРФ \"Волга\" ПАО \"Ростелеком\"","7707049388","526043001"]
[1767,"Советский муниципальный район","Ильинское","33636424","ОАО \"Коммунэнерго\"","4346011123","434501001"]
[1768,"Советский муниципальный район","Ильинское","33636424","ОАО \"Прогресс\"","4330005886","433001001"]
[1769,"Советский муниципальный район","Ильинское","33636424","ОАО \"Советские коммунальные системы\"","4330008076","433001001"]
[1770,"Советский муниципальный район","Ильинское","33636424","ФГУП \"Почта России\"","7724261610","997750001"]
[1771,"Советский муниципальный район","Ильинское","33636424","ФГУП \"РТРС\"","7717127211","771701001"]
[1772,"Советский муниципальный район","Кичминское","33636428","Администрация муниципального образования Кичминское сельское поселение Советского района Кировской области.","4330005318","433001001"]
[1773,"Советский муниципальный район","Кичминское","33636428","МРФ \"Волга\" ПАО \"Ростелеком\"","7707049388","526043001"]
[1774,"Советский муниципальный район","Кичминское","33636428","ФГУП \"Почта России\"","7724261610","997750001"]
[1775,"Советский муниципальный район","Кичминское","33636428","ФГУП \"РТРС\"","7717127211","771701001"]
[1776,"Советский муниципальный район","Колянурское","33636436","Администрация муниципального образования Колянурское сельское поселение Советского района Кировской области","4330005364","433001001"]
[1777,"Советский муниципальный район","Колянурское","33636436","МРФ \"Волга\" ПАО \"Ростелеком\"","7707049388","526043001"]
[1778,"Советский муниципальный район","Колянурское","33636436","ОАО \"Коммунэнерго\"","4346011123","434501001"]
[1779,"Советский муниципальный район","Колянурское","33636436","ОАО \"Советские коммунальные системы\"","4330008076","433001001"]
[1780,"Советский муниципальный район","Колянурское","33636436","ФГУП \"Почта России\"","7724261610","997750001"]
[1781,"Советский муниципальный район","Колянурское","33636436","ФГУП \"РТРС\"","7717127211","771701001"]
[1782,"Советский муниципальный район","Лесниковское","33636440","Администрация муниципального образования Лесниковское сельское поселение Советского района Кировской области.","4330005332","433001001"]
[1783,"Советский муниципальный район","Лесниковское","33636440","МРФ \"Волга\" ПАО \"Ростелеком\"","7707049388","526043001"]
[1784,"Советский муниципальный район","Лесниковское","33636440","ОАО \"Советские коммунальные системы\"","4330008076","433001001"]
[1785,"Советский муниципальный район","Лесниковское","33636440","ФГУП \"Почта России\"","7724261610","997750001"]
[1786,"Советский муниципальный район","Лесниковское","33636440","ФГУП \"РТРС\"","7717127211","771701001"]
[1787,"Советский муниципальный район","Лошкаринский","33636444","Администрация МО Лошкаринского сельского поселения Советского района Кировской области","4330005163","433001001"]
[1788,"Советский муниципальный район","Лошкаринский","33636444","МРФ \"Волга\" ПАО \"Ростелеком\"","7707049388","526043001"]
[1789,"Советский муниципальный район","Лошкаринский","33636444","ОАО \"Советские коммунальные системы\"","4330008076","433001001"]
[1790,"Советский муниципальный район","Лошкаринский","33636444","ФГУП \"Почта России\"","7724261610","997750001"]
[1791,"Советский муниципальный район","Лошкаринский","33636444","ФГУП \"РТРС\"","7717127211","771701001"]
[1792,"Советский муниципальный район","Мокинское","33636448","АО \"Мокинское\"","4330004586","433000101"]
[1793,"Советский муниципальный район","Мокинское","33636448","МРФ \"Волга\" ПАО \"Ростелеком\"","7707049388","526043001"]
[1794,"Советский муниципальный район","Мокинское","33636448","ФГУП \"Почта России\"","7724261610","997750001"]
[1795,"Советский муниципальный район","Мокинское","33636448","ФГУП \"РТРС\"","7717127211","771701001"]
[1796,"Советский муниципальный район","Родыгинское","33636464","АО \"Русь\"","4330005244","433001001"]
[1797,"Советский муниципальный район","Родыгинское","33636464","Администрация муниципального образования Родыгинское сельское поселение Советского района Кировской области.","4330005220","433001001"]
[1798,"Советский муниципальный район","Родыгинское","33636464","МРФ \"Волга\" ПАО \"Ростелеком\"","7707049388","526043001"]
[1799,"Советский муниципальный район","Родыгинское","33636464","ОАО \"Коммунэнерго\"","4346011123","434501001"]
[1800,"Советский муниципальный район","Родыгинское","33636464","ООО \"Советская агрофирма\"","4330004233","433001001"]
[1801,"Советский муниципальный район","Родыгинское","33636464","ФГУП \"Почта России\"","7724261610","997750001"]
[1802,"Советский муниципальный район","Родыгинское","33636464","ФГУП \"РТРС\"","7717127211","771701001"]
[1803,"Советский муниципальный район","Советский муниципальный район","33636000","АО \"Жильё\"","4330006270","433001001"]
[1804,"Советский муниципальный район","Советский муниципальный район","33636000","Администрация МО Лошкаринского сельского поселения Советского района Кировской области","4330005163","433001001"]
[1805,"Советский муниципальный район","Советский муниципальный район","33636000","КОГБУЗ \"Кировская областная клиническая психиатрическая больница им. Академика В.М. Бехтерева\"","4345393078","434501001"]
[1806,"Советский муниципальный район","Советский муниципальный район","33636000","КОГКУСО\"Советский психоневрологический интернат\"","4330001514","433001001"]
[1807,"Советский муниципальный район","Советский муниципальный район","33636000","ОАО \"Коммунэнерго\"","4346011123","434501001"]
[1808,"Советский муниципальный район","Советский муниципальный район","33636000","ФГУП \"РТРС\"","7717127211","771701001"]
[1809,"Сунский муниципальный район","Большевитское","33637428","МРФ \"Волга\" ПАО \"Ростелеком\"","7707049388","526043001"]
[1810,"Сунский муниципальный район","Большевитское","33637428","ООО \"ТК Ресурс\"","4309006870","430901001"]
[1811,"Сунский муниципальный район","Большевитское","33637428","СПК колхоз \"Большевик\"","4331000577","433101001"]
[1812,"Сунский муниципальный район","Большевитское","33637428","ФГУП \"Почта России\"","7724261610","997750001"]
[1813,"Сунский муниципальный район","Большевитское","33637428","ФГУП \"РТРС\"","7717127211","771701001"]
[1814,"Сунский муниципальный район","Кокуйское","33637406","МРФ \"Волга\" ПАО \"Ростелеком\"","7707049388","526043001"]
[1815,"Сунский муниципальный район","Кокуйское","33637406","ООО \"ТК Ресурс\"","4309006870","430901001"]
[1816,"Сунский муниципальный район","Кокуйское","33637406","ПСПК \"Краснопольский\"","4331000023","433101001"]
[1817,"Сунский муниципальный район","Кокуйское","33637406","СПК \"Плельский\"","4331000136","433101001"]
[1818,"Сунский муниципальный район","Кокуйское","33637406","СПК \"Сунский\"","4331000030","433101001"]
[1819,"Сунский муниципальный район","Кокуйское","33637406","ФГУП \"Почта России\"","7724261610","997750001"]
[1820,"Сунский муниципальный район","Кокуйское","33637406","ФГУП \"РТРС\"","7717127211","771701001"]
[1821,"Сунский муниципальный район","Курчумское","33637412","МРФ \"Волга\" ПАО \"Ростелеком\"","7707049388","526043001"]
[1822,"Сунский муниципальный район","Курчумское","33637412","ФГУП \"Почта России\"","7724261610","997750001"]
[1823,"Сунский муниципальный район","Курчумское","33637412","ФГУП \"РТРС\"","7717127211","771701001"]
[1824,"Сунский муниципальный район","Поселок Суна","33637151","МРФ \"Волга\" ПАО \"Ростелеком\"","7707049388","526043001"]
[1825,"Сунский муниципальный район","Поселок Суна","33637151","ООО \"ТК Ресурс\"","4309006870","430901001"]
[1826,"Сунский муниципальный район","Поселок Суна","33637151","ООО \"ТехноТрейд\"","4331002630","433101001"]
[1827,"Сунский муниципальный район","Поселок Суна","33637151","ООО \"ЭнергоСервис\"","4331002207","433101001"]
[1828,"Сунский муниципальный район","Поселок Суна","33637151","ФГУП \"Почта России\"","7724261610","997750001"]
[1829,"Сунский муниципальный район","Поселок Суна","33637151","ФГУП \"РТРС\"","7717127211","771701001"]
[1830,"Сунский муниципальный район","Сунский муниципальный район","33637000","ООО \"ТК Ресурс\"","4309006870","430901001"]
[1831,"Сунский муниципальный район","Сунский муниципальный район","33637000","ФГУП \"РТРС\"","7717127211","771701001"]
[1832,"Тужинский муниципальный район","Грековское","33638416","Администрация Грековского с/п","4332005881","433201001"]
[1833,"Тужинский муниципальный район","Грековское","33638416","МРФ \"Волга\" ПАО \"Ростелеком\"","7707049388","526043001"]
[1834,"Тужинский муниципальный район","Грековское","33638416","ФГУП \"Почта России\"","7724261610","997750001"]
[1835,"Тужинский муниципальный район","Грековское","33638416","ФГУП \"РТРС\"","7717127211","771701001"]
[1836,"Тужинский муниципальный район","Михайловское","33638428","Администрация Михайловского с/п","4332005828","433201001"]
[1837,"Тужинский муниципальный район","Михайловское","33638428","МРФ \"Волга\" ПАО \"Ростелеком\"","7707049388","526043001"]
[1838,"Тужинский муниципальный район","Михайловское","33638428","ФГУП \"Почта России\"","7724261610","997750001"]
[1839,"Тужинский муниципальный район","Михайловское","33638428","ФГУП \"РТРС\"","7717127211","771701001"]
[1840,"Тужинский муниципальный район","Ныровское","33638436","Администрация Ныровского с/п","4332005835","433201001"]
[1841,"Тужинский муниципальный район","Ныровское","33638436","МРФ \"Волга\" ПАО \"Ростелеком\"","7707049388","526043001"]
[1842,"Тужинский муниципальный район","Ныровское","33638436","ФГУП \"Почта России\"","7724261610","997750001"]
[1843,"Тужинский муниципальный район","Ныровское","33638436","ФГУП \"РТРС\"","7717127211","771701001"]
[1844,"Тужинский муниципальный район","Пачинское","33638440","Администрация Пачинского с/п","4332005850","433201001"]
[1845,"Тужинский муниципальный район","Пачинское","33638440","МРФ \"Волга\" ПАО \"Ростелеком\"","7707049388","526043001"]
[1846,"Тужинский муниципальный район","Пачинское","33638440","ФГУП \"Почта России\"","7724261610","997750001"]
[1847,"Тужинский муниципальный район","Пачинское","33638440","ФГУП \"РТРС\"","7717127211","771701001"]
[1848,"Тужинский муниципальный район","Поселок Тужа","33638151","МРФ \"Волга\" ПАО \"Ростелеком\"","7707049388","526043001"]
[1849,"Тужинский муниципальный район","Поселок Тужа","33638151","Тужинское МУП \"Коммунальщик\"","4332002584","433201001"]
[1850,"Тужинский муниципальный район","Поселок Тужа","33638151","УФПС Кировской области – филиал ФГУП «Почта России»","7724261610","434502001"]
[1851,"Тужинский муниципальный район","Поселок Тужа","33638151","ФГУП \"Почта России\"","7724261610","997750001"]
[1852,"Тужинский муниципальный район","Поселок Тужа","33638151","ФГУП \"РТРС\"","7717127211","771701001"]
[1853,"Тужинский муниципальный район","Тужинский муниципальный район","33638000","ФГУП \"РТРС\"","7717127211","771701001"]
[1854,"Унинский муниципальный район","Астраханское","33640402","МРФ \"Волга\" ПАО \"Ростелеком\"","7707049388","526043001"]
[1855,"Унинский муниципальный район","Астраханское","33640402","МУ \"Администрация Астраханского сельского поселения Унинского рацона Кировскоц области\"","4333001110","433301001"]
[1856,"Унинский муниципальный район","Астраханское","33640402","ООО \"Коммунальщик\"","4333004055","433301001"]
[1857,"Унинский муниципальный район","Астраханское","33640402","ФГУП \"Почта России\"","7724261610","997750001"]
[1858,"Унинский муниципальный район","Астраханское","33640402","ФГУП \"РТРС\"","7717127211","771701001"]
[1859,"Унинский муниципальный район","Елганское","33640412","МРФ \"Волга\" ПАО \"Ростелеком\"","7707049388","526043001"]
[1860,"Унинский муниципальный район","Елганское","33640412","ФГУП \"Почта России\"","7724261610","997750001"]
[1861,"Унинский муниципальный район","Елганское","33640412","ФГУП \"РТРС\"","7717127211","771701001"]
[1862,"Унинский муниципальный район","Канахинское","33640414","МРФ \"Волга\" ПАО \"Ростелеком\"","7707049388","526043001"]
[1863,"Унинский муниципальный район","Канахинское","33640414","ФГУП \"Почта России\"","7724261610","997750001"]
[1864,"Унинский муниципальный район","Канахинское","33640414","ФГУП \"РТРС\"","7717127211","771701001"]
[1865,"Унинский муниципальный район","Комаровское","33640420","МРФ \"Волга\" ПАО \"Ростелеком\"","7707049388","526043001"]
[1866,"Унинский муниципальный район","Комаровское","33640420","ООО «Варман»","4345103438","433301001"]
[1867,"Унинский муниципальный район","Комаровское","33640420","ФГУП \"Почта России\"","7724261610","997750001"]
[1868,"Унинский муниципальный район","Комаровское","33640420","ФГУП \"РТРС\"","7717127211","771701001"]
[1869,"Унинский муниципальный район","Малополомское","33640424","ИП Чирков А.В.","433300698053","отсутствует"]
[1870,"Унинский муниципальный район","Малополомское","33640424","МРФ \"Волга\" ПАО \"Ростелеком\"","7707049388","526043001"]
[1871,"Унинский муниципальный район","Малополомское","33640424","ФГУП \"Почта России\"","7724261610","997750001"]
[1872,"Унинский муниципальный район","Малополомское","33640424","ФГУП \"РТРС\"","7717127211","771701001"]
[1873,"Унинский муниципальный район","Порезское","33640428","МРФ \"Волга\" ПАО \"Ростелеком\"","7707049388","526043001"]
[1874,"Унинский муниципальный район","Порезское","33640428","МУП \"Чуваши\"","4333002925","433301001"]
[1875,"Унинский муниципальный район","Порезское","33640428","ФГУП \"Почта России\"","7724261610","997750001"]
[1876,"Унинский муниципальный район","Порезское","33640428","ФГУП \"РТРС\"","7717127211","771701001"]
[1877,"Унинский муниципальный район","Поселок Уни","33640151","ИП Чирков А.В.","433300698053","отсутствует"]
[1878,"Унинский муниципальный район","Поселок Уни","33640151","МРФ \"Волга\" ПАО \"Ростелеком\"","7707049388","526043001"]
[1879,"Унинский муниципальный район","Поселок Уни","33640151","ООО \"Коммунальщик\"","4333004055","433301001"]
[1880,"Унинский муниципальный район","Поселок Уни","33640151","ФГУП \"Почта России\"","7724261610","997750001"]
[1881,"Унинский муниципальный район","Поселок Уни","33640151","ФГУП \"РТРС\"","7717127211","771701001"]
[1882,"Унинский муниципальный район","Сардыкское","33640436","МРФ \"Волга\" ПАО \"Ростелеком\"","7707049388","526043001"]
[1883,"Унинский муниципальный район","Сардыкское","33640436","ООО \"Коммунальщик\"","4333004055","433301001"]
[1884,"Унинский муниципальный район","Сардыкское","33640436","ФГУП \"Почта России\"","7724261610","997750001"]
[1885,"Унинский муниципальный район","Сардыкское","33640436","ФГУП \"РТРС\"","7717127211","771701001"]
[1886,"Унинский муниципальный район","Сосновское","33640440","МРФ \"Волга\" ПАО \"Ростелеком\"","7707049388","526043001"]
[1887,"Унинский муниципальный район","Сосновское","33640440","ООО \"Коммунальщик\"","4333004055","433301001"]
[1888,"Унинский муниципальный район","Сосновское","33640440","ООО «Сосновка»","4333004190","433301001"]
[1889,"Унинский муниципальный район","Сосновское","33640440","ФГУП \"Почта России\"","7724261610","997750001"]
[1890,"Унинский муниципальный район","Сосновское","33640440","ФГУП \"РТРС\"","7717127211","771701001"]
[1891,"Унинский муниципальный район","Унинский муниципальный район","33640000","МУ \"Администрация Астраханского сельского поселения Унинского рацона Кировскоц области\"","4333001110","433301001"]
[1892,"Унинский муниципальный район","Унинский муниципальный район","33640000","ООО \"Коммунальщик\"","4333004055","433301001"]
[1893,"Унинский муниципальный район","Унинский муниципальный район","33640000","ФГУП \"РТРС\"","7717127211","771701001"]
[1894,"Уржумский муниципальный район","Байсинское","33641408","МРФ \"Волга\" ПАО \"Ростелеком\"","7707049388","526043001"]
[1895,"Уржумский муниципальный район","Байсинское","33641408","ФГУП \"Почта России\"","7724261610","997750001"]
[1896,"Уржумский муниципальный район","Байсинское","33641408","ФГУП \"РТРС\"","7717127211","771701001"]
[1897,"Уржумский муниципальный район","Большеройское","33641416","МРФ \"Волга\" ПАО \"Ростелеком\"","7707049388","526043001"]
[1898,"Уржумский муниципальный район","Большеройское","33641416","МУП \"Теплосервис\"","4334006104","433401001"]
[1899,"Уржумский муниципальный район","Большеройское","33641416","ФГУП \"Почта России\"","7724261610","997750001"]
[1900,"Уржумский муниципальный район","Большеройское","33641416","ФГУП \"РТРС\"","7717127211","771701001"]
[1901,"Уржумский муниципальный район","Буйское","33641420","МРФ \"Волга\" ПАО \"Ростелеком\"","7707049388","526043001"]
[1902,"Уржумский муниципальный район","Буйское","33641420","МУП \"Теплосервис\"","4334006104","433401001"]
[1903,"Уржумский муниципальный район","Буйское","33641420","ФГУП \"Почта России\"","7724261610","997750001"]
[1904,"Уржумский муниципальный район","Буйское","33641420","ФГУП \"РТРС\"","7717127211","771701001"]
[1905,"Уржумский муниципальный район","Город Уржум","33641101","АО \"Газпром газораспределение Киров\"","4346006589","434501001"]
[1906,"Уржумский муниципальный район","Город Уржум","33641101","Кировский филиал ПАО \"Ростелеком\"","7707049388","434543001"]
[1907,"Уржумский муниципальный район","Город Уржум","33641101","МКУП \"Уржум-град\"","4334008207","433401001"]
[1908,"Уржумский муниципальный район","Город Уржум","33641101","МРФ \"Волга\" ПАО \"Ростелеком\"","7707049388","526043001"]
[1909,"Уржумский муниципальный район","Город Уржум","33641101","МУП \"Теплосервис\"","4334006104","433401001"]
[1910,"Уржумский муниципальный район","Город Уржум","33641101","ОАО \"Коммунэнерго\"","4346011123","434501001"]
[1911,"Уржумский муниципальный район","Город Уржум","33641101","ОАО \"Уржумский спиртоводочный завод\"","4334003671","433401001"]
[1912,"Уржумский муниципальный район","Город Уржум","33641101","ФГУП \"Почта России\"","7724261610","997750001"]
[1913,"Уржумский муниципальный район","Город Уржум","33641101","ФГУП \"РТРС\"","7717127211","771701001"]
[1914,"Уржумский муниципальный район","Донауровское","33641480","МРФ \"Волга\" ПАО \"Ростелеком\"","7707049388","526043001"]
[1915,"Уржумский муниципальный район","Донауровское","33641480","ФГУП \"Почта России\"","7724261610","997750001"]
[1916,"Уржумский муниципальный район","Донауровское","33641480","ФГУП \"РТРС\"","7717127211","771701001"]
[1917,"Уржумский муниципальный район","Лазаревское","33641432","МРФ \"Волга\" ПАО \"Ростелеком\"","7707049388","526043001"]
[1918,"Уржумский муниципальный район","Лазаревское","33641432","МУП \"Теплосервис\"","4334006104","433401001"]
[1919,"Уржумский муниципальный район","Лазаревское","33641432","ОАО \"Уржумский спиртоводочный завод\"","4334003671","433401001"]
[1920,"Уржумский муниципальный район","Лазаревское","33641432","ООО \"Строй-Сервис\"","4334008870","433401001"]
[1921,"Уржумский муниципальный район","Лазаревское","33641432","ФГУП \"Почта России\"","7724261610","997750001"]
[1922,"Уржумский муниципальный район","Лазаревское","33641432","ФГУП \"РТРС\"","7717127211","771701001"]
[1923,"Уржумский муниципальный район","Лопьяльское","33641440","МРФ \"Волга\" ПАО \"Ростелеком\"","7707049388","526043001"]
[1924,"Уржумский муниципальный район","Лопьяльское","33641440","МУП \"Теплосервис\"","4334006104","433401001"]
[1925,"Уржумский муниципальный район","Лопьяльское","33641440","ФГУП \"Почта России\"","7724261610","997750001"]
[1926,"Уржумский муниципальный район","Лопьяльское","33641440","ФГУП \"РТРС\"","7717127211","771701001"]
[1927,"Уржумский муниципальный район","Петровское","33641452","МРФ \"Волга\" ПАО \"Ростелеком\"","7707049388","526043001"]
[1928,"Уржумский муниципальный район","Петровское","33641452","МУП \"Теплосервис\"","4334006104","433401001"]
[1929,"Уржумский муниципальный район","Петровское","33641452","ФГУП \"Почта России\"","7724261610","997750001"]
[1930,"Уржумский муниципальный район","Петровское","33641452","ФГУП \"РТРС\"","7717127211","771701001"]
[1931,"Уржумский муниципальный район","Пиляндышевское","33641456","МРФ \"Волга\" ПАО \"Ростелеком\"","7707049388","526043001"]
[1932,"Уржумский муниципальный район","Пиляндышевское","33641456","ФГУП \"Почта России\"","7724261610","997750001"]
[1933,"Уржумский муниципальный район","Пиляндышевское","33641456","ФГУП \"РТРС\"","7717127211","771701001"]
[1934,"Уржумский муниципальный район","Рублевское","33641464","МРФ \"Волга\" ПАО \"Ростелеком\"","7707049388","526043001"]
[1935,"Уржумский муниципальный район","Рублевское","33641464","ФГУП \"Почта России\"","7724261610","997750001"]
[1936,"Уржумский муниципальный район","Рублевское","33641464","ФГУП \"РТРС\"","7717127211","771701001"]
[1937,"Уржумский муниципальный район","Русско-Турекское","33641472","Кировское областное государственное автономное учреждение социального обслуживания \"Русско-Турекский психоневрологический интернат\"","4334002639","433401001"]
[1938,"Уржумский муниципальный район","Русско-Турекское","33641472","МРФ \"Волга\" ПАО \"Ростелеком\"","7707049388","526043001"]
[1939,"Уржумский муниципальный район","Русско-Турекское","33641472","МУП \"Теплосервис\"","4334006104","433401001"]
[1940,"Уржумский муниципальный район","Русско-Турекское","33641472","МУХ КП ЖКХ \"Водолей\"","4334008165","433401001"]
[1941,"Уржумский муниципальный район","Русско-Турекское","33641472","ООО \"Кировавтогаз\"","4345169260","434501001"]
[1942,"Уржумский муниципальный район","Русско-Турекское","33641472","ФГУП \"Почта России\"","7724261610","997750001"]
[1943,"Уржумский муниципальный район","Русско-Турекское","33641472","ФГУП \"РТРС\"","7717127211","771701001"]
[1944,"Уржумский муниципальный район","Савиновское","33641476","МРФ \"Волга\" ПАО \"Ростелеком\"","7707049388","526043001"]
[1945,"Уржумский муниципальный район","Савиновское","33641476","ФГУП \"Почта России\"","7724261610","997750001"]
[1946,"Уржумский муниципальный район","Савиновское","33641476","ФГУП \"РТРС\"","7717127211","771701001"]
[1947,"Уржумский муниципальный район","Уржумский муниципальный район","33641000","АО \"Газпром газораспределение Киров\"","4346006589","434501001"]
[1948,"Уржумский муниципальный район","Уржумский муниципальный район","33641000","Кировское областное государственное автономное учреждение социального обслуживания \"Русско-Турекский психоневрологический интернат\"","4334002639","433401001"]
[1949,"Уржумский муниципальный район","Уржумский муниципальный район","33641000","МУ администрация Шурминского сельского поселения Уржумского района Кировской области","4334006577","433401001"]
[1950,"Уржумский муниципальный район","Уржумский муниципальный район","33641000","МУП \"Теплосервис\"","4334006104","433401001"]
[1951,"Уржумский муниципальный район","Уржумский муниципальный район","33641000","ОАО \"Коммунэнерго\"","4346011123","434501001"]
[1952,"Уржумский муниципальный район","Уржумский муниципальный район","33641000","ООО \"Агрофирма Строитель\"","4334008253","433401001"]
[1953,"Уржумский муниципальный район","Уржумский муниципальный район","33641000","ООО \"Кировавтогаз\"","4345169260","434501001"]
[1954,"Уржумский муниципальный район","Уржумский муниципальный район","33641000","ФГУП \"РТРС\"","7717127211","771701001"]
[1955,"Уржумский муниципальный район","Уржумское","33641496","МРФ \"Волга\" ПАО \"Ростелеком\"","7707049388","526043001"]
[1956,"Уржумский муниципальный район","Уржумское","33641496","МУП \"Теплосервис\"","4334006104","433401001"]
[1957,"Уржумский муниципальный район","Уржумское","33641496","ООО \"Агрофирма Строитель\"","4334008253","433401001"]
[1958,"Уржумский муниципальный район","Уржумское","33641496","ООО \"Биоканал\"","4334009063","433401001"]
[1959,"Уржумский муниципальный район","Уржумское","33641496","ООО \"Надежда-хлеб НА\"","4334008408","433401001"]
[1960,"Уржумский муниципальный район","Уржумское","33641496","ООО \"Рассвет\"","4334007348","433401001"]
[1961,"Уржумский муниципальный район","Уржумское","33641496","ООО \"Родник\"","4334009056","433401001"]
[1962,"Уржумский муниципальный район","Уржумское","33641496","ФГУП \"Почта России\"","7724261610","997750001"]
[1963,"Уржумский муниципальный район","Уржумское","33641496","ФГУП \"РТРС\"","7717127211","771701001"]
[1964,"Уржумский муниципальный район","Шурминское","33641492","МРФ \"Волга\" ПАО \"Ростелеком\"","7707049388","526043001"]
[1965,"Уржумский муниципальный район","Шурминское","33641492","МУ администрация Шурминского сельского поселения Уржумского района Кировской области","4334006577","433401001"]
[1966,"Уржумский муниципальный район","Шурминское","33641492","МУП \"Теплосервис\"","4334006104","433401001"]
[1967,"Уржумский муниципальный район","Шурминское","33641492","ФГУП \"Почта России\"","7724261610","997750001"]
[1968,"Уржумский муниципальный район","Шурминское","33641492","ФГУП \"РТРС\"","7717127211","771701001"]
[1969,"Фаленский муниципальный район","Верхосунское","33643416","Администрация Верхосунского сельского поселения Фаленского района","4335002913","433501001"]
[1970,"Фаленский муниципальный район","Верхосунское","33643416","МРФ \"Волга\" ПАО \"Ростелеком\"","7707049388","526043001"]
[1971,"Фаленский муниципальный район","Верхосунское","33643416","ФГУП \"Почта России\"","7724261610","997750001"]
[1972,"Фаленский муниципальный район","Верхосунское","33643416","ФГУП \"РТРС\"","7717127211","771701001"]
[1973,"Фаленский муниципальный район","Левановское","33643424","МРФ \"Волга\" ПАО \"Ростелеком\"","7707049388","526043001"]
[1974,"Фаленский муниципальный район","Левановское","33643424","ООО \"ТК Ресурс\"","4309006870","430901001"]
[1975,"Фаленский муниципальный район","Левановское","33643424","СПК Колхоз им.Ленина","4335000264","433501001"]
[1976,"Фаленский муниципальный район","Левановское","33643424","ФГУП \"Почта России\"","7724261610","997750001"]
[1977,"Фаленский муниципальный район","Левановское","33643424","ФГУП \"РТРС\"","7717127211","771701001"]
[1978,"Фаленский муниципальный район","Медвеженское","33643428","МРФ \"Волга\" ПАО \"Ростелеком\"","7707049388","526043001"]
[1979,"Фаленский муниципальный район","Медвеженское","33643428","ОАО \"Им.Кирова\"","4335003603","433501001"]
[1980,"Фаленский муниципальный район","Медвеженское","33643428","ООО \"ТК Ресурс\"","4309006870","430901001"]
[1981,"Фаленский муниципальный район","Медвеженское","33643428","СПК колхоз им.Свердлова","4335000289","433501001"]
[1982,"Фаленский муниципальный район","Медвеженское","33643428","ФГУП \"Почта России\"","7724261610","997750001"]
[1983,"Фаленский муниципальный район","Медвеженское","33643428","ФГУП \"РТРС\"","7717127211","771701001"]
[1984,"Фаленский муниципальный район","Петруненское","33643444","МРФ \"Волга\" ПАО \"Ростелеком\"","7707049388","526043001"]
[1985,"Фаленский муниципальный район","Петруненское","33643444","ФГУП \"Почта России\"","7724261610","997750001"]
[1986,"Фаленский муниципальный район","Петруненское","33643444","ФГУП \"РТРС\"","7717127211","771701001"]
[1987,"Фаленский муниципальный район","Поломское","33643448","МРФ \"Волга\" ПАО \"Ростелеком\"","7707049388","526043001"]
[1988,"Фаленский муниципальный район","Поломское","33643448","СПК колхоз \"Поломский\"","4335000296","433501001"]
[1989,"Фаленский муниципальный район","Поломское","33643448","ФГУП \"Почта России\"","7724261610","997750001"]
[1990,"Фаленский муниципальный район","Поломское","33643448","ФГУП \"РТРС\"","7717127211","771701001"]
[1991,"Фаленский муниципальный район","Поселок Фаленки","33643151","Горьковская дирекция по тепловодоснабжению структурное подразделение Центральной дирекции по тепловодоснабжению - филиала ОАО \"РЖД\"","7708503727","525745041"]
[1992,"Фаленский муниципальный район","Поселок Фаленки","33643151","МРФ \"Волга\" ПАО \"Ростелеком\"","7707049388","526043001"]
[1993,"Фаленский муниципальный район","Поселок Фаленки","33643151","ООО \"ТК Ресурс\"","4309006870","430901001"]
[1994,"Фаленский муниципальный район","Поселок Фаленки","33643151","ООО «Фаленский водоканал»","4335004011","433501001"]
[1995,"Фаленский муниципальный район","Поселок Фаленки","33643151","ФГУП \"Почта России\"","7724261610","997750001"]
[1996,"Фаленский муниципальный район","Поселок Фаленки","33643151","ФГУП \"РТРС\"","7717127211","771701001"]
[1997,"Фаленский муниципальный район","Поселок Фаленки","33643151","Филиал ОАО \"РЖД\" ГЖД Кировский региональный центр дирекции по тепловодоснабжению","7708503727","435731037"]
[1998,"Фаленский муниципальный район","Талицкое","33643456","Администрация Талицкого с/п","4335002857","433501001"]
[1999,"Фаленский муниципальный район","Талицкое","33643456","МРФ \"Волга\" ПАО \"Ростелеком\"","7707049388","526043001"]
[2000,"Фаленский муниципальный район","Талицкое","33643456","СПК (колхоз) \"Вогульский\"","4335003064","433501001"]
[2001,"Фаленский муниципальный район","Талицкое","33643456","СПК колхоз \"Нагорский\"","4335000338","433501001"]
[2002,"Фаленский муниципальный район","Талицкое","33643456","ФГУП \"Почта России\"","7724261610","997750001"]
[2003,"Фаленский муниципальный район","Талицкое","33643456","ФГУП \"РТРС\"","7717127211","771701001"]
[2004,"Фаленский муниципальный район","Фаленский муниципальный район","33643000","Горьковская дирекция по тепловодоснабжению структурное подразделение Центральной дирекции по тепловодоснабжению - филиала ОАО \"РЖД\"","7708503727","525745041"]
[2005,"Фаленский муниципальный район","Фаленский муниципальный район","33643000","ООО \"ТК Ресурс\"","4309006870","430901001"]
[2006,"Фаленский муниципальный район","Фаленский муниципальный район","33643000","ФГУП \"РТРС\"","7717127211","771701001"]
[2007,"Фаленский муниципальный район","Фаленский муниципальный район","33643000","Филиал ОАО \"РЖД\" ГЖД Кировский региональный центр дирекции по тепловодоснабжению","7708503727","435731037"]
[2008,"Шабалинский муниципальный район","Высокораменское","33647412","Администрация Высокораменского с/п","4337004289","433701001"]
[2009,"Шабалинский муниципальный район","Высокораменское","33647412","МРФ \"Волга\" ПАО \"Ростелеком\"","7707049388","526043001"]
[2010,"Шабалинский муниципальный район","Высокораменское","33647412","ООО «Система ЮГ»","4337004962","433701001"]
[2011,"Шабалинский муниципальный район","Высокораменское","33647412","СПК-колхоз \"Приволье\"","4337003870","433701001"]
[2012,"Шабалинский муниципальный район","Высокораменское","33647412","ФГУП \"Почта России\"","7724261610","997750001"]
[2013,"Шабалинский муниципальный район","Высокораменское","33647412","ФГУП \"РТРС\"","7717127211","771701001"]
[2014,"Шабалинский муниципальный район","Гостовское","33647416","Администрация Гостовского с/п","4337004271","433701001"]
[2015,"Шабалинский муниципальный район","Гостовское","33647416","МРФ \"Волга\" ПАО \"Ростелеком\"","7707049388","526043001"]
[2016,"Шабалинский муниципальный район","Гостовское","33647416","СПК-колхоз \"Приволье\"","4337003870","433701001"]
[2017,"Шабалинский муниципальный район","Гостовское","33647416","ФГУП \"Почта России\"","7724261610","997750001"]
[2018,"Шабалинский муниципальный район","Гостовское","33647416","ФГУП \"РТРС\"","7717127211","771701001"]
[2019,"Шабалинский муниципальный район","Новотроицкое","33647448","Администрация Новотроицкого сельского поселения Шабалинского района","4337004240","433701001"]
[2020,"Шабалинский муниципальный район","Новотроицкое","33647448","МРФ \"Волга\" ПАО \"Ростелеком\"","7707049388","526043001"]
[2021,"Шабалинский муниципальный район","Новотроицкое","33647448","ООО \"Агромышленная компания \"Архангельское\"","4337004803","433701001"]
[2022,"Шабалинский муниципальный район","Новотроицкое","33647448","ООО «Система ЮГ»","4337004962","433701001"]
[2023,"Шабалинский муниципальный район","Новотроицкое","33647448","СПК-колхоз \"Приволье\"","4337003870","433701001"]
[2024,"Шабалинский муниципальный район","Новотроицкое","33647448","ФГУП \"Почта России\"","7724261610","997750001"]
[2025,"Шабалинский муниципальный район","Новотроицкое","33647448","ФГУП \"РТРС\"","7717127211","771701001"]
[2026,"Шабалинский муниципальный район","Поселок Ленинское","33647151","ИП Плотникова С.Г.","433700679312","отсутствует"]
[2027,"Шабалинский муниципальный район","Поселок Ленинское","33647151","КОГАУСО \"Шабалинский комплексный центр социального обслуживания населения\"","4337001256","433701001"]
[2028,"Шабалинский муниципальный район","Поселок Ленинское","33647151","МРФ \"Волга\" ПАО \"Ростелеком\"","7707049388","526043001"]
[2029,"Шабалинский муниципальный район","Поселок Ленинское","33647151","ООО \"Шабалинское ЖКХ\"","4337004987","433701001"]
[2030,"Шабалинский муниципальный район","Поселок Ленинское","33647151","ООО «Система ЮГ»","4337004962","433701001"]
[2031,"Шабалинский муниципальный район","Поселок Ленинское","33647151","СПК-колхоз \"Приволье\"","4337003870","433701001"]
[2032,"Шабалинский муниципальный район","Поселок Ленинское","33647151","Северная Дирекция по тепловодоснабжению структурное подразделение Центральной дирекции по тепловодоснабжению - филиала ОАО \"РЖД\"","7708503727","760445028"]
[2033,"Шабалинский муниципальный район","Поселок Ленинское","33647151","ФГУП \"Почта России\"","7724261610","997750001"]
[2034,"Шабалинский муниципальный район","Поселок Ленинское","33647151","ФГУП \"РТРС\"","7717127211","771701001"]
[2035,"Шабалинский муниципальный район","Черновское","33647474","МРФ \"Волга\" ПАО \"Ростелеком\"","7707049388","526043001"]
[2036,"Шабалинский муниципальный район","Черновское","33647474","ООО «Система ЮГ»","4337004962","433701001"]
[2037,"Шабалинский муниципальный район","Черновское","33647474","СПК-колхоз \"Приволье\"","4337003870","433701001"]
[2038,"Шабалинский муниципальный район","Черновское","33647474","ФГУП \"Почта России\"","7724261610","997750001"]
[2039,"Шабалинский муниципальный район","Черновское","33647474","ФГУП \"РТРС\"","7717127211","771701001"]
[2040,"Шабалинский муниципальный район","Черновское","33647474","администрация Черновского сельского поселения Шабалинского района","4337004320","433701001"]
[2041,"Шабалинский муниципальный район","Шабалинский муниципальный район","33647000","КОГАУСО \"Шабалинский комплексный центр социального обслуживания населения\"","4337001256","433701001"]
[2042,"Шабалинский муниципальный район","Шабалинский муниципальный район","33647000","СПК-колхоз \"Приволье\"","4337003870","433701001"]
[2043,"Шабалинский муниципальный район","Шабалинский муниципальный район","33647000","Северная Дирекция по тепловодоснабжению структурное подразделение Центральной дирекции по тепловодоснабжению - филиала ОАО \"РЖД\"","7708503727","760445028"]
[2044,"Шабалинский муниципальный район","Шабалинский муниципальный район","33647000","ФГУП \"РТРС\"","7717127211","771701001"]
[2045,"Юрьянский муниципальный район","Великорецкое","33649416","КОГОБУ для детей-сирот и детей, оставшихся без попечения родителей \"Детский дом-школа с. Великорецкре Юрьянского района\"","4338003425","433801001"]
[2046,"Юрьянский муниципальный район","Великорецкое","33649416","МРФ \"Волга\" ПАО \"Ростелеком\"","7707049388","526043001"]
[2047,"Юрьянский муниципальный район","Великорецкое","33649416","ФГУП \"Почта России\"","7724261610","997750001"]
[2048,"Юрьянский муниципальный район","Великорецкое","33649416","ФГУП \"РТРС\"","7717127211","771701001"]
[2049,"Юрьянский муниципальный район","Верховинское","33649420","МРФ \"Волга\" ПАО \"Ростелеком\"","7707049388","526043001"]
[2050,"Юрьянский муниципальный район","Верховинское","33649420","ООО \"Юрьянские коммунальные системы\"","4338007356","433801001"]
[2051,"Юрьянский муниципальный район","Верховинское","33649420","ФГУП \"Почта России\"","7724261610","997750001"]
[2052,"Юрьянский муниципальный район","Верховинское","33649420","ФГУП \"РТРС\"","7717127211","771701001"]
[2053,"Юрьянский муниципальный район","Гирсовское","33649430","МРФ \"Волга\" ПАО \"Ростелеком\"","7707049388","526043001"]
[2054,"Юрьянский муниципальный район","Гирсовское","33649430","ООО \"Коммунальные системы\"","4345459160","434501001"]
[2055,"Юрьянский муниципальный район","Гирсовское","33649430","ООО \"Пиллар\"","4345297543","430301001"]
[2056,"Юрьянский муниципальный район","Гирсовское","33649430","ФГУП \"Почта России\"","7724261610","997750001"]
[2057,"Юрьянский муниципальный район","Гирсовское","33649430","ФГУП \"РТРС\"","7717127211","771701001"]
[2058,"Юрьянский муниципальный район","Загарское","33649432","МРФ \"Волга\" ПАО \"Ростелеком\"","7707049388","526043001"]
[2059,"Юрьянский муниципальный район","Загарское","33649432","МУП \"Юрьянская МТС\"","4338004820","433801001"]
[2060,"Юрьянский муниципальный район","Загарское","33649432","МУП ЖКХ \"Загарье Уют\"","4338009498","433801001"]
[2061,"Юрьянский муниципальный район","Загарское","33649432","ООО \"Зодиак\"","4338007412","433801001"]
[2062,"Юрьянский муниципальный район","Загарское","33649432","ФГУП \"Почта России\"","7724261610","997750001"]
[2063,"Юрьянский муниципальный район","Загарское","33649432","ФГУП \"РТРС\"","7717127211","771701001"]
[2064,"Юрьянский муниципальный район","Ивановское","33649436","МРФ \"Волга\" ПАО \"Ростелеком\"","7707049388","526043001"]
[2065,"Юрьянский муниципальный район","Ивановское","33649436","ООО \"Юрьянские коммунальные системы\"","4338007356","433801001"]
[2066,"Юрьянский муниципальный район","Ивановское","33649436","ФГУП \"Почта России\"","7724261610","997750001"]
[2067,"Юрьянский муниципальный район","Ивановское","33649436","ФГУП \"РТРС\"","7717127211","771701001"]
[2068,"Юрьянский муниципальный район","Медянское","33649448","Индивидуальный предприниматель Буйских Николай Геннадьевич","433800342908","отсутствует"]
[2069,"Юрьянский муниципальный район","Медянское","33649448","МРФ \"Волга\" ПАО \"Ростелеком\"","7707049388","526043001"]
[2070,"Юрьянский муниципальный район","Медянское","33649448","ФГУП \"Почта России\"","7724261610","997750001"]
[2071,"Юрьянский муниципальный район","Медянское","33649448","ФГУП \"РТРС\"","7717127211","771701001"]
[2072,"Юрьянский муниципальный район","Подгорцевское","33649455","МРФ \"Волга\" ПАО \"Ростелеком\"","7707049388","526043001"]
[2073,"Юрьянский муниципальный район","Подгорцевское","33649455","МУП ЖКХ \"Подгорцы\"","4338009508","433801001"]
[2074,"Юрьянский муниципальный район","Подгорцевское","33649455","ООО \"Коммунсервис\"","4345312706","434501001"]
[2075,"Юрьянский муниципальный район","Подгорцевское","33649455","ООО \"ЛЕСТОРГ\"","4345408140","434501001"]
[2076,"Юрьянский муниципальный район","Подгорцевское","33649455","ФГУП \"Почта России\"","7724261610","997750001"]
[2077,"Юрьянский муниципальный район","Подгорцевское","33649455","ФГУП \"РТРС\"","7717127211","771701001"]
[2078,"Юрьянский муниципальный район","Поселок Мурыгино","33649154","МРФ \"Волга\" ПАО \"Ростелеком\"","7707049388","526043001"]
[2079,"Юрьянский муниципальный район","Поселок Мурыгино","33649154","МУП «Мурыгинское жилищно-коммунальное хозяйство»","4338009346","433801001"]
[2080,"Юрьянский муниципальный район","Поселок Мурыгино","33649154","ООО \"Газпром теплоэнерго Киров\"","4345268905","434501001"]
[2081,"Юрьянский муниципальный район","Поселок Мурыгино","33649154","ООО \"Полигон\"","4338007998","433801001"]
[2082,"Юрьянский муниципальный район","Поселок Мурыгино","33649154","ООО \"Теплосервис\"","4338007324","433801001"]
[2083,"Юрьянский муниципальный район","Поселок Мурыгино","33649154","ООО «Бумажные традиции»","4338009378","433801001"]
[2084,"Юрьянский муниципальный район","Поселок Мурыгино","33649154","ФГУП \"Почта России\"","7724261610","997750001"]
[2085,"Юрьянский муниципальный район","Поселок Мурыгино","33649154","ФГУП \"РТРС\"","7717127211","771701001"]
[2086,"Юрьянский муниципальный район","Поселок Юрья","33649151","МРФ \"Волга\" ПАО \"Ростелеком\"","7707049388","526043001"]
[2087,"Юрьянский муниципальный район","Поселок Юрья","33649151","ООО \"Тепло-Сервис\"","4318003723","431801001"]
[2088,"Юрьянский муниципальный район","Поселок Юрья","33649151","ООО \"Теплосервис\"","4338007324","433801001"]
[2089,"Юрьянский муниципальный район","Поселок Юрья","33649151","ООО \"Юрьянские коммунальные системы\"","4338007356","433801001"]
[2090,"Юрьянский муниципальный район","Поселок Юрья","33649151","ФГКУ «11 отряд федеральной противопожарной службы по Кировской области»","4329006998","432901001"]
[2091,"Юрьянский муниципальный район","Поселок Юрья","33649151","ФГУП \"Почта России\"","7724261610","997750001"]
[2092,"Юрьянский муниципальный район","Поселок Юрья","33649151","ФГУП \"РТРС\"","7717127211","771701001"]
[2093,"Юрьянский муниципальный район","Юрьянский муниципальный район","33649000","Индивидуальный предприниматель Буйских Николай Геннадьевич","433800342908","отсутствует"]
[2094,"Юрьянский муниципальный район","Юрьянский муниципальный район","33649000","КОГОБУ для детей-сирот и детей, оставшихся без попечения родителей \"Детский дом-школа с. Великорецкре Юрьянского района\"","4338003425","433801001"]
[2095,"Юрьянский муниципальный район","Юрьянский муниципальный район","33649000","МУП ЖКХ \"Загарье Уют\"","4338009498","433801001"]
[2096,"Юрьянский муниципальный район","Юрьянский муниципальный район","33649000","МУП ЖКХ \"Подгорцы\"","4338009508","433801001"]
[2097,"Юрьянский муниципальный район","Юрьянский муниципальный район","33649000","ООО \"Газпром теплоэнерго Киров\"","4345268905","434501001"]
[2098,"Юрьянский муниципальный район","Юрьянский муниципальный район","33649000","ООО \"Коммунальные системы\"","4345459160","434501001"]
[2099,"Юрьянский муниципальный район","Юрьянский муниципальный район","33649000","ООО \"Коммунсервис\"","4345312706","434501001"]
[2100,"Юрьянский муниципальный район","Юрьянский муниципальный район","33649000","ООО \"ЛЕСТОРГ\"","4345408140","434501001"]
[2101,"Юрьянский муниципальный район","Юрьянский муниципальный район","33649000","ООО \"Тепло-Сервис\"","4318003723","431801001"]
[2102,"Юрьянский муниципальный район","Юрьянский муниципальный район","33649000","ООО \"Теплосервис\"","4338007324","433801001"]
[2103,"Юрьянский муниципальный район","Юрьянский муниципальный район","33649000","ООО «Бумажные традиции»","4338009378","433801001"]
[2104,"Юрьянский муниципальный район","Юрьянский муниципальный район","33649000","ФГУП \"РТРС\"","7717127211","771701001"]
[2105,"Яранский муниципальный район","Город Яранск","33650101","АО \"ГУ ЖКХ\"","5116000922","511601001"]
[2106,"Яранский муниципальный район","Город Яранск","33650101","АО \"ГУ ЖКХ\"","5116000922","183845001"]
[2107,"Яранский муниципальный район","Город Яранск","33650101","АО \"Газпром газораспределение Киров\"","4346006589","434501001"]
[2108,"Яранский муниципальный район","Город Яранск","33650101","КОГПОАУ «Яранский технологический техникум»","4339001815","433901001"]
[2109,"Яранский муниципальный район","Город Яранск","33650101","МРФ \"Волга\" ПАО \"Ростелеком\"","7707049388","526043001"]
[2110,"Яранский муниципальный район","Город Яранск","33650101","МУП \"Водоканал\"","4339008240","433901001"]
[2111,"Яранский муниципальный район","Город Яранск","33650101","МУП \"Вулкан\"","4339008232","433901001"]
[2112,"Яранский муниципальный район","Город Яранск","33650101","ОАО \"Коммунэнерго\"","4346011123","434501001"]
[2113,"Яранский муниципальный район","Город Яранск","33650101","ООО \"Корпорация \"Мегаполис\"","4339007729","433901001"]
[2114,"Яранский муниципальный район","Город Яранск","33650101","ООО \"ТГК-Олимп\"","4339010560","433901001"]
[2115,"Яранский муниципальный район","Город Яранск","33650101","ООО \"ФОРДЗОН\"","4339009532","433901001"]
[2116,"Яранский муниципальный район","Город Яранск","33650101","ООО «Возрождение»","4339010224","433901001"]
[2117,"Яранский муниципальный район","Город Яранск","33650101","УФПС Кировской области – филиал ФГУП «Почта России»","7724261610","434502001"]
[2118,"Яранский муниципальный район","Город Яранск","33650101","ФГУП \"Почта России\"","7724261610","997750001"]
[2119,"Яранский муниципальный район","Город Яранск","33650101","ФГУП \"РТРС\"","7717127211","771701001"]
[2120,"Яранский муниципальный район","Знаменское","33650412","КОГПОБУ \"Яранский аграрный техникум\"","4339001004","433901001"]
[2121,"Яранский муниципальный район","Знаменское","33650412","МРФ \"Волга\" ПАО \"Ростелеком\"","7707049388","526043001"]
[2122,"Яранский муниципальный район","Знаменское","33650412","МУП \"Водоканал\"","4339008240","433901001"]
[2123,"Яранский муниципальный район","Знаменское","33650412","МУП \"Вулкан\"","4339008232","433901001"]
[2124,"Яранский муниципальный район","Знаменское","33650412","ООО МП \"ВКХ\"","4339010457","433901001"]
[2125,"Яранский муниципальный район","Знаменское","33650412","ФГУП \"Почта России\"","7724261610","997750001"]
[2126,"Яранский муниципальный район","Знаменское","33650412","ФГУП \"РТРС\"","7717127211","771701001"]
[2127,"Яранский муниципальный район","Кугальское","33650424","МРФ \"Волга\" ПАО \"Ростелеком\"","7707049388","526043001"]
[2128,"Яранский муниципальный район","Кугальское","33650424","ООО МП \"ВКХ\"","4339010457","433901001"]
[2129,"Яранский муниципальный район","Кугальское","33650424","ФГУП \"Почта России\"","7724261610","997750001"]
[2130,"Яранский муниципальный район","Кугальское","33650424","ФГУП \"РТРС\"","7717127211","771701001"]
[2131,"Яранский муниципальный район","Кугушерское","33650426","МРФ \"Волга\" ПАО \"Ростелеком\"","7707049388","526043001"]
[2132,"Яранский муниципальный район","Кугушерское","33650426","ООО МП \"ВКХ\"","4339010457","433901001"]
[2133,"Яранский муниципальный район","Кугушерское","33650426","ФГУП \"Почта России\"","7724261610","997750001"]
[2134,"Яранский муниципальный район","Кугушерское","33650426","ФГУП \"РТРС\"","7717127211","771701001"]
[2135,"Яранский муниципальный район","Никольское","33650440","МРФ \"Волга\" ПАО \"Ростелеком\"","7707049388","526043001"]
[2136,"Яранский муниципальный район","Никольское","33650440","МУП \"Вулкан\"","4339008232","433901001"]
[2137,"Яранский муниципальный район","Никольское","33650440","ООО МП \"ВКХ\"","4339010457","433901001"]
[2138,"Яранский муниципальный район","Никольское","33650440","ФГУП \"Почта России\"","7724261610","997750001"]
[2139,"Яранский муниципальный район","Никольское","33650440","ФГУП \"РТРС\"","7717127211","771701001"]
[2140,"Яранский муниципальный район","Никулятское","33650448","МКОУ ОШ с.Никулята","4339004943","433901001"]
[2141,"Яранский муниципальный район","Никулятское","33650448","МРФ \"Волга\" ПАО \"Ростелеком\"","7707049388","526043001"]
[2142,"Яранский муниципальный район","Никулятское","33650448","ООО МП \"ВКХ\"","4339010457","433901001"]
[2143,"Яранский муниципальный район","Никулятское","33650448","ФГУП \"Почта России\"","7724261610","997750001"]
[2144,"Яранский муниципальный район","Никулятское","33650448","ФГУП \"РТРС\"","7717127211","771701001"]
[2145,"Яранский муниципальный район","Опытнопольское","33650452","МРФ \"Волга\" ПАО \"Ростелеком\"","7707049388","526043001"]
[2146,"Яранский муниципальный район","Опытнопольское","33650452","МУП \"Вулкан\"","4339008232","433901001"]
[2147,"Яранский муниципальный район","Опытнопольское","33650452","ООО МП \"ВКХ\"","4339010457","433901001"]
[2148,"Яранский муниципальный район","Опытнопольское","33650452","ФГУП \"Почта России\"","7724261610","997750001"]
[2149,"Яранский муниципальный район","Опытнопольское","33650452","ФГУП \"РТРС\"","7717127211","771701001"]
[2150,"Яранский муниципальный район","Салобелякское","33650468","МРФ \"Волга\" ПАО \"Ростелеком\"","7707049388","526043001"]
[2151,"Яранский муниципальный район","Салобелякское","33650468","ООО МП \"ВКХ\"","4339010457","433901001"]
[2152,"Яранский муниципальный район","Салобелякское","33650468","ФГУП \"Почта России\"","7724261610","997750001"]
[2153,"Яранский муниципальный район","Салобелякское","33650468","ФГУП \"РТРС\"","7717127211","771701001"]
[2154,"Яранский муниципальный район","Сердежское","33650472","МРФ \"Волга\" ПАО \"Ростелеком\"","7707049388","526043001"]
[2155,"Яранский муниципальный район","Сердежское","33650472","ООО МП \"ВКХ\"","4339010457","433901001"]
[2156,"Яранский муниципальный район","Сердежское","33650472","ФГУП \"Почта России\"","7724261610","997750001"]
[2157,"Яранский муниципальный район","Сердежское","33650472","ФГУП \"РТРС\"","7717127211","771701001"]
[2158,"Яранский муниципальный район","Шкаланское","33650480","МБУК \"Районный Дом народного творчества\" Яранского района","4339007133","433901001"]
[2159,"Яранский муниципальный район","Шкаланское","33650480","МРФ \"Волга\" ПАО \"Ростелеком\"","7707049388","526043001"]
[2160,"Яранский муниципальный район","Шкаланское","33650480","ООО МП \"ВКХ\"","4339010457","433901001"]
[2161,"Яранский муниципальный район","Шкаланское","33650480","ФГУП \"Почта России\"","7724261610","997750001"]
[2162,"Яранский муниципальный район","Шкаланское","33650480","ФГУП \"РТРС\"","7717127211","771701001"]
[2163,"Яранский муниципальный район","Яранский муниципальный район","33650000","АО \"ГУ ЖКХ\"","5116000922","511601001"]
[2164,"Яранский муниципальный район","Яранский муниципальный район","33650000","АО \"ГУ ЖКХ\"","5116000922","183845001"]
[2165,"Яранский муниципальный район","Яранский муниципальный район","33650000","АО \"Газпром газораспределение Киров\"","4346006589","434501001"]
[2166,"Яранский муниципальный район","Яранский муниципальный район","33650000","МБУК \"Районный Дом народного творчества\" Яранского района","4339007133","433901001"]
[2167,"Яранский муниципальный район","Яранский муниципальный район","33650000","МУП \"Вулкан\"","4339008232","433901001"]
[2168,"Яранский муниципальный район","Яранский муниципальный район","33650000","ОАО \"Коммунэнерго\"","4346011123","434501001"]
[2169,"Яранский муниципальный район","Яранский муниципальный район","33650000","ООО \"ФОРДЗОН\"","4339009532","433901001"]
[2170,"Яранский муниципальный район","Яранский муниципальный район","33650000","ООО «Возрождение»","4339010224","433901001"]
[2171,"Яранский муниципальный район","Яранский муниципальный район","33650000","ООО МП \"ВКХ\"","4339010457","433901001"]
[2172,"Яранский муниципальный район","Яранский муниципальный район","33650000","ФГУП \"РТРС\"","7717127211","771701001"]
[2173,"","","","Администрация Кикнурского сельского поселения","4311003763","431101001"]
[2174,"","","","МРФ \"Волга\" ПАО \"Ростелеком\"","7707049388","526043001"]
[2175,"","","","МУП \"Куменские тепловые системы\"","4314005173","431401001"]
[2176,"","","","МУП \"Теплосервис\"","4334006104","433401001"]
[2177,"","","","ООО \"Куменское ВКХ\"","4314004317","431401001"]
[2178,"","","","СПК \"Новый\"","4311003636","431101001"]
[2179,"","","","ФГУП \"Почта России\"","7724261610","997750001"]

{"sheet":"REESTR_FILTERED","index":11,"n_rows":2,"n_cols":8,"rows_kept":2,"hidden":true}
["№","МР","МО","МО ОКТМО","ОРГАНИЗАЦИЯ","ИНН","КПП","ВИД ДЕЯТЕЛЬНОСТИ"]
[1,"Вятские Поляны","Вятские Поляны","33704000","ООО Водоотведение","4307017925","430701001"]

{"sheet":"REESTR_MO","index":12,"n_rows":365,"n_cols":5,"rows_kept":365,"hidden":true}
["МР","МО","МО_ОКТМО","МР","ИМЯ ДИАПАЗОНА"]
["Арбажский муниципальный район","Арбажский муниципальный район","33602000","Арбажский муниципальный район","MO_LIST_2"]
["Арбажский муниципальный район","Арбажское","33602151","Афанасьевский муниципальный район","MO_LIST_3"]
["Арбажский муниципальный район","Верхотульское","33602416","Белохолуницкий муниципальный район","MO_LIST_4"]
["Арбажский муниципальный район","Корминское","33602424","Богородский муниципальный район","MO_LIST_5"]
["Арбажский муниципальный район","Сорвижское","33602440","Верхнекамский муниципальный район","MO_LIST_6"]
["Арбажский муниципальный район","Шембетское","33602452","Верхошижемский муниципальный район","MO_LIST_7"]
["Афанасьевский муниципальный район","Афанасьевский муниципальный район","33603000","Вятские Поляны","MO_LIST_8"]
["Афанасьевский муниципальный район","Бисеровское","33603412","Вятскополянский муниципальный район","MO_LIST_9"]
["Афанасьевский муниципальный район","Борское","33603416","Даровской муниципальный район","MO_LIST_10"]
["Афанасьевский муниципальный район","Гординское","33603428","ЗАТО Первомайский","MO_LIST_11"]
["Афанасьевский муниципальный район","Ичетовкинское","33603404","Зуевский муниципальный район","MO_LIST_12"]
["Афанасьевский муниципальный район","Лыткинское","33603448","Кикнурский муниципальный район","MO_LIST_13"]
["Афанасьевский муниципальный район","Пашинское","33603456","Кильмезский муниципальный район","MO_LIST_14"]
["Афанасьевский муниципальный район","Поселок Афанасьево","33603151","Киров","MO_LIST_15"]
["Белохолуницкий муниципальный район","Белохолуницкий муниципальный район","33605000","Кирово-Чепецк","MO_LIST_16"]
["Белохолуницкий муниципальный район","Быдановское","33605408","Кирово-Чепецкий муниципальный район","MO_LIST_17"]
["Белохолуницкий муниципальный район","Всехсвятское","33605420","Котельнич","MO_LIST_18"]
["Белохолуницкий муниципальный район","Город Белая Холуница","33605101","Котельничский муниципальный район","MO_LIST_19"]
["Белохолуницкий муниципальный район","Гуренское","33605422","Куменский муниципальный район","MO_LIST_20"]
["Белохолуницкий муниципальный район","Дубровское","33605423","Лебяжский муниципальный район","MO_LIST_21"]
["Белохолуницкий муниципальный район","Климковское","33605428","Лузский муниципальный район","MO_LIST_22"]
["Белохолуницкий муниципальный район","Подрезчихинское","33605436","Малмыжский муниципальный район","MO_LIST_23"]
["Белохолуницкий муниципальный район","Поломское","33605440","Мурашинский муниципальный район","MO_LIST_24"]
["Белохолуницкий муниципальный район","Прокопьевское","33605444","Нагорский муниципальный район","MO_LIST_25"]
["Белохолуницкий муниципальный район","Ракаловское","33605448","Немский муниципальный район","MO_LIST_26"]
["Белохолуницкий муниципальный район","Троицкое","33605456","Нолинский муниципальный район","MO_LIST_27"]
["Богородский муниципальный район","Богородский муниципальный район","33606000","Омутнинский муниципальный район","MO_LIST_28"]
["Богородский муниципальный район","Ошланское","33606412","Опаринский муниципальный район","MO_LIST_29"]
["Богородский муниципальный район","Поселок Богородское","33606151","Оричевский муниципальный район","MO_LIST_30"]
["Верхнекамский муниципальный район","Верхнекамский муниципальный район","33607000","Орловский муниципальный район","MO_LIST_31"]
["Верхнекамский муниципальный район","Город Кирс","33607101","Пижанский муниципальный район","MO_LIST_32"]
["Верхнекамский муниципальный район","Кайское","33607420","Подосиновский муниципальный район","MO_LIST_33"]
["Верхнекамский муниципальный район","Камское","33607424","Санчурский муниципальный район","MO_LIST_34"]
["Верхнекамский муниципальный район","Лойнское","33607428","Свечинский муниципальный район","MO_LIST_35"]
["Верхнекамский муниципальный район","Поселок Лесной","33607154","Слободской","MO_LIST_36"]
["Верхнекамский муниципальный район","Поселок Рудничный","33607160","Слободской муниципальный район","MO_LIST_37"]
["Верхнекамский муниципальный район","Поселок Светлополянск","33607162","Советский муниципальный район","MO_LIST_38"]
["Верхнекамский муниципальный район","Созимское","33607434","Сунский муниципальный район","MO_LIST_39"]
["Верхнекамский муниципальный район","Чусовского","33607436","Тужинский муниципальный район","MO_LIST_40"]
["Верхошижемский муниципальный район","Верхошижемский муниципальный район","33608000","Унинский муниципальный район","MO_LIST_41"]
["Верхошижемский муниципальный район","Зоновское","33608416","Уржумский муниципальный район","MO_LIST_42"]
["Верхошижемский муниципальный район","Калачиговское","33608418","Фаленский муниципальный район","MO_LIST_43"]
["Верхошижемский муниципальный район","Косинское","33608420","Шабалинский муниципальный район","MO_LIST_44"]
["Верхошижемский муниципальный район","Мякишинское","33608424","Юрьянский муниципальный район","MO_LIST_45"]
["Верхошижемский муниципальный район","Поселок Верхошижемье","33608151","Яранский муниципальный район","MO_LIST_46"]
["Верхошижемский муниципальный район","Пунгинское","33608428"]
["Верхошижемский муниципальный район","Среднеивкинское","33608432"]
["Верхошижемский муниципальный район","Сырдинское","33608436"]
["Верхошижемский муниципальный район","Угорское","33608440"]
["Вятские Поляны","Вятские Поляны","33704000"]
["Вятскополянский муниципальный район","Вятскополянский муниципальный район","33610000"]
["Вятскополянский муниципальный район","Город Сосновка","33610104"]
["Вятскополянский муниципальный район","Гремячевское","33610404"]
["Вятскополянский муниципальный район","Ершовское","33610406"]
["Вятскополянский муниципальный район","Кулыжское","33610408"]
["Вятскополянский муниципальный район","Новобурецкое","33610410"]
["Вятскополянский муниципальный район","Омгинское","33610412"]
["Вятскополянский муниципальный район","Поселок Красная Поляна","33610154"]
["Вятскополянский муниципальный район","Слудское","33610416"]
["Вятскополянский муниципальный район","Среднетойменское","33610420"]
["Вятскополянский муниципальный район","Среднешунское","33610424"]
["Вятскополянский муниципальный район","Старопинигерское","33610426"]
["Вятскополянский муниципальный район","Усть-Люгинское","33610428"]
["Вятскополянский муниципальный район","Чекашевское","33610432"]
["Даровской муниципальный район","Верховонданское","33612412"]
["Даровской муниципальный район","Вонданское","33612416"]
["Даровской муниципальный район","Даровской муниципальный район","33612000"]
["Даровской муниципальный район","Кобрское","33612432"]
["Даровской муниципальный район","Лузянское","33612440"]
["Даровской муниципальный район","Пиксурское","33612408"]
["Даровской муниципальный район","Поселок Даровской","33612151"]
["ЗАТО Первомайский","ЗАТО Первомайский","33787000"]
["Зуевский муниципальный район","Город Зуевка","33614101"]
["Зуевский муниципальный район","Зуевский муниципальный район","33614000"]
["Зуевский муниципальный район","Зуевское","33614408"]
["Зуевский муниципальный район","Кордяжское","33614412"]
["Зуевский муниципальный район","Косинское","33614458"]
["Зуевский муниципальный район","Мухинское","33614424"]
["Зуевский муниципальный район","Октябрьское","33614428"]
["Зуевский муниципальный район","Сезеневское","33614436"]
["Зуевский муниципальный район","Семушинское","33614442"]
["Зуевский муниципальный район","Соколовское","33614443"]
["Зуевский муниципальный район","Сунское","33614448"]
["Зуевский муниципальный район","Чепецкое","33614453"]
["Кикнурский муниципальный район","Кикнурский муниципальный район","33616000"]
["Кикнурский муниципальный район","Кикнурское","33616438"]
["Кикнурский муниципальный район","Поселок Кикнур","33616151"]
["Кильмезский муниципальный район","Большепорекское","33617440"]
["Кильмезский муниципальный район","Бурашевское","33617404"]
["Кильмезский муниципальный район","Вихаревское","33617408"]
["Кильмезский муниципальный район","Дамаскинское","33617412"]
["Кильмезский муниципальный район","Зимнякское","33617418"]
["Кильмезский муниципальный район","Кильмезский муниципальный район","33617000"]
["Кильмезский муниципальный район","Малокильмезское","33617424"]
["Кильмезский муниципальный район","Моторское","33617428"]
["Кильмезский муниципальный район","Паскинское","33617436"]
["Кильмезский муниципальный район","Поселок Кильмезь","33617151"]
["Кильмезский муниципальный район","Рыбно-Ватажское","33617444"]
["Кильмезский муниципальный район","Селинское","33617448"]
["Кильмезский муниципальный район","Чернушское","33617456"]
["Киров","Киров","33701000"]
["Кирово-Чепецк","Кирово-Чепецк","33707000"]
["Кирово-Чепецкий муниципальный район","Бурмакинское","33618408"]
["Кирово-Чепецкий муниципальный район","Кирово-Чепецкий муниципальный район","33618000"]
["Кирово-Чепецкий муниципальный район","Коныпское","33618418"]
["Кирово-Чепецкий муниципальный район","Кстининское","33618420"]
["Кирово-Чепецкий муниципальный район","Мокрецовское","33618424"]
["Кирово-Чепецкий муниципальный район","Пасеговское","33618428"]
["Кирово-Чепецкий муниципальный район","Поломское","33618432"]
["Кирово-Чепецкий муниципальный район","Просницкое","33618412"]
["Кирово-Чепецкий муниципальный район","Селезеневское","33618434"]
["Кирово-Чепецкий муниципальный район","Фатеевское","33618436"]
["Кирово-Чепецкий муниципальный район","Федяковское","33618442"]
["Кирово-Чепецкий муниципальный район","Филипповское","33618444"]
["Кирово-Чепецкий муниципальный район","Чепецкое","33618448"]
["Кирово-Чепецкий муниципальный район","Чувашевское","33618452"]
["Котельнич","Котельнич","33710000"]
["Котельничский муниципальный район","Александровское","33619464"]
["Котельничский муниципальный район","Биртяевское","33619404"]
["Котельничский муниципальный район","Вишкильское","33619432"]
["Котельничский муниципальный район","Ежихинское","33619416"]
["Котельничский муниципальный район","Зайцевское","33619428"]
["Котельничский муниципальный район","Карпушинское","33619440"]
["Котельничский муниципальный район","Комсомольское","33619452"]
["Котельничский муниципальный район","Котельничский муниципальный район","33619000"]
["Котельничский муниципальный район","Котельничское","33619456"]
["Котельничский муниципальный район","Красногорское","33619488"]
["Котельничский муниципальный район","Макарьевское","33619460"]
["Котельничский муниципальный район","Молотниковское","33619436"]
["Котельничский муниципальный район","Морозовское","33619468"]
["Котельничский муниципальный район","Покровское","33619480"]
["Котельничский муниципальный район","Родичевское","33619424"]
["Котельничский муниципальный район","Светловское","33619481"]
["Котельничский муниципальный район","Спасское","33619484"]
["Котельничский муниципальный район","Сретенское","33619486"]
["Котельничский муниципальный район","Чистопольское","33619490"]
["Котельничский муниципальный район","Юбилейное","33619448"]
["Котельничский муниципальный район","Юрьевское","33619494"]
["Куменский муниципальный район","Березниковское","33620408"]
["Куменский муниципальный район","Большеперелазское","33620440"]
["Куменский муниципальный район","Верхобыстрицкое","33620416"]
["Куменский муниципальный район","Вичевское","33620420"]
["Куменский муниципальный район","Вожгальское","33620421"]
["Куменский муниципальный район","Кумёнское","33620428"]
["Куменский муниципальный район","Куменский муниципальный район","33620000"]
["Куменский муниципальный район","Поселок Кумены","33620151"]
["Куменский муниципальный район","Поселок Нижнеивкино","33620154"]
["Куменский муниципальный район","Речное","33620444"]
["Лебяжский муниципальный район","Ветошкинское","33621412"]
["Лебяжский муниципальный район","Лажское","33621444"]
["Лебяжский муниципальный район","Лебяжский муниципальный район","33621000"]
["Лебяжский муниципальный район","Михеевское","33621404"]
["Лебяжский муниципальный район","Поселок Лебяжье","33621151"]
["Лузский муниципальный район","Город Луза","33622101"]
["Лузский муниципальный район","Лузский муниципальный район","33622000"]
["Лузский муниципальный район","Папуловское","33622428"]
["Лузский муниципальный район","Поселок Лальск","33622154"]
["Малмыжский муниципальный район","Аджимское","33623404"]
["Малмыжский муниципальный район","Арыкское","33623408"]
["Малмыжский муниципальный район","Большекитякское","33623412"]
["Малмыжский муниципальный район","Город Малмыж","33623101"]
["Малмыжский муниципальный район","Каксинвайское","33623424"]
["Малмыжский муниципальный район","Калининское","33623428"]
["Малмыжский муниципальный район","Константиновское","33623432"]
["Малмыжский муниципальный район","Малмыжский муниципальный район","33623000"]
["Малмыжский муниципальный район","Мари-Малмыжское","33623436"]
["Малмыжский муниципальный район","Мелетское","33623440"]
["Малмыжский муниципальный район","Новосмаильское","33623444"]
["Малмыжский муниципальный район","Плотбищенское","33623448"]
["Малмыжский муниципальный район","Преображенское","33623452"]
["Малмыжский муниципальный район","Ральниковское","33623456"]
["Малмыжский муниципальный район","Рожкинское","33623460"]
["Малмыжский муниципальный район","Савальское","33623464"]
["Малмыжский муниципальный район","Староирюкское","33623470"]
["Малмыжский муниципальный район","Старотушкинское","33623472"]
["Малмыжский муниципальный район","Тат-Верх-Гоньбинское","33623476"]
["Мурашинский муниципальный район","Город Мураши","33624101"]
["Мурашинский муниципальный район","Мурашинский муниципальный район","33624000"]
["Мурашинский муниципальный район","Мурашинское","33624435"]
["Нагорский муниципальный район","Кобринское","33625416"]
["Нагорский муниципальный район","Метелевское","33625424"]
["Нагорский муниципальный район","Мулинское","33625428"]
["Нагорский муниципальный район","Нагорский муниципальный район","33625000"]
["Нагорский муниципальный район","Поселок Нагорск","33625151"]
["Нагорский муниципальный район","Синегорское","33625444"]
["Нагорский муниципальный район","Чеглаковское","33625432"]
["Немский муниципальный район","Архангельское","33626404"]
["Немский муниципальный район","Ильинское","33626412"]
["Немский муниципальный район","Немский муниципальный район","33626000"]
["Немский муниципальный район","Немское городское поселение","33626151"]
["Немский муниципальный район","Немское сельское поселение","33626424"]
["Нолинский муниципальный район","Город Нолинск","33627101"]
["Нолинский муниципальный район","Красноярское","33627418"]
["Нолинский муниципальный район","Кырчанское","33627420"]
["Нолинский муниципальный район","Лудянское","33627428"]
["Нолинский муниципальный район","Медведское","33627430"]
["Нолинский муниципальный район","Нолинский муниципальный район","33627000"]
["Нолинский муниципальный район","Перевозское","33627436"]
["Нолинский муниципальный район","Поселок Аркуль","33627152"]
["Нолинский муниципальный район","Рябиновское","33627432"]
["Нолинский муниципальный район","Татауровское","33627452"]
["Нолинский муниципальный район","Шварихинское","33627456"]
["Омутнинский муниципальный район","Белореченское","33628410"]
["Омутнинский муниципальный район","Вятское","33628412"]
["Омутнинский муниципальный район","Город Омутнинск","33628101"]
["Омутнинский муниципальный район","Залазнинское","33628420"]
["Омутнинский муниципальный район","Леснополянское","33628424"]
["Омутнинский муниципальный район","Омутнинский муниципальный район","33628000"]
["Омутнинский муниципальный район","Поселок Восточный","33628155"]
["Омутнинский муниципальный район","Поселок Песковка","33628162"]
["Омутнинский муниципальный район","Чернохолуницкое","33628430"]
["Омутнинский муниципальный район","Шахровское","33628432"]
["Опаринский муниципальный район","Альмежское","33629404"]
["Опаринский муниципальный район","Вазюкское","33629408"]
["Опаринский муниципальный район","Заринское","33629414"]
["Опаринский муниципальный район","Маромицкое","33629424"]
["Опаринский муниципальный район","Опаринский муниципальный район","33629000"]
["Опаринский муниципальный район","Поселок Опарино","33629151"]
["Опаринский муниципальный район","Речное","33629434"]
["Опаринский муниципальный район","Стрельское","33629435"]
["Оричевский муниципальный район","Адышевское","33630404"]
["Оричевский муниципальный район","Быстрицкое","33630406"]
["Оричевский муниципальный район","Гарское","33630412"]
["Оричевский муниципальный район","Истобенское","33630416"]
["Оричевский муниципальный район","Коршикское","33630420"]
["Оричевский муниципальный район","Кучелаповское","33630424"]
["Оричевский муниципальный район","Лёвинское","33630153"]
["Оричевский муниципальный район","Лугоболотное","33630426"]
["Оричевский муниципальный район","Мирнинское","33630154"]
["Оричевский муниципальный район","Оричевский муниципальный район","33630000"]
["Оричевский муниципальный район","Оричевское","33630151"]
["Оричевский муниципальный район","Пищальское","33630436"]
["Оричевский муниципальный район","Пустощенское","33630440"]
["Оричевский муниципальный район","Спас-Талицкое","33630444"]
["Оричевский муниципальный район","Стрижевское","33630157"]
["Оричевский муниципальный район","Суводское","33630448"]
["Оричевский муниципальный район","Торфяное","33630450"]
["Оричевский муниципальный район","Усовское","33630452"]
["Оричевский муниципальный район","Шалеговское","33630456"]
["Орловский муниципальный район","Орловский муниципальный район","33645000"]
["Орловский муниципальный район","Орловское городское поселение","33645101"]
["Орловский муниципальный район","Орловское сельское поселение","33645420"]
["Пижанский муниципальный район","Ахмановское","33631404"]
["Пижанский муниципальный район","Безводнинское","33631408"]
["Пижанский муниципальный район","Войское","33631412"]
["Пижанский муниципальный район","Ижевское","33631416"]
["Пижанский муниципальный район","Обуховское","33631436"]
["Пижанский муниципальный район","Пижанский муниципальный район","33631000"]
["Пижанский муниципальный район","Пижанское","33631151"]
["Подосиновский муниципальный район","Демьяновское городское поселение","33632154"]
["Подосиновский муниципальный район","Пинюгское городское поселение","33632157"]
["Подосиновский муниципальный район","Подосиновский муниципальный район","33632000"]
["Подосиновский муниципальный район","Подосиновское городское поселение","33632151"]
["Подосиновский муниципальный район","Пушемское","33632424"]
["Подосиновский муниципальный район","Утмановское","33632428"]
["Подосиновский муниципальный район","Яхреньгское","33632440"]
["Санчурский муниципальный район","Городищенское","33633418"]
["Санчурский муниципальный район","Корляковское","33633432"]
["Санчурский муниципальный район","Люмпанурское","33633444"]
["Санчурский муниципальный район","Матвинурское","33633448"]
["Санчурский муниципальный район","Поселок Санчурск","33633151"]
["Санчурский муниципальный район","Санчурский муниципальный район","33633000"]
["Санчурский муниципальный район","Сметанинское","33633452"]
["Санчурский муниципальный район","Шишовское","33633456"]
["Свечинский муниципальный район","Поселок Свеча","33634151"]
["Свечинский муниципальный район","Свечинский муниципальный район","33634000"]
["Свечинский муниципальный район","Свечинское","33634448"]
["Слободской","Слободской","33713000"]
["Слободской муниципальный район","Бобинское","33635402"]
["Слободской муниципальный район","Денисовское","33635404"]
["Слободской муниципальный район","Закаринское","33635412"]
["Слободской муниципальный район","Ильинское","33635416"]
["Слободской муниципальный район","Каринское","33635424"]
["Слободской муниципальный район","Ленинское","33635432"]
["Слободской муниципальный район","Озерницкий","33635436"]
["Слободской муниципальный район","Октябрьское","33635440"]
["Слободской муниципальный район","Поселок Вахруши","33635153"]
["Слободской муниципальный район","Светозаревское","33635446"]
["Слободской муниципальный район","Слободской муниципальный район","33635000"]
["Слободской муниципальный район","Стуловское","33635456"]
["Слободской муниципальный район","Шестаковское","33635460"]
["Слободской муниципальный район","Шиховское","33635452"]
["Советский муниципальный район","Город Советск","33636101"]
["Советский муниципальный район","Греховское","33636460"]
["Советский муниципальный район","Зашижемское","33636420"]
["Советский муниципальный район","Ильинское","33636424"]
["Советский муниципальный район","Кичминское","33636428"]
["Советский муниципальный район","Колянурское","33636436"]
["Советский муниципальный район","Лесниковское","33636440"]
["Советский муниципальный район","Лошкаринский","33636444"]
["Советский муниципальный район","Мокинское","33636448"]
["Советский муниципальный район","Родыгинское","33636464"]
["Советский муниципальный район","Советский муниципальный район","33636000"]
["Сунский муниципальный район","Большевитское","33637428"]
["Сунский муниципальный район","Кокуйское","33637406"]
["Сунский муниципальный район","Курчумское","33637412"]
["Сунский муниципальный район","Поселок Суна","33637151"]
["Сунский муниципальный район","Сунский муниципальный район","33637000"]
["Тужинский муниципальный район","Грековское","33638416"]
["Тужинский муниципальный район","Михайловское","33638428"]
["Тужинский муниципальный район","Ныровское","33638436"]
["Тужинский муниципальный район","Пачинское","33638440"]
["Тужинский муниципальный район","Поселок Тужа","33638151"]
["Тужинский муниципальный район","Тужинский муниципальный район","33638000"]
["Унинский муниципальный район","Астраханское","33640402"]
["Унинский муниципальный район","Елганское","33640412"]
["Унинский муниципальный район","Канахинское","33640414"]
["Унинский муниципальный район","Комаровское","33640420"]
["Унинский муниципальный район","Малополомское","33640424"]
["Унинский муниципальный район","Порезское","33640428"]
["Унинский муниципальный район","Поселок Уни","33640151"]
["Унинский муниципальный район","Сардыкское","33640436"]
["Унинский муниципальный район","Сосновское","33640440"]
["Унинский муниципальный район","Унинский муниципальный район","33640000"]
["Уржумский муниципальный район","Байсинское","33641408"]
["Уржумский муниципальный район","Большеройское","33641416"]
["Уржумский муниципальный район","Буйское","33641420"]
["Уржумский муниципальный район","Город Уржум","33641101"]
["Уржумский муниципальный район","Донауровское","33641480"]
["Уржумский муниципальный район","Лазаревское","33641432"]
["Уржумский муниципальный район","Лопьяльское","33641440"]
["Уржумский муниципальный район","Петровское","33641452"]
["Уржумский муниципальный район","Пиляндышевское","33641456"]
["Уржумский муниципальный район","Рублевское","33641464"]
["Уржумский муниципальный район","Русско-Турекское","33641472"]
["Уржумский муниципальный район","Савиновское","33641476"]
["Уржумский муниципальный район","Уржумский муниципальный район","33641000"]
["Уржумский муниципальный район","Уржумское","33641496"]
["Уржумский муниципальный район","Шурминское","33641492"]
["Фаленский муниципальный район","Верхосунское","33643416"]
["Фаленский муниципальный район","Левановское","33643424"]
["Фаленский муниципальный район","Медвеженское","33643428"]
["Фаленский муниципальный район","Петруненское","33643444"]
["Фаленский муниципальный район","Поломское","33643448"]
["Фаленский муниципальный район","Поселок Фаленки","33643151"]
["Фаленский муниципальный район","Талицкое","33643456"]
["Фаленский муниципальный район","Фаленский муниципальный район","33643000"]
["Шабалинский муниципальный район","Высокораменское","33647412"]
["Шабалинский муниципальный район","Гостовское","33647416"]
["Шабалинский муниципальный район","Новотроицкое","33647448"]
["Шабалинский муниципальный район","Поселок Ленинское","33647151"]
["Шабалинский муниципальный район","Черновское","33647474"]
["Шабалинский муниципальный район","Шабалинский муниципальный район","33647000"]
["Юрьянский муниципальный район","Великорецкое","33649416"]
["Юрьянский муниципальный район","Верховинское","33649420"]
["Юрьянский муниципальный район","Гирсовское","33649430"]
["Юрьянский муниципальный район","Загарское","33649432"]
["Юрьянский муниципальный район","Ивановское","33649436"]
["Юрьянский муниципальный район","Медянское","33649448"]
["Юрьянский муниципальный район","Подгорцевское","33649455"]
["Юрьянский муниципальный район","Поселок Мурыгино","33649154"]
["Юрьянский муниципальный район","Поселок Юрья","33649151"]
["Юрьянский муниципальный район","Юрьянский муниципальный район","33649000"]
["Яранский муниципальный район","Город Яранск","33650101"]
["Яранский муниципальный район","Знаменское","33650412"]
["Яранский муниципальный район","Кугальское","33650424"]
["Яранский муниципальный район","Кугушерское","33650426"]
["Яранский муниципальный район","Никольское","33650440"]
["Яранский муниципальный район","Никулятское","33650448"]
["Яранский муниципальный район","Опытнопольское","33650452"]
["Яранский муниципальный район","Салобелякское","33650468"]
["Яранский муниципальный район","Сердежское","33650472"]
["Яранский муниципальный район","Шкаланское","33650480"]
["Яранский муниципальный район","Яранский муниципальный район","33650000"]

{"sheet":"modUpdTemplMain","index":13,"n_rows":0,"n_cols":0,"rows_kept":0,"hidden":true}

{"sheet":"modfrmCheckUpdates","index":14,"n_rows":0,"n_cols":0,"rows_kept":0,"hidden":true}

{"sheet":"modInfo","index":15,"n_rows":4,"n_cols":2,"rows_kept":4,"hidden":true}
[]
[null,"Нажмите кнопку \"Выбрать организацию из списка\" для автоматического ввода реквизитов организации"]
[null,"Нет доступных обновлений, версия отчёта актуальна"]
[null,"Нажмите кнопку \"Обновить реестр МО\" если реестр не загружен или не актуален "]

{"sheet":"modHyperlink","index":16,"n_rows":0,"n_cols":0,"rows_kept":0,"hidden":true}

{"sheet":"modChange","index":17,"n_rows":0,"n_cols":0,"rows_kept":0,"hidden":true}

{"sheet":"modPROV","index":18,"n_rows":0,"n_cols":0,"rows_kept":0,"hidden":true}

{"sheet":"modTitleSheetHeaders","index":19,"n_rows":0,"n_cols":0,"rows_kept":0,"hidden":true}

{"sheet":"modServiceModule","index":20,"n_rows":0,"n_cols":0,"rows_kept":0,"hidden":true}

{"sheet":"modCommandButton","index":21,"n_rows":0,"n_cols":0,"rows_kept":0,"hidden":true}

{"sheet":"modReestr","index":22,"n_rows":0,"n_cols":0,"rows_kept":0,"hidden":true}

{"sheet":"modClassifierValidate","index":23,"n_rows":0,"n_cols":0,"rows_kept":0,"hidden":true}

{"sheet":"modfrmReestr","index":24,"n_rows":0,"n_cols":0,"rows_kept":0,"hidden":true}

{"sheet":"modfrmDateChoose","index":25,"n_rows":0,"n_cols":0,"rows_kept":0,"hidden":true}

{"sheet":"modDblClick","index":26,"n_rows":0,"n_cols":0,"rows_kept":0,"hidden":true}

{"sheet":"Паспорт","index":27,"n_rows":71,"n_cols":57,"rows_kept":71,"hidden":true,"merged":[[3,3,3,10],[5,3,5,10],[6,5,6,10],[7,5,7,10],[8,5,8,10],[9,5,9,10],[10,5,10,10],[11,5,11,10],[12,5,12,10],[13,5,13,10],[14,6,14,9],[15,5,15,10],[17,3,17,10],[18,5,18,10],[19,5,19,10],[20,5,20,10],[21,5,21,10],[22,5,22,10],[23,5,23,10],[25,3,25,10],[26,5,26,10],[27,3,27,10],[29,3,29,10],[30,5,30,10],[31,7,31,10],[32,7,32,10],[33,3,33,10],[35,3,35,10],[36,8,36,10],[37,8,37,10],[38,8,38,10],[39,8,39,10],[40,8,40,10],[41,8,41,10],[42,8,42,10],[43,8,43,10],[44,8,44,10],[45,8,45,10],[46,8,46,10],[47,8,47,10],[48,8,48,10],[49,8,49,10],[50,8,50,10],[51,8,51,10],[52,8,52,10],[53,8,53,10],[54,3,54,10],[56,3,56,10],[57,5,57,10],[58,5,58,10],[59,5,59,10],[61,3,61,10],[62,5,62,10],[63,5,63,10],[64,3,64,10],[66,3,66,10],[67,5,67,10],[68,5,68,10],[69,5,69,10],[70,5,70,10]]}
[{"$nulls":47},"Код диапазона:","Название диапазона:","Сфера регулирования:","Подсфера:","Тип информации в шаблоне:","Состояние шаблона:","Периодичность:","\"Геотип\" шаблона:","Тип шаблона:","Заказчик:"]
[{"$nulls":47},"ps_sr","Сфера регулирования:","Не определено","Не определено","Не определено","Не определено","Не определено","Не определено","Не определено","Не определено"]
[{"$nulls":47},"ps_ti","Тип информации в шаблоне:","NETS","водоотведение - очистка","Статистический","Проект","Единовременный","Региональный шаблон","Атомарный","РЭК"]
[{"$nulls":3},"Паспорт к шаблону",{"$nulls":43},"ps_ssh","Состояние шаблона:","Аэропорты","водоотведение - передача","Расчетный","Утвержден","Ежемесячный","Муниципальный шаблон","Сводный","ФСТ"]
[{"$nulls":47},"ps_p","Периодичность:","Газ","водоотведение - прием","Обосновывающие материалы",null,"Ежеквартальный","Шаблон от организации",null,"Экспертная организация"]
[{"$nulls":3},"1. Общие сведения",{"$nulls":43},"ps_geo","\"Геотип\" шаблона:","Железные дороги","водоснабжение - очистка",null,null,"Ежегодный"]
[{"$nulls":3},"1.1","Код",{"$nulls":42},"ps_tsh","Тип шаблона:","ЖКХ","водоснабжение - передача"]
[{"$nulls":3},"1.2","Краткое наименование",{"$nulls":42},"ps_psr","Подсфера:","Медицина","водоснабжение - подъем"]
[{"$nulls":3},"1.3","Полное наименование",{"$nulls":42},"ps_z","Заказчик:","Порты","выработка ТС"]
[{"$nulls":3},"1.4","Сфера регулирования ",{"$nulls":44},"Связь","выработка ТС в режиме комбинированной выработки"]
[{"$nulls":3},"1.5","Подсфера",{"$nulls":44},"Транспорт","выработка электрической энергии"]
[{"$nulls":3},"1.6","Состояние шаблона (Утвержден/Проект)",{"$nulls":44},"Электроэнергетика","выработка+передача+сбыт ТС"]
[{"$nulls":3},"1.7","Заказчик",{"$nulls":45},"передача ТС"]
[{"$nulls":3},"1.8","Отчитывается",{"$nulls":45},"передача ЭЭ"]
[{"$nulls":3},"1.9","Тип шаблона",null,"Если шаблон сводный, необходимо указать код атомарного шаблона для него:",{"$nulls":43},"сбыт ТС"]
[{"$nulls":3},"1.10","Текущая версия",{"$nulls":45},"сбыт ЭЭ"]
[{"$nulls":50},"ТБО"]
[{"$nulls":3},"2. Организационные"]
[{"$nulls":3},"2.1","Тип информации в шаблоне "]
[{"$nulls":3},"2.2","Ответственный регулятор (от заказчика)"]
[{"$nulls":3},"2.3","Ответственный специалист (от СМА)"]
[{"$nulls":3},"2.4","Ответственный программист (от СМА)"]
[{"$nulls":3},"2.5","Ответственные за сбор данных (от СМА)"]
[{"$nulls":3},"2.6","Ответственные за сбор данных (от заказчика)"]
[]
[{"$nulls":3},"3. Законодательство (методики, приказы, постановления ...)"]
[null,null,"first","3.1","Документ1"]
[null,null,"end","Добавить документ"]
[]
[{"$nulls":3},"4. Периодичность"]
[{"$nulls":3},"4.1","Периодичность"]
[{"$nulls":4},"Мониторинги(прошедшие и плановые)","Дата начала","Дата окончания","Согласно (приказ, постановление, письмо)"]
[null,null,"first","4.2.1","Мониторинг1"]
[null,null,"end","Добавить мониторинг"]
[]
[{"$nulls":3},"5. Состав шаблона"]
[{"$nulls":4},"Лист","Последняя дата изменений эскиза","Состояние листа","Наименование витрины для листа","Комментарии"]
[null,null,"first","5.1.1"]
[null,null,"Удалить","5.1.2"]
[null,null,"Удалить","5.1.3"]
[null,null,"Удалить","5.1.4"]
[null,null,"Удалить","5.1.5"]
[null,null,"Удалить","5.1.6"]
[null,null,"Удалить","5.1.7"]
[null,null,"Удалить","5.1.8"]
[null,null,"Удалить","5.1.9"]
[null,null,"Удалить","5.1.10"]
[null,null,"Удалить","5.1.11"]
[null,null,"Удалить","5.1.12"]
[null,null,"Удалить","5.1.13"]
[null,null,"Удалить","5.1.14"]
[null,null,"Удалить","5.1.15"]
[null,null,"Удалить","5.1.16"]
[null,null,"Удалить","5.1.17"]
[null,null,"end","Добавить лист"]
[]
[{"$nulls":3},"6. Сроки и даты"]
[{"$nulls":3},"6.1.1","Даты получения последних эскизов, от экспертов"]
[{"$nulls":3},"6.1.2","Даты отправки шаблона на проверку"]
[{"$nulls":3},"6.1.3","Предполагаемый срок сдачи шаблона в эксплуатацию"]
[]
[{"$nulls":3},"7. Версии"]
[{"$nulls":4},"Версия","Отличия от предыдущей"]
[null,null,"first","7.1"]
[null,null,"end","Добавить версию"]
[]
[{"$nulls":3},"8. Дополнительно"]
[{"$nulls":3},"8.1","Аналогичные(\"похожие\") шаблоны"]
[{"$nulls":3},"8.2","Особенности шаблона"]
[{"$nulls":3},"8.3","Модуль на основе данного шаблона"]
[{"$nulls":3},"8.4","Процедуры загрузки данных в витрины"]

{"sheet":"modRegionSelectSub","index":28,"n_rows":0,"n_cols":0,"rows_kept":0,"hidden":true}

{"sheet":"modThisWorkbook","index":29,"n_rows":0,"n_cols":0,"rows_kept":0,"hidden":true}

{"sheet":"modReestrMO","index":30,"n_rows":0,"n_cols":0,"rows_kept":0,"hidden":true}

{"sheet":"modSheetMain01","index":31,"n_rows":0,"n_cols":0,"rows_kept":0,"hidden":true}

{"sheet":"modSheetMain02","index":32,"n_rows":0,"n_cols":0,"rows_kept":0,"hidden":true}

{"sheet":"modSheetMain03","index":33,"n_rows":0,"n_cols":0,"rows_kept":0,"hidden":true}

{"sheet":"modSheetMain04","index":34,"n_rows":0,"n_cols":0,"rows_kept":0,"hidden":true}

{"sheet":"modSheetMain05","index":35,"n_rows":0,"n_cols":0,"rows_kept":0,"hidden":true}